{"text_format":"1","workbook":"xlsx","n_sheets":22,"sheets":["CRÉDITOS","I1. INTRODUCCIÓN","I2. EXPLICACIÓN DE METODOLOGÍA","I3. DEFINICIÓN DE CRITERIOS","I4. CRITERIOS E INTERVENCIONES","D1. DATOS DEL PROYECTO","D2. SELECCION DE INTERVENCIONES","3.EVALUACION","CONFIG","BLANK","C1. VERS","C2. CONV","C3. CAPA","C4. FACS","C5. IND-CORE","C6. ETAI","C7. AEC","C8. EPC","C9. SAD","C10. DUR","R. RESULTADOS","resultados"],"not_rendered":{"charts":3,"images":39,"macros":1,"external_links":0,"defined_names":95,"comments":0,"pivot_tables":0},"unopened":[],"bounds":{"document_bytes":16777216,"sheet_cells":100000,"rows_first":2000,"rows_last":500,"rows_between":2000,"halvings":0,"cell_chars":16384,"cell_head_chars":4096},"cells_cut":0,"cells_raw":0,"read":"whole","date_system":"1900"}

{"sheet":"CRÉDITOS","index":0,"n_rows":5,"n_cols":2,"rows_kept":5,"cut":false,"hidden":false,"merged":[[6,1,6,3],[2,1,2,3],[0,1,0,3],[4,1,4,3]]}
[null,"\nRE10\nHERRAMIENTA DE ANÁLISIS DEL DESMONTAJE Y ADAPTABILIDAD EN \nREHABILITACIÓN DE EDIFICIOS RESIDENCIALES EXISTENTES\n\nVersión V1.2 –  Mayo 2022"]
[]
[null,"Coordinación:\n\nVicepresidencia Segunda y Conselleria de Vivienda y Arquitectura Bioclimática. GVA\n\nDirección:\n\nBegoña Serrano Lanzarote. IVE\n\nCoordinación y Redacción: \n\nIsabel de los Ríos Rupérez. IVE\n\nJoan Romero Clausell. IVE \n\nColaboradoras: \n\nMar Alonso Monterde. IVE\n\nMª José Gonzales Zevallos. Estancia en IVE \n"]
[]
[null,"Esta aplicación ha sido promovida y elaborada bajo convenio suscrito entre la Vicepresidencia Segunda y Conselleria de Vivienda y Arquitectura Bioclimática y el Instituto Valenciano de la Edificación\nReservados todos los derechos.\n\nNo se permite la reproducción total o parcial de esta obra, ni su incorporación a un sistema informático, ni su transmisión en cualquier forma o por cualquier medio (electrónico, mecánico, fotocopia, grabación u otros) sin autorización previa y por escrito de la entidad responsable. "]

{"sheet":"I1. INTRODUCCIÓN","index":1,"n_rows":33,"n_cols":4,"rows_kept":33,"cut":false,"hidden":false,"merged":[[2,0,2,4],[33,0,33,1],[18,0,18,4],[20,1,20,3],[4,0,4,4],[22,0,22,4],[24,1,24,3],[9,0,9,4],[26,0,26,1],[28,0,28,1],[30,0,30,1],[32,0,32,1],[6,1,7,3],[11,1,12,3],[14,0,14,4],[16,1,16,3]]}
[]
[]
["RE10 "]
[]
["INTRODUCCIÓN"]
[]
[null,"Esta herramienta ofrece una metodología de análisis y verificación del cumplimiento de criterios de sostenibilidad en actuaciones de mejora y rehabilitación de edificios existentes.\n\nLa norma de referencia utilizada ha sido la Norma ISO 20887:2020 Sostenibilidad en edificios y obras de ingeniería civil - Diseño para desmontaje y adaptabilidad - Principios, Requisitos y Guía, la cual plantea doce criterios que favorecen la optimización de la vida útil del edificio trabajando sobre conceptos de eficiencia, reutilización, reciclabilidad, accesibilidad o estandarización entre otros. \n\nEsta metodología analiza cada uno de los doce criterios planteados en la norma ISO 20887:2020 y, adaptándolos a proyectos de rehabilitación de edificios residenciales, define un sistema de evaluación para cada uno de ellos según el cumplimiento de determinadas condiciones. Asimismo, se define un sistema de evaluación del proyecto en su conjunto de forma que se puede considerar si el edificio resultante de la rehabilitación cumple con unos mínimos en cuanto a sostenibilidad relacionada con el desmontaje y la adaptabilidad.\n\nEn particular, esta herramienta está diseñada para facilitar la justificación del cumplimiento de requisito establecido en el Artículo 11, sobre Requisitos de los edificios objeto de rehabilitación, del Real Decreto 853/2021, de 5 de octubre, por el que se regulan los programas de ayuda en materia de rehabilitación residencial y vivienda social del Plan de Recuperación, Transformación y Resiliencia, que establece en su apartado b) lo siguiente:  Los diseños de los edificios y las técnicas de construcción apoyarán la circularidad y, en particular, demostrarán, con referencia a la ISO 20887 u otras normas para evaluar la capacidad de desmontaje o adaptabilidad de los edificios, cómo están diseñados para ser más eficientes en el uso de recursos, adaptables, flexibles y desmontables para permitir la reutilización y reciclaje. Por ello se trata de una herramienta de análisis de proyectos de mejora o rehabilitación de edificios existentes que incluirán en todo caso actuaciones de carácter energético.\n\nEsta herramienta evalúa las actuaciones de intervención en el edificio, no el estado actual o de partida del mismo. Por ello la justificación del cumplimiento de los criterios planteados deberá corresponder a intervenciones contempladas en el proyecto o memoria de rehabilitación y no a características del edificio existente o a condiciones preexistentes que ya se cumplen.\nEn este marco, según el tipo de intervenciones que contemple el proyecto o memoria de rehabilitación que se desee evaluar, la herramienta plantea automáticamente la selección de criterios que serán evaluables. Con ello se trata de guiar al autor o autora de la evaluación sobre qué aspectos se han considerado de mayor aplicabilidad e interés en materia de mejora o rehabilitación de edificios existentes. "]
[]
[]
["CRITERIOS"]
[]
[null,"Los criterios contemplados en la Norma ISO 20887:2020 y recogidos en esta herramienta son los siguientes:\n\n1. Versatilidad\n2. Convertibilidad \n3. Capacidad de ampliación\n4. Facilidad de acceso a componentes y servicios\n5. Independencia \n6. Conexiones reversibles\n7. Evitar tratamientos y acabados innecesarios\n8. Apoyo a economía circular\n9. Simplicidad \n10. Estandarización\n11. Seguridad al desmontar\n12. Durabilidad\n\nCon objeto de agilizar el análisis de cada uno de ellos y adaptarlo a proyectos de rehabilitación de edificios residenciales, para cada criterio el procedimiento propuesto plantea una o varias opciones que permiten considerar si una intervención determinada cumple o no. Por ello no se abordan todos y cada uno de los aspectos que la norma propone evaluar en cada criterio, sino que se ha realizado una selección y adaptación simplificada. Esta adaptación pretende promover la incorporación, durante la fase de diseño de una rehabilitación, de determinadas características que faciliten el desmontaje y la adaptabilidad del edificio. La simplificación realizada ha permitido además identificar aquellas características mínimas que se deben incorporar en las intervenciones de rehabilitación para considerar que se facilita de forma práctica el desmontaje y la adaptabilidad del edificio.\n\nEn esta línea se ha unificado la evaluación de algunos criterios muy vinculados entre sí como son \"5. Independencia y 6. Conexiones reversibles\"    y   \"9. Simplicidad y 10. Estandarización\". Esto da como resultado la definición de un decálogo de nuevos criterios, que son los definidos en las fichas siguientes.\n\n\n\n\n\n\n\n\n\n\n\n\n\n\n\nEn cualquier caso, el equipo redactor, a partir de este nivel básico de aplicación de la norma ISO 20887:2020, siempre puede analizar con mayor profundidad y detalle los criterios evaluables y, en su caso, incorporar en el diseño de la rehabilitación otras características que dotarán al edificio resultante de mejores condiciones para su desmontaje y adaptabilidad."]
[]
[]
["SISTEMA DE EVALUACIÓN FINAL"]
[]
[null,"Esta herramienta presenta un sistema de evaluación parcial en cada uno de los criterios y uno final, mostrado en la ficha R. RESULTADOS. Ésta última ficha recopila el resultado de los diez criterios evaluados (CUMPLE/NO CUMPLE/NO APLICA A LA EVALUACIÓN). Cabe resaltar que la evaluación final solo toma en cuenta el número de criterios evaluados, es decir, no toma en cuenta los que no aplicaron a la evaluación en el criterio respectivo. \n\nLa herramienta genera automáticamente el porcentaje de criterios cumplidos en base al total de criterios evaludos. Este resultado (%) ubicará al proyecto de rehabilitación en las siguientes escalas:\n\n0% - 29% = FALTA PUNTUACIÓN\n\n30% - 59% = BUENO\n\n60% - 89% = MUY BUENO\n\n90% - 100% = EXCELENTE\n\nAsimismo, la herramienta compara el desarrollo de cada uno de los criterios (10) en base a la cantidad de puntos obtenidos sobre la cantidad de puntos máximos posibles en cada criterio. "]
[]
["ÁMBITO DE APLICACIÓN"]
[]
[null,"Este procedimiento se ha elaborado especialmente para edificios residenciales, tanto plurifamiliares como unifamiliares. \nPara el caso particular de edificios unifamiliares se ha considerado la eliminación del criterio de Versatilidad, por tratarse de analizar espacios comunes a disposición de más de una persona propietaria."]
[]
["ESTRUCTURA"]
[]
[null,"El método de análisis y verificación propuesto se materializa en la presente hoja de cálculo, la cual una vez cumplimentada, podrá imprimirse a PDF, firmar electrónicamente por el personal redactor y contar así con un documento que recoja todo el proceso y el resultado correspondiente.\nLa hoja de cálculo contiene una serie de fichas organizadas del siguiente modo:"]
[]
["FICHAS INFORMATIVAS \n(I)",null,null,"Estas fichas NO cuentan con campos a cumplimentar por el equipo redactor.\n\nI1. Introducción\nI2. Explicación de la metodología: En esta hoja se presentan de forma resumida los pasos a seguir para elaborar el análisis del proyecto y la obtención de los resultados.\nI3. Definición de criterios: en base a lo establecido por la norma ISO 20887:2020 y la adaptación planteada en la presente metodología.\nI4. Criterios e Intervenciones: Listado de intervenciones susceptibles de ser analizadas por la presente herramienta y relación de criterios evaluables en cada una de ellas. "]
[]
["FICHAS DESCRIPTIVAS DEL PROYECTO DE REHABILITACIÓN\n(D)",null,null,"Estas fichas SÍ cuentan con campos a cumplimentar por el personal redactor.\n\nD1. Datos del proyecto\nD2. Selección de intervenciones: Intervenciones recogidas en el proyecto o memoria de rehabilitación del edificio"]
[]
["FICHAS DE EVALUACIÓN DE CRITERIOS\n(C)",null,null,"Estas fichas SÍ cuentan con campos a cumplimentar por el personal redactor.\n\nC1. VERS (Versatilidad)\nC2. CONV (Convertibilidad)\nC3. CAPA (Capacidad de ampliación)\nC4. FACS (Facilidad de acceso a componentes y servicios)\nC5. IND-CORE (Independencia - Conexiones reversibles)\nC6. ETAI (Evitar tratamientos y acabados innecesarios)\nC7. AEC (Apoyo a economía circular)\nC8. EPC (Eficiencia en el proceso constructivo)\nC9. SAD (Seguridad al desmontar)\nC10. DUR (Durabilidad)"]
[]
["HOJA DE RESULTADOS \n(R)",null,null,"R. Resultados: En esta hoja se presenta el resultado del análisis, la evaluación parcial y final. Asimismo, se reserva un espacio para la firma del personal redactor."]

{"sheet":"I2. EXPLICACIÓN DE METODOLOGÍA","index":2,"n_rows":53,"n_cols":3,"rows_kept":53,"cut":false,"hidden":false,"merged":[[4,0,4,3],[6,1,6,2],[26,1,26,2],[46,0,46,3],[28,0,28,3],[36,0,36,3],[41,0,41,3],[34,1,34,2],[33,1,33,2],[52,1,52,2],[50,1,50,2],[48,1,48,2],[32,1,32,2],[2,0,2,3],[8,0,8,3],[13,0,13,3],[24,0,24,3],[18,0,18,3],[20,1,20,2],[21,1,21,2],[22,1,22,2],[15,1,15,2],[16,1,16,2],[10,1,10,2],[11,1,11,2]]}
[]
[]
["EXPLICACIÓN DE METODOLOGÍA"]
[]
["NOTAS INICIALES"]
[]
[null,"Celdas a rellenar\nLa ficha cuenta con casillas que deberán ser cumplimentadas. Éstas se diferencian del resto de contenido ya que se encuentran sombreados en gris (en listas emergentes y en celdas para redactar).\n\n\n\n\n\n\nVentanas de información\nLa ficha cuenta con ventanas informativas que aparecerán en ciertas celdas con el fin de informar y esclarecer ciertos puntos, como por ejemplo el rango de aplicación de una intervención o el porqué de un resultado. Para mostrar y ocultar estas ventanas se deberá hacer \"clic\" en la \"i\". \n\n\n\n\n\n"]
[]
["PASO 01"]
[]
[null,"I3. DEFINICIÓN DE CRITERIOS\n\nLeer la ficha \"I3. DEFINICIÓN DE CRITERIOS\". Dicho documento contiene la explicación de los 10 criterios con los que se evaluará la intervención, así como también la metodología de evaluación y material de consulta (páginas web o documentos)."]
[]
[]
["PASO 02"]
[]
[null,"I4. CRITERIOS E INTERVENCIONES\n\nLa ficha \"I4. CRITERIOS E INTERVENCIONES\" especifica el listado de intervenciones que podrán evaluarse en el proyecto de rehabilitación. Este listado se realiza en función a la Base de Datos de la Construcción del Instituto Valenciano de la Edificación (https://bdc.f-ive.es/BDC21/1). Dicha ficha restringe los criterios con los cuales estas intervenciones pueden ser evaluadas. "]
[]
[]
["PASO 03"]
[]
[null,"D2. SELECCIÓN DE INTERVENCIONES\n\nEn la ficha \"D2. SELECCIÓN DE INTERVENCIONES\" se podrá libremente seleccionar con la opción \"Sí\", de la lista emergente, las intervenciones que contempla dentro del proyecto de rehabilitación. En el caso de no intervenir en dicha partida, se deberá seleccionar \"NO\" de la lista emergente. Una vez realizada esta selección, se deberá seleccionar el botón \"Crear Hojas de Evaluación\" que aparece al final de la lista de evaluación.\n\nEn caso de que se quieran indicar más intervenciones o deseleccionar alguna en la Ficha III, este deberá hacer clic nuevamente en el botón \"Crear Hojas de Evaluación\" para que estas se actualicen con la información nueva. "]
[]
[]
[]
["PASO 04"]
[]
[null,"C1-C10. FICHAS DE EVALUACIÓN (Criterios 1-10)\n\nLas siguientes pestañas generadas responden a cada uno de los criterios de evaluación, en donde, de acuerdo a lo seleccionado en la ficha D2. SELECCIÓN DE INTERVENCIONES y a los parámetros indicados en la ficha I4. CRITERIOS E INTERVENCIONES, aparecerán las intervenciones que podrán ser evaluadas.\n\nAl igual que en la ficha I3. DEFINICIÓN DE CRITERIOS, cada una de las pestañas incluye la definición del criterio, ejemplos y una aclaración sobre qué incluir en la justificación, el sistema de puntuación y la metodología de evaluación. Asimismo, de acuerdo a la cantidad de intervenciones a evaluar en cada criterio, la ficha indicará de manera automática la cantidad de puntos mínimos a cumplir para la consideración del criterio. De esta manera, la persona usuaria de la herramienta podrá tener siempre la referencia a la que debe llegar."]
[]
["FICHAS DE CRITERIOS DE EVALUACIÓN"]
[]
[null,"\nDEFINICIÓN DE CRITERIO Y EVALUACIÓN\n\na. DEFINICIÓN\nEste primer apartado incluye los siguientes puntos:\n- Descripción del criterio\n- Ejemplos\n- Aclaraciones sobre justificación\n\nb. PUNTUACIÓN\nEl tipo de puntuación variará dependiendo del tipología de ficha. En ambos casos se definen los requisitos para obtener la puntuación.\n- Fichas C1, C2, C3 y C10 = Tipología I\n- Fichas C4 - C9 = Tipología II\n"]
[null,"Tipología I\nEn este caso, la puntuación se divide en \"CUMPLE\" y \"NO CUMPLE\".\n","Tipología II\nEn las fichas de tipología II se otorgan 0-1 / 0-2 puntos. "]
[null,"\nc. METODOLOGÍA DE EVALUACIÓN\nEl tipo de evaluación también varía de acuerdo a la tipología de ficha. \nEn las fichas de tipología I, la forma de evaluación se basa en la proporción de área afectada sobre el área construida total (m2). Es por ello que la ficha se encuentra ya programada para  que la persona usuaria complete las superficies y la ficha se encargará de señalar si el porcentaje CUMPLE o NO CUMPLE.\n\nEn las fichas de tipología II, la evaluación se basa en una fórmula que toma en cuenta la puntuación total máxima a la que se puede llegar, la cantidad de intervenciones (conteo que se hará automáticamente por la ficha al seleccionar las intervenciones a realizar) y la puntuación mínima por alcanzar. "]
[null,"\nINTERVENCIONES SELECCIONADAS\n\nd. INTERVENCIONES\nDe acuerdo a las intervenciones seleccionadas previamente, junto a los parámetros definidos en la ficha L4, esta parte contendrá el código y el nombre de las intervenciones a evaluar por la persona usuaria.\n\ne. PUNTUACIÓN\nEn el caso de las fichas de Tipología I, la opción de CUMPLE / NO CUMPLE aparecerá de manera automática de acuerdo  a los datos del área (m2) intervenida (información indicada por la persona usuaria en el apartado de Evaluación). \nEn las fichas de Tipología II se deberá seleccionar a partir de la lista emergente la puntuación 0-1 / 0-2.\n\nf. JUSTIFICACIÓN\nEn el caso de que la intervención sí obtenga una puntuación, ésta deberá ir correctamente justificada mediante planos, memorias, especificaciones técnicas o documentos en general que certifiquen la veracidad de la puntuación otorgada. En este apartado se deberá indicar la ubicación de esta justificación. Por ejemplo: el n° de Anexo, página de documento, y/o párrafo.\n\nEn el caso de que entre la documentación aportada del Proyecto o Memoria se detecten datos o descripciones no coincidentes, se atenderá a lo indicado en el documento explícitamente indicado en el apartado JUSTIFICACIÓN. Por ello es importante indicar el apartado, página o plano concreto en el que el redactor considera que se justifica adecuadamente el criterio analizado.\n\n"]
[null,"RESULTADO\n\ng. PUNTUACIÓN ALCANZADA\nExisten 3 tipos de respuestas automáticas en la puntuación alcanzada: CUMPLE, NO CUMPLE y NO APLICA A LA EVALUACIÓN. \n\n- CUMPLE / NO CUMPLE\nEn el caso de las fichas de tipología I, si el porcentaje (%) de superficie afectada es igual o mayor al 5% de la superficie total, entonces el criterio SÍ CUMPLIRÁ con la puntuación por alcanzar. \n\nEn el caso de las fichas de tipología II, la puntuación otorgada a las intervenciones evaluadas se sumarán y este resultado será medido bajo los requisitos expuestos en la etapa d. Evaluación (con la fórmula mostrada). Para que una intervención se considere que obtiene 1 o 2 puntos se entiende que la totalidad o casi totalidad de la intervención cumple con los criterios. \n\nSe entiende por intervención lo que se modifica, no lo pre-existente que se mantiene. Es decir, si se interviene en “Suelos” debido a que se modifica o sustituye parte de los pavimentos, el análisis del cumplimiento de los criterios deberá realizarse sobre los pavimentos modificados o sustituidos, no sobre el total de los pavimentos existentes en todo el edificio.\n\nEn este sentido, se podrá considerar que cumple la casi totalidad si cumple al menos el 90 % del elemento o sistema intervenido. De darse esta circunstancia, se deberá aportar justificación en términos de % de metros cuadrados o de metros lineales respecto de los totales intervenidos. Si esta justificación no es evidente y sencilla de verificar, se deberá considerar una puntuación 0.\n\n- NO APLICA A LA EVALUACIÓN\nEsta respuesta se aplicará automáticamente si es que en la ficha D2. SELECCIÓN DE INTERVENCIONES, no se señalaron ciertas intervenciones que sí son evaluables por dicho criterio, tal como figura en la ficha I4. CRITERIOS E INTERVENCIONES. El/la usuario/a de la ficha podrá tener esta explicación al hacer \"clic\" sobre el símbolo de \"información\" que aparecerá en el título de la ficha. "]
[]
["TIPOLOGÍA I - C1, C2, C3 y C10"]
[]
[]
[]
[]
["TIPOLOGÍA II - C4, C5, C6, C7, C8 y C9"]
[]
[]
[]
[]
["PASO 05"]
[]
[null,"a. RESULTADOS PARCIALES\nLa última ficha muestra los resultados parciales de cada uno de los criterios evaluados (CUMPLE / NO CUMPLE / NO APLICA A LA EVALUACIÓN). En base al total de criterios evaluados, la herramienta determina el porcentaje de criterios cumplidos. \n\nb. RESULTADO FINAL (gráfico de resultados)\nA partir de este resultado y al sistema de evaluación, la herramienta ubicará al proyecto de rehabilitación en las siguientes escalas:\n\n0% - 29%        =   FALTA PUNTUACIÓN\n\n30% - 59%     =   BUENO\n\n60% - 89%     =   MUY BUENO\n\n90% - 100%    =   EXCELENTE"]
[]
[null,"c. GRÁFICO COMPARATIVO DE CRITERIOS\nEsta última ficha también presenta un gráfico en donde se compara el porcentaje de la presencia de cada uno de los criterios en base a la puntuación obtenida sobre la cantidad máxima de puntos posibles en cada criterio. \n\nd. DECLARACIÓN Y FIRMA\nEste último apartado contiene una declaración sobre el documento cumplimentado y el proyecto de rehabilitación. Asimismo, se reserva un espacio para la firma del personal redactor y la fecha. Finalmente, el mismo deberá generar un documento PDF a partir del botón \"Convertir a PDF\", el cual está programado para convertir a PDF las siguientes hojas:\n  D1. DATOS DEL PROYECTO\n  D2. SELECCIÓN DE INTERVENCIONES\n  C1. VERS\n  C2. CONV\n  C3. CAPA\n  C4. FACS\n  C5. IND-CORE\n  C6. ETAI\n  C7. AEC\n  C8. EPC\n  C9. SAD\n  C10. DUR\n  R. RESULTADOS"]
[]
[null,"Nota: En caso de que se quiera hacer alguna modificación, una vez convertidas las hojas a PDF, se deberán desagrupar las pestañas generadas automáticamente por el botón de la herramienta. Para hacerlo, se deberá hacer \"click\" derecho a cualquiera de las pestañas y seleccionar la opción \"Desagrupar hojas\". "]

{"sheet":"I3. DEFINICIÓN DE CRITERIOS","index":3,"n_rows":94,"n_cols":2,"rows_kept":94,"cut":false,"hidden":false,"merged":[[2,0,2,4],[4,0,4,4],[79,0,79,4],[81,1,81,3],[71,1,73,3],[69,0,69,4],[77,1,77,3],[75,0,75,4],[67,1,67,3],[59,0,59,4],[39,1,40,3],[37,0,37,4],[55,0,55,4],[57,1,57,3],[31,1,31,3],[29,0,29,4],[12,0,12,4],[14,1,14,3],[22,1,23,3],[20,0,20,4],[6,1,6,3],[8,0,8,4],[10,1,10,3],[16,0,16,4],[18,1,18,3],[91,0,91,4],[93,1,93,3],[33,0,33,4],[35,1,35,3],[25,0,25,4],[27,1,27,3],[83,0,83,4],[85,1,85,3],[87,0,87,4],[89,1,89,3],[51,0,51,4],[53,1,53,3],[42,0,42,4],[44,1,44,3],[46,0,46,4],[48,1,49,3],[61,1,61,3],[62,1,62,3],[65,1,65,3],[66,1,66,3],[63,1,63,3],[64,1,64,3]]}
[]
[]
["DEFINICIÓN DE CRITERIOS"]
[]
["1. VERSATILIDAD"]
[]
[" ","Descripción del criterio\nEl criterio se refiere a la capacidad de un espacio de adaptarse a diferentes funciones con el menor cambio del sistema, minimizando la complejidad o esfuerzo. Las estructuras y espacios versátiles proporcionan alternativas de uso a lo largo del tiempo.\nEste criterio, en particular, solo aplica en edificios plurifamiliares y no en unifamiliares, debido a que se analizan a los espacios comunes disponibles y polivalentes para todas las personas residentes.\nEste criterio se mide en base al área del espacio común versátil en proporción al área total del edificio, tomando como dato la superficie construida. \n\nEjemplos\n- Se intervendrán las instalaciones en un espacio de planta baja de edificio de viviendas, a priori sin uso determinado, en aras de facilitar su utilización por la vecindad según necesidades puntuales. \n- Antigua vivienda de portería que se acondiciona para convertirse en local polivalente para la Comunidad de Propietarios y propietarias. \n\nAclaraciones sobre la justificación\n- Se deberá justificar que las soluciones que cumplen con este criterio son fruto de la intervención proyectada, es decir, que no existían antes de la rehabilitación.\n- Para justificar el cumplimiento de este criterio se deberá indicar en qué parte del Proyecto de Rehabilitación, Memoria o Documento Complementario figura el dato de la  Superficie construida total del edificio (m2), de la Superficie del espacio o conjunto de espacios versátiles generados o adaptados gracias a la rehabilitación (m2) y las descripción de las actividades o usos a los que la propiedad destina este espacio. "]
[]
["MATERIAL DE CONSULTA"]
[]
[null,"Entornos vitales: Hacía un diseño urbano y arquitectónico más humano: Manual práctico . BENTLEY, Ian . ALCOCK, Alan . et al."]
[]
["2. CONVERTIBILIDAD"]
[]
[null,"Descripción del criterio\nEl criterio se refiere a crear cambios substanciales generando pequeñas modificaciones. Se relaciona con el criterio de versatilidad pero tiene una adaptación secuencial, es decir, difícilmente reversible. Los espacios en un edificio de vivienda pueden convertirse en espacios polivalentes de manera permanente o espacios de uso común ya sea de manera recreativa o de circulación. La convertibilidad en un espacio permite acondicionar cambios de uso futuro, es por ello que las modificaciones pueden darse en tres escalas: \n\n- Modificaciones en la estructura\n- Modificaciones en particiones verticales u horizontales ligeras\n- Modificaciones o implementación de preinstalaciones y mecanismos representativos\n\nEjemplos\n- La estructura se modifica de muros portantes a pórticos para generar espacios más amplios y diversificar el programa.\n- Se implementan particiones verticales y horizontales de sistemas ligeros (yesos laminados, mamparas, etc.) para facilitar la reconfiguración espacial del recinto, así como también el tipo de programa que pueda alojar. \n- Se implementan preinstalaciones y mecanismos representativos (sistema de climatización, sistema de fontanería, cableado que implica gran trabajo en muros y tabiquería, etc.) que faciliten modificaciones en el acondicionamiento o equipamiento del espacio.\n\nAclaraciones sobre la justificación\n- Se deberá justificar que las soluciones que cumplen con este criterio son fruto de la intervención proyectada, es decir, que no existían antes de la rehabilitación.\n- Para justificar el cumplimiento de este criterio se deberá indicar en qué parte del Proyecto de Rehabilitación, Memoria o Documento Complementario figura el dato de la  Superficie construida total del edificio (m2), de la Superficie del espacio o conjunto de espacios convertibles generados o adaptados gracias a la rehabilitación (m2) y la descripción de las condiciones que lo hacen convertible (modificación estructural a un sistema más flexible, particiones fácilmente desmontables y/o preinstalaciones dispuestas)."]
[]
["MATERIAL DE CONSULTA"]
[]
[null,"DISEÑO DE UNA VIVIENDA CONVERTIBLE.PFC GSD-UPC 2012\nAida Llobet Méndez.\nThe Convertibility Forecast Model of SpaceStructure in ArchitectureProgramming——Collective Housing in Taiwan forexample hyng and Jyh-Harng 2021 IOP Conf. Ser.: Earth Environ. Sci.760 012052"]
[]
["3. CAPACIDAD DE AMPLIACIÓN"]
[]
[null,"Descripción del criterio\nEl criterio se refiere a la capacidad de un espacio o la característica de un sistema para agregar un área nueva (extra respecto al existente) o ampliar la superficie existente (aumentando la superficie en planta de la construcción actual). No se trata de valorar la ampliación que pueda definirse en el proyecto objeto de evaluación, sino la posibilidad de que el edificio proyectado se amplíe en el futuro. Se trata de valorar positivamente que la estructura o los elementos constructivos principales del edificio queden diseñados de forma que se facilite una futura ampliación (en especial el desmontaje de cerramientos y la capacidad portante de la estructura).\n\n1. Verticalmente: Refuerzos estructurales para poder soportar más pisos y que dotan al conjunto estructural de mayor capacidad portante de cara a la elevación de nuevas plantas sin necesidad de intervenir de nuevo en las plantas inferiores, y por tanto, sin afectar a las personas que habitan las mismas.\n\nEjemplos\n- Refuerzos estructurales mediante sistemas Mecanoviga para la creación de un altillo o ático.\n- Desmontabilidad de cubierta para facilitar las futuras posibles ampliaciones, a base de perfiles y placas con fijación mecánica. \n\n2. Horizontalmente: El diseño debe facilitar el desmontaje de fachadas o envolvente de manera que el espacio pueda expandirse sin generar daños mayores en lo existente. \n\nEjemplos\n- Conversión de la fachada maciza en módulos desmontables para generar la posibilidad de futuras expansiones a darse de sistemas de cerramiento con fijación mecánica.\n- Adhesión de pilares a estructura existente para el apoyo de futuras balconeras o plataformas. \n\nAclaraciones sobre la justificación\n- Se deberá justificar que las soluciones que cumplen con este criterio son fruto de la intervención proyectada, es decir, que no existían antes de la rehabilitación.\n- Para justificar el cumplimiento de este criterio se deberá indicar en qué parte del Proyecto de Rehabilitación, Memoria o Documento Complementario figura el dato de la  Superficie construida total del edificio (m2), de la Superficie construida ampliable (m2) y la descripción de las condiciones que facilitan la ampliación del edificio (modificación estructural a un sistema reforzado o envolventes resueltas con elementos constructivos fácilmente desmontables).\nEn el caso de ampliaciones verticales, la superficie ampliable se entenderá como la superficie de las futuras plantas elevables, conforme a la nueva capacidad portante de la estructura.\nEn el caso de ampliaciones horizontales, la superficie ampliable se entenderá como la superficie de las futuras extensiones de las plantas actuales, conforme al tipo de envolvente fácilmente desmontable.\nEn ambos casos se entenderá que la propiedad y los proyectistas han verificado que se cumplen los condicionantes urbanísticos y técnicos para la ejecución de la ampliación. "]
[]
[]
["MATERIAL DE CONSULTA"]
[]
[null,"Definición de ámbitos de flexibilidad para una vivienda versátil, perfectible, móvil y ampliable. Graziella Trovato. ciudad y territorio Estudios Territoriales, XLI (161-162) 2009"]
[]
["4. FACILIDAD DE ACCESO A SERVICIOS"]
[]
[null,"Descripción del criterio\nEste criterio se refiere a que componentes o servicios, en especial aquellos con un periodo de vida corto,  puedan ser reemplazados fácilmente con el menor daño posible a las piezas o elementos que se encuentran alrededor. Permite reducir el tiempo de reemplazo de componentes o servicios y evita desperdicios innecesarios. Esta característica se relaciona con la \"independencia\" de las piezas, de manera que cada pieza es una capa en particular que puede ser cambiada o tener un mantenimiento sin dañar al resto. \nSe debe analizar la accesibilidad al componente o servicio (instalaciones) que normalmente quedan ocultos y evaluar si todo él puede repararse o sustituirse con mayor o menor daño en los materiales aledaños. Se tendrá en cuenta el tipo de materiales aledaños, entendiendo como tales los que ocultan al componente o servicio, los cuales necesitan ser retirados para poder acceder al componente o servicio  para su reparación o sustitución.\n\nEjemplos\n- Instalaciones ubicadas tras elementos registrables como armarios, falseados practicables, falsos techos registrables, suelos técnicos, etc. que permiten que la mayor parte de los recorridos sean accesibles sin demoler o desmontar los elementos que los cierran.  \n- Instalación ubicada en un recinto o espacio libre  que permite la disposición de toda la maquinaria y sistemas de forma accesible. Los tramos de conductos o cableados ocultos son mínimos en relación al conjunto de la instalación. Este puede ser el caso de una instalación fotovoltaica en cubierta, con acceso fácil y elementos de seguridad para el trabajo en altura y con registros suficientes para facilitar el acceso al cableado u otros componentes habitualmente ocultos de la instalación.\n\nAclaraciones sobre la justificación\n- Se deberá justificar que las soluciones que cumplen con este criterio son fruto de la intervención proyectada, es decir, que no existían antes de la rehabilitación.\n- Para justificar el cumplimiento de este criterio se deberá indicar en qué parte del Proyecto de Rehabilitación, Memoria o Documento Complementario figura la descripción de cada instalación puntuada con \"1\" en la que se detalle cómo se garantiza la facilidad de acceso a sus componentes. \n- Se podrá considerar que la intervención cumple si al menos el 90% del elemento o sistema intervenido cumple. De ser el caso, se deberá aportar justificación en términos de % de metros cuadrados o de metros lineales respecto de los totales intervenidos, de lo contrario sedeberá considerar una puntuación 0."]
[]
["MATERIAL DE CONSULTA"]
[]
[null,"https://www.consumo.gob.es/es/carrousel/consumo-etiquetar-los-productos-el-ctricos-y-electr-nicos-en-funci-n-de-su-reparabilidad"]
[]
["5. INDEPENDENCIA Y CONEXIONES REVERSIBLES"]
[]
[null,"Descripción del criterio\nLos criterios de independencia y conexiones reversibles se basan en el mismo principio pero funcionan a diferente escala. \n\nLa independencia se refiere a  la cualidad que permite que un sistema pueda ser desmontado sin afectar la función o comportamiento de los elementos adyacentes. En este sentido, se evita que los componentes sean soldados o instalados en húmedo, y se prefieren ensamblajes desmontables. Así mismo se evita agrupar componentes de instalaciones o elemento distintos. \nLas conexiones reversibles tienen el mismo principio que el criterio de independencia, pero  actúa sobre las piezas y componentes respecto al propio sistema.  Se trata de fomentar que un sistema o instalación se componga o monte mediante piezas cuyas uniones son reversibles. Para cumplir con este criterio se debe lograr:\n- Dejar suficiente espacio para poder desmontarse (espacio para la persona y/o las herramientas).\n- Debe utilizar las mismas herramientas para instalarse como para desmontar .\n- Utilizar métodos de conexión universalmente reconocidos que no dañen el resto de materiales o las áreas adyacentes .\n- Minimizar la interdependencia entre materiales diferentes, productos, componentes o sistemas.\n\nEste criterio permite evaluar el cumplimiento de la independencia o de conexiones reversibles de manera independiente (cumpliendo con 1 punto) y en simultáneo (cumpliendo con 2 puntos).\n\nEjemplos que cumplen 1 punto\n- Techo: techo continuo de placas de escayola fijado mecánicamente al forjado mediante perfilería. \n- Estructura metálica a base de pórticos con uniones atornilladas, evitando la soldadura. La estructura queda oculta tras fábricas de ladillo o falsos techos continuos de escayola. \n- Instalación de ventilación a través de conductos y patinillos registrables en los que no se aloja otro tipo de instalaciones o equipamientos. Los equipos de impulsión, extracción y control se localizan en cubierta accesible y de forma independiente de otras instalaciones. \n\nEjemplos que cumple 2 puntos\n- Suelo a base mortero de regularización + manta aislante + tarima sistema click de láminas de xxxx \n-Fachada: Muro cortina // Fachada ventilada XXX con fijaciones mecánicas, sin morteros o adhesivos.\n- Techo: Falso techo registrable a base de placas de escayola sistema XXX , fijado mecánicamente al forjado mediante perfilería de aluminio.\n- Cubierta plana no transitable a base de elementos de protección lastrados con grava, de forma que las diferentes capas son independientes entre sí, no adheridas entre sí. \n\nAclaraciones sobre la justificación\n- Se deberá justificar que las soluciones que cumplen con este criterio son fruto de la intervención proyectada, es decir, que no existían antes de la rehabilitación.\n- Para justificar el cumplimiento de este criterio se deberá indicar en qué parte del Proyecto de Rehabilitación, Memoria o Documento Complementario figura la descripción de cada instalación puntuada con \"1\" o \"2\" en la que se detalle cómo se garantiza la Independencia o las Conexiones Reversibles. En su caso, esta justificación podrá contener Fichas Técnicas de entidades fabricantes o instaladoras de los correspondientes sistemas. \n- Se podrá considerar que la intervención cumple si al menos el 90% del elemento o sistema intervenido cumple. De ser el caso, se deberá aportar justificación en términos de % de metros cuadrados o de metros lineales respecto de los totales intervenidos, de lo contrario sedeberá considerar una puntuación 0."]
[]
[]
["MATERIAL DE CONSULTA"]
[]
[null,"Reversible Building design guidelines Author Dr. Elma Durmisevic, University of Twente March 2018. "]
[]
["6. EVITAR TRATAMIENTOS Y ACABADOS INNECESARIOS"]
[]
[null,"Descripción del criterio\nLa elección de acabados o revestimientos puede limitar las posibilidades de reutilizar o reciclar elementos representativos, es por ello que en lo posible deben evitarse capas extras. Los acabados deben tener un uso específico necesario, por ejemplo, seguridad contra incendios, permeabilidad, protección contra la corrosión, etc. \n(*)Se consideran como \"elementos representativos\" para este criterio elementos como:\na. Paramentos y particiones verticales:\nb. Suelos o Techos \nc. Fachadas y cubiertas (la cara a evaluar será la parte exterior)\nd. Estructura (los elementos estructurales a evaluar serán aquellos que queden vistos)\n\nLos elementos que carecen de un tratamiento o acabado innecesario deberán ser los que cumplan al menos con una de las características siguientes:\n- Materiales de acabado instalados en seco.\n- Materiales caravista como madera, cerámica, bloque, hormigón, etc. todos ellos vistos o en crudo.\n\nEjemplos\n- Ejecución (implementación) de las particiones interiores de entramado ligero de madera con revestimiento vertical en OSB visto, sin tratamiento o pintura adicional.\n- Ejecución de las particiones interiores de fábrica con el ladrillo dejado visto, de disposición y aparejo con acabado estético de carácter visto, sin necesidad de enlucido adicional.\n- Ejecución de la hoja exterior de la fachada mediante un sistema de fachada ventilada con sistema de anclaje mecánico y revestimiento de piezas cerámicas  recuperables.\n- Ejecución de la hoja exterior de la cubierta inclinada mediante un sistema de cubierta ventilada con sistema enrastrelado y cubrición final mediante tejas mixtas ancladas.\n\nAclaraciones sobre la justificación\n- Se deberá justificar que las soluciones que cumplen con este criterio son fruto de la intervención proyectada, es decir, que no existían antes de la rehabilitación.\n- Para justificar el cumplimiento de este criterio se deberá indicar en qué parte del Proyecto de Rehabilitación, Memoria o Documento Complementario figura la descripción de cada intervención puntuada con \"1\" en la que se detallen los materiales de acabado y si el sistema de fijación es en seco o no. \n- Se entenderá que la intervención cumple con esta característica siempre que la totalidad o la casi totalidad del elemento analizado cuente con este tipo de acabados. \n- Se podrá considerar que la intervención cumple si al menos el 90% del elemento o sistema intervenido cumple. De ser el caso, se deberá aportar justificación en términos de % de metros cuadrados o de metros lineales respecto de los totales intervenidos, de lo contrario sedeberá considerar una puntuación 0."]
[]
[]
["MATERIAL DE CONSULTA"]
[]
[null,"https://www.elcomercio.com/construir/materiales-vistos-potencian-diseno-construcciones.html"]
[]
["7. ECONOMÍA CIRCULAR"]
[]
[null,"Descripción del criterio\nEste criterio se refiere a la colaboración en del desarrollo el mercado de la reutilización, renovación, remanufacturabilidad y reciclaje de materiales o productos. Su cumplimiento se mide en base a los posibles certificados de reciclaje que puedan tener  los materiales utilizados en la obra de rehabilitación, ya sea el elemento en su totalidad o los componentes de manera individual.\n\nExisten estas cuatro posibilidades de certificaciones que los materiales deben tener para poder cumplir con el criterio:\n- Certificado de contenido de reciclado (CR - Recycle Content).\n- Materiales con contenido reciclado: En base a la norma UNE-EN ISO 14021- etiquetas ecológicas y declaraciones medioambientales, Levantina les puede facilitar la Autodeclaración ambiental de contenido en reciclado.\n- Certificación Ambiental, Etiqueta Ecológica Tipo I según ISO 14024.\n- DAP (Declaraciones ambientaes de producto) Etiqueta Ecológica Tipo III según ISO 14025.\n- Etiqueta energética B o A según el Reglamento UE/2017/1369, considerando la nueva escala del etiquetado energético en vigor desde el 1 de marzo 2021.\n\nEjemplos\n- Se han proyectado baldosas cerámicas suministradas por una empresa productora con una Etiqueta Ecológica Tipo III certificada por AENOR u otra entidad de certificación acreditada.\n\nAclaraciones sobre la justificación\n- Se deberá justificar que las soluciones que cumplen con este criterio son fruto de la intervención proyectada, es decir, que no existían antes de la rehabilitación.\n- Para justificar el cumplimiento de este criterio se deberá indicar en qué parte del Proyecto de Rehabilitación, Memoria o Documento Complementario figura la descripción de cada intervención puntuada con \"1\" en la que se detallen los elementos, materiales o componentes con certificado y se presente copia del certificado vigente correspondiente.\n- Se entenderá que la intervención evaluada cumple con este criterio si los elementos, materiales o componentes con certificado son representativos respecto al conjunto de la intervención.\n- Se podrá considerar que la intervención cumple si al menos el 90% del elemento o sistema intervenido cumple. De ser el caso, se deberá aportar justificación en términos de % de metros cuadrados o de metros lineales respecto de los totales intervenidos, de lo contrario sedeberá considerar una puntuación 0."]
[]
["MATERIAL DE CONSULTA"]
[]
[null,"https://www.aenor.com/certificacion/certificacion-de-producto/declaraciones-ambientales-de-producto/declaraciones-globalepd-en-vigor"]
[null,"https://www.environdec.com/home"]
[null,"https://ec.europa.eu/environment/ecolabel/"]
[null,"https://mediambient.gencat.cat/ca/05_ambits_dactuacio/empresa_i_produccio_sostenible/ecoproductes_i_ecoserveis/etiquetatge_ecologic_i_declaracions_ambientals_de_producte/distintiu_de_garantia_de_qualitat_ambiental/cataleg/index.html"]
[null,"https://www.blauer-engel.de/en/products"]
[null,"https://www.energystar.gov/products?s=mega"]
[null,"https://www.csostenible.net/"]
[]
["8. EFICIENCIA EN EL PROCESO CONSTRUCTIVO"]
[]
[null,"Descripción del criterio\nEste criterio se refiere a la eficiencia en el desarrollo de las intervenciones que permite que el proceso de montaje e instalación sea fácil y sencillo, ya que se encuentra diseñado con componentes estandarizados que permiten satisfacer los requerimientos del diseño, generando una menor cantidad de residuos. Asimismo,  las partes estandarizadas hacen el trabajo más eficiente ya que se utiliza un sistema repetitivo de instalación y las mismas herramientas o parecidas. La estandarización puede darse en tres escalas:\n\n1. Eficiencia y estandarización de sistemas representativos:\nEn este caso se puede tratar del uso de las mismas dimensiones o modulación, de tal manera que el proceso de montaje y las herramientas a utilizar serán las mismas.\n2. Eficiencia y estandarización de conexiones:\nLa estandarización de estas conexiones facilita el uso de las mismas herramientas y el mismo proceso constructivo ya que se utiliza el mismo orden y pasos a seguir en el proceso de conexión de componentes y/o piezas lo que hace que todo el proceso constructivo sea más eficiente. \n3. Eficiencia y estandarización de componentes/piezas:\nLa estandarización de piezas permite el intercambio de las mismas entre partes y componentes, el reemplazo de manera fácil y rápida (ya que se trata, por lo genera, de piezas comerciales y fáciles de conseguir). \n\nEjemplos\n- Estructura realizada con piezas prefabricadas de acero /hormigón/madera, del sistema estandarizado XXX de la casa comercial XXX.\n- Hoja principal de fachada resuelta con sistema prefabricado de placas de hormigón del sistema estandarizado XXX de la casa comercial XXX. \n- Fachada ventilada resuelta con sistema prefabricado de perfilería de xxx  (material) y placas de xxx (material)  del sistema estandarizado XXX de la casa comercial XXX.\n- Cubierta resuelta con sistema XXX de panel sándwich xxx de la marca comercial XXX, fijado mecánicamente sobre entramado estructural de madera.\n- Instalación de suministro de agua a base de sistema XXX de la casa comercial XXX de tubería PEX- Polietileno reticulado + piezas de conexión.\n- Instalación de la red de suministro de agua con sistema estándar XXX con tubos de poietileno reticulado (PEX) de la casa XXX.\n\nAclaraciones sobre la justificación\n- Se deberá justificar que las soluciones que cumplen con este criterio son fruto de la intervención proyectada, es decir, que no existían antes de la rehabilitación.\n- Para justificar el cumplimiento de este criterio se deberá indicar en qué parte del Proyecto de Rehabilitación, Memoria o Documento Complementario figura la descripción de cada intervención puntuada con \"1\" en la que se detallen los elementos, materiales o componentes que presentan simplicidad o estandarización y se adjunten, en su caso, las fichas técnicas emitidas por la empresa fabricante o instaladora. \n- Se entenderá que la intervención evaluada cumple con este criterio si los elementos, materiales o componentes analizados son representativos respecto al conjunto de la intervención.\n- Se podrá considerar que la intervención cumple si al menos el 90% del elemento o sistema intervenido cumple. De ser el caso, se deberá aportar justificación en términos de % de metros cuadrados o de metros lineales respecto de los totales intervenidos, de lo contrario sedeberá considerar una puntuación 0."]
[]
[]
[]
["MATERIAL DE CONSULTA"]
[]
[null,"FAZINGA, W; SAFFARO, F; ISATTO, E  y  LANTELME, E. Implementación del trabajo estandarizado en la industria de la construcción. Rev. ing. constr. [online]. 2019, vol.34, n.3 [citado  2022-02-01], pp.288-298"]
[]
["9. SEGURIDAD AL DESMONTAR"]
[]
[null,"Descripción del criterio\nEste criterio se refiere a que todos los elementos, componentes, módulos o sistemas que puedan desmontarse deben considerar un plan de desmontaje o montaje (suficientemente especificado) desde la etapa de diseño para asegurar la efectividad y seguridad del proceso. Dicho plan de desmontaje/montaje (detallado) ofrece indicaciones para la sustitución de elementos independientes y el desmontaje completo del sistema.\n\nEsta característica está relacionada con el criterio de facilidad de acceso ya que éste promueve acceder sin problemas y de manera segura al sistema, pieza o conexión.\n\nEjemplo\n- La fachada ventilada se resuelve mediante el sistema XXX, y entre la documentación aportada se encuentra el Manual de Montaje y Desmontaje.\n\nAclaraciones sobre la justificación\n- Se deberá justificar que los soluciones que cumplen con este criterio son fruto de la intervención proyectada, es decir, que no existían antes de la rehabilitación.\n- Para justificar el cumplimiento de este criterio se deberá indicar en qué parte del Proyecto de Rehabilitación, Memoria o Documento Complementario figura la descripción de cada intervención puntuada con \"1\" , en la que se presenta el Plan de Desmontaje correspondiente, haya sido redactado por el equipo proyectista, la empresa constructura o la persona o empresa instaladora.\n"]
[]
["MATERIAL DE CONSULTA"]
[]
[null,"Real Decreto 1627/1997, de 24 de octubre, por el que se establecen disposiciones mínimas de seguridad y de salud en las obras de construcción."]
[]
["10. DURABILIDAD"]
[]
[null,"Descripción del criterio\nLa durabilidad es unos de los criterios claves a tomar en cuenta en la toma de decisiones para la intervención en un proyecto. Este punto se refiere a la cantidad de años de servicio y costo de mantenimiento que tiene un material o sistema. Por ello es importante que cada instalación, material o componente cuente con un Plan de mantenimiento preventivo. \n\nEste criterio favorece que la propiedad del edificio cuente con un Plan de Mantenimiento que defina las operaciones periódicas a realizar para mantener el edificio en buen estado de conservación. \n\nEjemplo\n- El edificio rehabilitado dispone de plan de mantenimiento mediante POMEES.\n- La instalación del sistema de producción de energía solar fotovoltaica cuenta con un Plan de Mantenimiento. \n\nAclaraciones para la justificación\n- Para justificar el cumplimiento de este criterio se deberá indicar en qué Documento Complementario figura el Plan de Mantenimiento de la intervención correspondiente. El Plan de Mantenimiento deberá contener la descripción de las operaciones que se deben realizarlas, su periodicidad y el tipo de personal que debe realizarlas.  \n- Para el caso de un Plan de mantenimiento del conjunto del edificio en cuanto a operaciones relativas a estructura, fachadas, cubiertas, instalación de suministro eléctrico, instalación de suministro de agua e instalación de evacuación de aguas, se puede utilizar la herramienta POMEES: Aplicación gratuita on line que permite generar un programa de mantenimiento para edificios de viviendas existentes. El programa de mantenimiento que se genera ofrece fichas editables con las operaciones de uso y mantenimiento, así como un gestor de mantenimiento. Este gestor es un calendario de las operaciones programadas a 10 años que permite un manejo ágil de la información."]
[]
["MATERIAL DE CONSULTA"]
[]
[null,"https://www.five.es/productos/herramientas-on-line/pomees/"]

{"sheet":"I4. CRITERIOS E INTERVENCIONES","index":4,"n_rows":35,"n_cols":15,"rows_kept":35,"cut":false,"hidden":false,"merged":[[34,1,34,3],[3,5,3,14],[3,1,3,3]]}
[]
[]
[]
[null,"I. SELECCIÓN DE INTERVENCIÓN/ES",null,null,null,"II. CRITERIOS"]
[]
[null,"N°","COD","INTERVENCIÓN",null,"1. VERSATILIDAD","2. CONVERTIBILIDAD","3. CAPACIDAD DE AMPLIACIÓN","4. FACILIDAD DE ACCESO A COMPONENTES Y SERVICIOS","5. INDEPENDENCIA \nY CONEXIONES REVERSIBLES","6. EVITAR TRATAMIENTOS Y ACABADOS INNECESARIOS","7. APOYO A \nECONOMÍA\nCIRCULAR","8. EFICIENCIA EN EL PROCESO CONSTRUCTIVO","9. SEGURIDAD AL DESMONTAR","10. DURABILIDAD"]
[]
[null,null,"EI","Instalaciones"]
[null,1,"EIS","Instalaciones de redes de saneamiento y evacuación de aguas",null," ",null,null,"SÍ","SÍ",null,"SÍ","SÍ",null,"SÍ"]
[null,2,"EIF","Instalaciones abastecimiento y suministro de agua",null,null,null,null,"SÍ","SÍ",null,"SÍ","SÍ",null,"SÍ"]
[null,3,"EIE","Instalaciones de electricidad",null,null,null,null,"SÍ","SÍ",null,"SÍ",null,null,"SÍ"]
[null,4,"EIL","Instalaciones de iluminación y alumbrado",null,null,null,null,null,"SÍ",null,"SÍ",null,null,"SÍ"]
[null,5,"EIN","Instalaciones de captación solar fotovoltaica",null,null,null,null,null,"SÍ",null,"SÍ",null,"SÍ","SÍ"]
[null,6,"EIM","Instalaciones de agua caliente sanitaria",null,null,null,null,null,null,null,"SÍ",null,"SÍ","SÍ"]
[null,7,"EIC","Instalaciones de calefacción",null,null,null,null,"SÍ","SÍ",null,"SÍ","SÍ","SÍ","SÍ"]
[null,8,"EIB","Instalaciones de climatización",null,null,null,null,"SÍ","SÍ",null,"SÍ","SÍ","SÍ","SÍ"]
[null,9,"EIV","Ventilación y extracción",null,null,null,null,"SÍ","SÍ",null,"SÍ","SÍ","SÍ","SÍ"]
[null,null,"EC ","Cimientos y elementos de contención"]
[null,10,"EC","Cimientos y elementos de contención",null,null,null,null,null,null,null,"SÍ",null,null,"SÍ"]
[null,null,"EE","Estructuras"]
[null,11,"EE","Estructuras",null,null,null,null,"SÍ","SÍ","SÍ","SÍ","SÍ","SÍ","SÍ"]
[null,null,"EQ","Cubiertas"]
[null,12,"EQ","Cubiertas",null,null,null,null,null,"SÍ","SÍ","SÍ","SÍ","SÍ","SÍ"]
[null,null,"EF","Fachadas y Particiones"]
[null,13,"EFC","Fachadas",null,null,null,null,null,"SÍ","SÍ","SÍ","SÍ","SÍ","SÍ"]
[null,14,"EFP","Particiones",null,null,null,null,null,"SÍ","SÍ","SÍ","SÍ","SÍ","SÍ"]
[null,15,"EFS","Defensas",null,null,null,null,null,null,null,"SÍ","SÍ","SÍ","SÍ"]
[null,16,"EFT","Carpintería",null,null,null,null,null,null,null,"SÍ","SÍ","SÍ","SÍ"]
[null,null,"ST","Suelos y techos"]
[null,17,"STS","Suelos",null,null,null,null,null,"SÍ","SÍ","SÍ","SÍ","SÍ","SÍ"]
[null,18,"STT","Techos",null,null,null,null,null,"SÍ","SÍ","SÍ","SÍ","SÍ","SÍ"]
[null,null,"ES","Espacios "]
[null,19,"ES","Espacios",null,"SÍ","SÍ","SÍ"]
[]
[null,"Cantidad de intervenciones evaluables por criterio",null,null,null,{"$f":"COUNTIF(F8:F33,\"SÍ\")","v":1},1,1,7,14,6,18,13,13,18]

{"sheet":"D1. DATOS DEL PROYECTO","index":5,"n_rows":45,"n_cols":15,"rows_kept":45,"cut":false,"hidden":false,"merged":[[6,2,7,8],[19,2,19,8],[23,2,23,8],[41,0,41,10],[2,0,2,13],[16,2,17,13],[29,0,29,13],[4,0,4,12],[6,0,7,0],[13,12,13,13],[9,4,9,13],[6,10,7,10],[6,12,7,13],[13,4,13,8],[11,4,11,13],[36,0,36,13],[34,0,34,13],[42,0,43,14],[44,0,44,13],[25,2,25,13],[27,6,27,10],[31,2,31,13],[33,2,33,13],[35,2,35,13],[27,2,27,4],[37,8,37,10],[37,2,37,6],[37,12,37,13],[27,12,27,13],[41,12,41,13],[19,12,19,13],[21,0,21,13],[45,0,45,14],[46,0,47,13],[8,0,8,13],[10,0,10,13],[12,0,12,13],[14,0,14,13],[15,2,15,13],[18,0,18,13],[20,0,20,13],[22,0,22,13],[24,0,24,13],[26,0,26,13],[30,0,30,14],[32,0,32,13]]}
[]
[]
["D1. DATOS DEL PROYECTO DE REHABILITACIÓN"]
[]
["DATOS DEL EDIFICIO"]
[]
["TIPO DE EDIFICIO RESIDENCIAL",null,null,null,null,null,null,null,null,null,"REFERENCIA CATASTRAL"]
[]
[]
["UBICACIÓN",null,"Municipio:"]
[]
[null,null,"Vía:"]
[]
[null,null,"N°:",null,null,null,null,null,null,null,"CP:"]
[]
[null,null,"Otros datos necesarios para ubicar adecuadamente el edificio:"]
[]
[]
[null,null,null,null,null,null,null,null,null,null,null,null,null,null,"FA"]
["TIPO DE PROPIEDAD",null,null,null,null,null,null,null,null,null,"N° DE VIVIENDAS"]
[]
["DATOS DEL PROYECTO / MEMORIA"]
[]
["TIPO DE DOCUMENTO"]
[]
["TÍTULO"]
[]
["FECHA (dd/mm/aa)",null,null,null,null,null,"FECHA DE VISADO (si dispone)"]
[]
["DATOS DEL PERSONAL REDACTOR DEL PROYECTO / MEMORIA Y DE LA PRESENTE FICHA"]
[]
["NOMBRE"]
[]
["APELLIDOS"]
[]
["E-MAIL"]
[]
["NIF",null,null,null,null,null,null,null,"TELÉFONO"]
[]
[]
[]
["¿Existen otras personas redactoras del proyecto / memoria? "]
[]
[]
["OBSERVACIONES"]

{"sheet":"D2. SELECCION DE INTERVENCIONES","index":6,"n_rows":35,"n_cols":6,"rows_kept":35,"cut":false,"hidden":false,"merged":[[2,1,2,5],[34,1,35,5]]}
[null,null,null,null,"Más info."]
[]
[null,"D2. SELECCIÓN DE INTERVENCIONES QUE CONTEMPLA EL PROYECTO DE REHABILITACIÓN"]
[]
[null,"N°","COD","INTERVENCIÓN","INFO.","¿SE INTERVENDRÁ?"]
[null,null,"EI","Instalaciones"]
[null,1,"EIS","Instalaciones de redes de saneamiento y evacuación de aguas","Más info.","NO"]
[null,2,"EIF","Instalaciones abastecimiento y suministro de agua","Más info.","NO"]
[null,3,"EIE","Instalaciones de electricidad","Más info.","NO"]
[null,4,"EIL","Instalaciones de iluminación y alumbrado","Más info.","NO"]
[null,5,"EIN","Instalaciones de captación solar fotovoltaica","Más info.","NO"]
[null,6,"EIM","Instalaciones de agua caliente sanitaria","Más info.","NO"]
[null,7,"EIC","Instalaciones de calefacción","Más info.","NO"]
[null,8,"EIB","Instalaciones de climatización","Más info.","NO"]
[null,9,"EIV","Ventilación y extracción","Más info.","NO"]
[null,null,"EC ","Cimientos y elementos de contención"]
[null,10,"EC","Cimientos y elementos de contención","Más info.","NO"]
[null,null,"EE","Estructuras"]
[null,11,"EE","Estructuras","Más info.","NO"]
[null,null,"EQ","Cubiertas"]
[null,12,"EQ","Cubiertas","Más info.","NO"]
[null,null,"EF","Fachadas y Particiones"]
[null,13,"EFC","Fachadas","Más info.","NO"]
[null,14,"EFP","Particiones","Más info.","NO"]
[null,15,"EFS","Defensas","Más info.","NO"]
[null,16,"EFT","Carpintería","Más info.","NO"]
[null,null,"ST","Suelos y techos"]
[null,17,"STS","Suelos","Más info.","NO"]
[null,18,"STT","Techos","Más info.","NO"]
[null,null,"ES","Espacios"]
[null,19,"ES","Espacios","Más info.","NO"]
[null,null,null,null,"Más info.","Más info."]
[]
[null,null,null,null,"Más info."]
[null,"Nota: Las intervenciones seleccionadas deberán corresponder con la memoria o proyecto de rehabilitación. La justificación de cada intervención seleccionada y con puntuación deberá ser referenciada en el criterio respectivo (documento, capítulo, párrafo, etc.)"]

{"sheet":"3.EVALUACION","index":7,"n_rows":33,"n_cols":14,"rows_kept":33,"cut":false,"hidden":true,"merged":[[0,0,0,3],[0,7,0,13]]}
["I. SELECCIÓN DE INTERVENCIÓN/ES",null,null,null,null,null,null,"II. CRITERIOS"]
["N°","COD",null,"INTERVENCIÓN","1. VERSATILIDAD","2. CONVERTIBILIDAD","3. CAPACIDAD DE AMPLIACIÓN","4. FACILIDAD DE ACCESO A COMPONENTES Y SERVICIOS","5. INDEPENDENCIA \nY CONEXIONES REVERSIBLES","6. EVITAR TRATAMIENTOS Y ACABADOS INNECESARIOS","7. APOYO A ECONOMÍA CIRCULAR","8. EFICIENCIA EN EL PROCESO CONSTRUCTIVO","9. SEGURIDAD AL DESMONTAR","10. DURABILIDAD"]
["EI","Instalaciones"]
[1,"EIS",null,"Instalaciones de redes de saneamiento y evacuación de aguas",{"$f":"IF(AND('D2. SELECCION DE INTERVENCIONES'!$F7=\"SÍ\",'I4. CRITERIOS E INTERVENCIONES'!F9=\"SÍ\"),\"EVALUAR\",\"\")","v":""},{"$f":"IF(AND('D2. SELECCION DE INTERVENCIONES'!$F7=\"SÍ\",'I4. CRITERIOS E INTERVENCIONES'!G9=\"SÍ\"),\"EVALUAR\",\"\")","v":""},{"$f":"IF(AND('D2. SELECCION DE INTERVENCIONES'!$F7=\"SÍ\",'I4. CRITERIOS E INTERVENCIONES'!H9=\"SÍ\"),\"EVALUAR\",\"\")","v":""},{"$f":"IF(AND('D2. SELECCION DE INTERVENCIONES'!$F7=\"SÍ\",'I4. CRITERIOS E INTERVENCIONES'!I9=\"SÍ\"),\"EVALUAR\",\"\")","v":""},{"$f":"IF(AND('D2. SELECCION DE INTERVENCIONES'!$F7=\"SÍ\",'I4. CRITERIOS E INTERVENCIONES'!J9=\"SÍ\"),\"EVALUAR\",\"\")","v":""},{"$f":"IF(AND('D2. SELECCION DE INTERVENCIONES'!$F7=\"SÍ\",'I4. CRITERIOS E INTERVENCIONES'!K9=\"SÍ\"),\"EVALUAR\",\"\")","v":""},{"$f":"IF(AND('D2. SELECCION DE INTERVENCIONES'!$F7=\"SÍ\",'I4. CRITERIOS E INTERVENCIONES'!L9=\"SÍ\"),\"EVALUAR\",\"\")","v":""},{"$f":"IF(AND('D2. SELECCION DE INTERVENCIONES'!$F7=\"SÍ\",'I4. CRITERIOS E INTERVENCIONES'!M9=\"SÍ\"),\"EVALUAR\",\"\")","v":""},{"$f":"IF(AND('D2. SELECCION DE INTERVENCIONES'!$F7=\"SÍ\",'I4. CRITERIOS E INTERVENCIONES'!N9=\"SÍ\"),\"EVALUAR\",\"\")","v":""},{"$f":"IF(AND('D2. SELECCION DE INTERVENCIONES'!$F7=\"SÍ\",'I4. CRITERIOS E INTERVENCIONES'!O9=\"SÍ\"),\"EVALUAR\",\"\")","v":""}]
[2,"EIF",null,"Instalaciones abastecimiento y suministro de agua",{"$f":"IF(AND('D2. SELECCION DE INTERVENCIONES'!$F8=\"SÍ\",'I4. CRITERIOS E INTERVENCIONES'!F10=\"SÍ\"),\"EVALUAR\",\"\")","v":""},{"$f":"IF(AND('D2. SELECCION DE INTERVENCIONES'!$F8=\"SÍ\",'I4. CRITERIOS E INTERVENCIONES'!G10=\"SÍ\"),\"EVALUAR\",\"\")","v":""},{"$f":"IF(AND('D2. SELECCION DE INTERVENCIONES'!$F8=\"SÍ\",'I4. CRITERIOS E INTERVENCIONES'!H10=\"SÍ\"),\"EVALUAR\",\"\")","v":""},{"$f":"IF(AND('D2. SELECCION DE INTERVENCIONES'!$F8=\"SÍ\",'I4. CRITERIOS E INTERVENCIONES'!I10=\"SÍ\"),\"EVALUAR\",\"\")","v":""},{"$f":"IF(AND('D2. SELECCION DE INTERVENCIONES'!$F8=\"SÍ\",'I4. CRITERIOS E INTERVENCIONES'!J10=\"SÍ\"),\"EVALUAR\",\"\")","v":""},{"$f":"IF(AND('D2. SELECCION DE INTERVENCIONES'!$F8=\"SÍ\",'I4. CRITERIOS E INTERVENCIONES'!K10=\"SÍ\"),\"EVALUAR\",\"\")","v":""},{"$f":"IF(AND('D2. SELECCION DE INTERVENCIONES'!$F8=\"SÍ\",'I4. CRITERIOS E INTERVENCIONES'!L10=\"SÍ\"),\"EVALUAR\",\"\")","v":""},{"$f":"IF(AND('D2. SELECCION DE INTERVENCIONES'!$F8=\"SÍ\",'I4. CRITERIOS E INTERVENCIONES'!M10=\"SÍ\"),\"EVALUAR\",\"\")","v":""},{"$f":"IF(AND('D2. SELECCION DE INTERVENCIONES'!$F8=\"SÍ\",'I4. CRITERIOS E INTERVENCIONES'!N10=\"SÍ\"),\"EVALUAR\",\"\")","v":""},{"$f":"IF(AND('D2. SELECCION DE INTERVENCIONES'!$F8=\"SÍ\",'I4. CRITERIOS E INTERVENCIONES'!O10=\"SÍ\"),\"EVALUAR\",\"\")","v":""}]
[3,"EIE",null,"Instalaciones de electricidad",{"$f":"IF(AND('D2. SELECCION DE INTERVENCIONES'!$F9=\"SÍ\",'I4. CRITERIOS E INTERVENCIONES'!F11=\"SÍ\"),\"EVALUAR\",\"\")","v":""},{"$f":"IF(AND('D2. SELECCION DE INTERVENCIONES'!$F9=\"SÍ\",'I4. CRITERIOS E INTERVENCIONES'!G11=\"SÍ\"),\"EVALUAR\",\"\")","v":""},{"$f":"IF(AND('D2. SELECCION DE INTERVENCIONES'!$F9=\"SÍ\",'I4. CRITERIOS E INTERVENCIONES'!H11=\"SÍ\"),\"EVALUAR\",\"\")","v":""},{"$f":"IF(AND('D2. SELECCION DE INTERVENCIONES'!$F9=\"SÍ\",'I4. CRITERIOS E INTERVENCIONES'!I11=\"SÍ\"),\"EVALUAR\",\"\")","v":""},{"$f":"IF(AND('D2. SELECCION DE INTERVENCIONES'!$F9=\"SÍ\",'I4. CRITERIOS E INTERVENCIONES'!J11=\"SÍ\"),\"EVALUAR\",\"\")","v":""},{"$f":"IF(AND('D2. SELECCION DE INTERVENCIONES'!$F9=\"SÍ\",'I4. CRITERIOS E INTERVENCIONES'!K11=\"SÍ\"),\"EVALUAR\",\"\")","v":""},{"$f":"IF(AND('D2. SELECCION DE INTERVENCIONES'!$F9=\"SÍ\",'I4. CRITERIOS E INTERVENCIONES'!L11=\"SÍ\"),\"EVALUAR\",\"\")","v":""},{"$f":"IF(AND('D2. SELECCION DE INTERVENCIONES'!$F9=\"SÍ\",'I4. CRITERIOS E INTERVENCIONES'!M11=\"SÍ\"),\"EVALUAR\",\"\")","v":""},{"$f":"IF(AND('D2. SELECCION DE INTERVENCIONES'!$F9=\"SÍ\",'I4. CRITERIOS E INTERVENCIONES'!N11=\"SÍ\"),\"EVALUAR\",\"\")","v":""},{"$f":"IF(AND('D2. SELECCION DE INTERVENCIONES'!$F9=\"SÍ\",'I4. CRITERIOS E INTERVENCIONES'!O11=\"SÍ\"),\"EVALUAR\",\"\")","v":""}]
[4,"EIL",null,"Instalaciones de iluminación y alumbrado",{"$f":"IF(AND('D2. SELECCION DE INTERVENCIONES'!$F10=\"SÍ\",'I4. CRITERIOS E INTERVENCIONES'!F12=\"SÍ\"),\"EVALUAR\",\"\")","v":""},{"$f":"IF(AND('D2. SELECCION DE INTERVENCIONES'!$F10=\"SÍ\",'I4. CRITERIOS E INTERVENCIONES'!G12=\"SÍ\"),\"EVALUAR\",\"\")","v":""},{"$f":"IF(AND('D2. SELECCION DE INTERVENCIONES'!$F10=\"SÍ\",'I4. CRITERIOS E INTERVENCIONES'!H12=\"SÍ\"),\"EVALUAR\",\"\")","v":""},{"$f":"IF(AND('D2. SELECCION DE INTERVENCIONES'!$F10=\"SÍ\",'I4. CRITERIOS E INTERVENCIONES'!I12=\"SÍ\"),\"EVALUAR\",\"\")","v":""},{"$f":"IF(AND('D2. SELECCION DE INTERVENCIONES'!$F10=\"SÍ\",'I4. CRITERIOS E INTERVENCIONES'!J12=\"SÍ\"),\"EVALUAR\",\"\")","v":""},{"$f":"IF(AND('D2. SELECCION DE INTERVENCIONES'!$F10=\"SÍ\",'I4. CRITERIOS E INTERVENCIONES'!K12=\"SÍ\"),\"EVALUAR\",\"\")","v":""},{"$f":"IF(AND('D2. SELECCION DE INTERVENCIONES'!$F10=\"SÍ\",'I4. CRITERIOS E INTERVENCIONES'!L12=\"SÍ\"),\"EVALUAR\",\"\")","v":""},{"$f":"IF(AND('D2. SELECCION DE INTERVENCIONES'!$F10=\"SÍ\",'I4. CRITERIOS E INTERVENCIONES'!M12=\"SÍ\"),\"EVALUAR\",\"\")","v":""},{"$f":"IF(AND('D2. SELECCION DE INTERVENCIONES'!$F10=\"SÍ\",'I4. CRITERIOS E INTERVENCIONES'!N12=\"SÍ\"),\"EVALUAR\",\"\")","v":""},{"$f":"IF(AND('D2. SELECCION DE INTERVENCIONES'!$F10=\"SÍ\",'I4. CRITERIOS E INTERVENCIONES'!O12=\"SÍ\"),\"EVALUAR\",\"\")","v":""}]
[5,"EIN",null,"Instalaciones de captación solar fotovoltaica",{"$f":"IF(AND('D2. SELECCION DE INTERVENCIONES'!$F11=\"SÍ\",'I4. CRITERIOS E INTERVENCIONES'!F13=\"SÍ\"),\"EVALUAR\",\"\")","v":""},{"$f":"IF(AND('D2. SELECCION DE INTERVENCIONES'!$F11=\"SÍ\",'I4. CRITERIOS E INTERVENCIONES'!G13=\"SÍ\"),\"EVALUAR\",\"\")","v":""},{"$f":"IF(AND('D2. SELECCION DE INTERVENCIONES'!$F11=\"SÍ\",'I4. CRITERIOS E INTERVENCIONES'!H13=\"SÍ\"),\"EVALUAR\",\"\")","v":""},{"$f":"IF(AND('D2. SELECCION DE INTERVENCIONES'!$F11=\"SÍ\",'I4. CRITERIOS E INTERVENCIONES'!I13=\"SÍ\"),\"EVALUAR\",\"\")","v":""},{"$f":"IF(AND('D2. SELECCION DE INTERVENCIONES'!$F11=\"SÍ\",'I4. CRITERIOS E INTERVENCIONES'!J13=\"SÍ\"),\"EVALUAR\",\"\")","v":""},{"$f":"IF(AND('D2. SELECCION DE INTERVENCIONES'!$F11=\"SÍ\",'I4. CRITERIOS E INTERVENCIONES'!K13=\"SÍ\"),\"EVALUAR\",\"\")","v":""},{"$f":"IF(AND('D2. SELECCION DE INTERVENCIONES'!$F11=\"SÍ\",'I4. CRITERIOS E INTERVENCIONES'!L13=\"SÍ\"),\"EVALUAR\",\"\")","v":""},{"$f":"IF(AND('D2. SELECCION DE INTERVENCIONES'!$F11=\"SÍ\",'I4. CRITERIOS E INTERVENCIONES'!M13=\"SÍ\"),\"EVALUAR\",\"\")","v":""},{"$f":"IF(AND('D2. SELECCION DE INTERVENCIONES'!$F11=\"SÍ\",'I4. CRITERIOS E INTERVENCIONES'!N13=\"SÍ\"),\"EVALUAR\",\"\")","v":""},{"$f":"IF(AND('D2. SELECCION DE INTERVENCIONES'!$F11=\"SÍ\",'I4. CRITERIOS E INTERVENCIONES'!O13=\"SÍ\"),\"EVALUAR\",\"\")","v":""}]
[6,"EIM",null,"Instalaciones de agua caliente sanitaria",{"$f":"IF(AND('D2. SELECCION DE INTERVENCIONES'!$F12=\"SÍ\",'I4. CRITERIOS E INTERVENCIONES'!F14=\"SÍ\"),\"EVALUAR\",\"\")","v":""},{"$f":"IF(AND('D2. SELECCION DE INTERVENCIONES'!$F12=\"SÍ\",'I4. CRITERIOS E INTERVENCIONES'!G14=\"SÍ\"),\"EVALUAR\",\"\")","v":""},{"$f":"IF(AND('D2. SELECCION DE INTERVENCIONES'!$F12=\"SÍ\",'I4. CRITERIOS E INTERVENCIONES'!H14=\"SÍ\"),\"EVALUAR\",\"\")","v":""},{"$f":"IF(AND('D2. SELECCION DE INTERVENCIONES'!$F12=\"SÍ\",'I4. CRITERIOS E INTERVENCIONES'!I14=\"SÍ\"),\"EVALUAR\",\"\")","v":""},{"$f":"IF(AND('D2. SELECCION DE INTERVENCIONES'!$F12=\"SÍ\",'I4. CRITERIOS E INTERVENCIONES'!J14=\"SÍ\"),\"EVALUAR\",\"\")","v":""},{"$f":"IF(AND('D2. SELECCION DE INTERVENCIONES'!$F12=\"SÍ\",'I4. CRITERIOS E INTERVENCIONES'!K14=\"SÍ\"),\"EVALUAR\",\"\")","v":""},{"$f":"IF(AND('D2. SELECCION DE INTERVENCIONES'!$F12=\"SÍ\",'I4. CRITERIOS E INTERVENCIONES'!L14=\"SÍ\"),\"EVALUAR\",\"\")","v":""},{"$f":"IF(AND('D2. SELECCION DE INTERVENCIONES'!$F12=\"SÍ\",'I4. CRITERIOS E INTERVENCIONES'!M14=\"SÍ\"),\"EVALUAR\",\"\")","v":""},{"$f":"IF(AND('D2. SELECCION DE INTERVENCIONES'!$F12=\"SÍ\",'I4. CRITERIOS E INTERVENCIONES'!N14=\"SÍ\"),\"EVALUAR\",\"\")","v":""},{"$f":"IF(AND('D2. SELECCION DE INTERVENCIONES'!$F12=\"SÍ\",'I4. CRITERIOS E INTERVENCIONES'!O14=\"SÍ\"),\"EVALUAR\",\"\")","v":""}]
[7,"EIC",null,"Instalaciones de calefacción",{"$f":"IF(AND('D2. SELECCION DE INTERVENCIONES'!$F13=\"SÍ\",'I4. CRITERIOS E INTERVENCIONES'!F15=\"SÍ\"),\"EVALUAR\",\"\")","v":""},{"$f":"IF(AND('D2. SELECCION DE INTERVENCIONES'!$F13=\"SÍ\",'I4. CRITERIOS E INTERVENCIONES'!G15=\"SÍ\"),\"EVALUAR\",\"\")","v":""},{"$f":"IF(AND('D2. SELECCION DE INTERVENCIONES'!$F13=\"SÍ\",'I4. CRITERIOS E INTERVENCIONES'!H15=\"SÍ\"),\"EVALUAR\",\"\")","v":""},{"$f":"IF(AND('D2. SELECCION DE INTERVENCIONES'!$F13=\"SÍ\",'I4. CRITERIOS E INTERVENCIONES'!I15=\"SÍ\"),\"EVALUAR\",\"\")","v":""},{"$f":"IF(AND('D2. SELECCION DE INTERVENCIONES'!$F13=\"SÍ\",'I4. CRITERIOS E INTERVENCIONES'!J15=\"SÍ\"),\"EVALUAR\",\"\")","v":""},{"$f":"IF(AND('D2. SELECCION DE INTERVENCIONES'!$F13=\"SÍ\",'I4. CRITERIOS E INTERVENCIONES'!K15=\"SÍ\"),\"EVALUAR\",\"\")","v":""},{"$f":"IF(AND('D2. SELECCION DE INTERVENCIONES'!$F13=\"SÍ\",'I4. CRITERIOS E INTERVENCIONES'!L15=\"SÍ\"),\"EVALUAR\",\"\")","v":""},{"$f":"IF(AND('D2. SELECCION DE INTERVENCIONES'!$F13=\"SÍ\",'I4. CRITERIOS E INTERVENCIONES'!M15=\"SÍ\"),\"EVALUAR\",\"\")","v":""},{"$f":"IF(AND('D2. SELECCION DE INTERVENCIONES'!$F13=\"SÍ\",'I4. CRITERIOS E INTERVENCIONES'!N15=\"SÍ\"),\"EVALUAR\",\"\")","v":""},{"$f":"IF(AND('D2. SELECCION DE INTERVENCIONES'!$F13=\"SÍ\",'I4. CRITERIOS E INTERVENCIONES'!O15=\"SÍ\"),\"EVALUAR\",\"\")","v":""}]
[8,"EIB",null,"Instalaciones de climatización",{"$f":"IF(AND('D2. SELECCION DE INTERVENCIONES'!$F14=\"SÍ\",'I4. CRITERIOS E INTERVENCIONES'!F16=\"SÍ\"),\"EVALUAR\",\"\")","v":""},{"$f":"IF(AND('D2. SELECCION DE INTERVENCIONES'!$F14=\"SÍ\",'I4. CRITERIOS E INTERVENCIONES'!G16=\"SÍ\"),\"EVALUAR\",\"\")","v":""},{"$f":"IF(AND('D2. SELECCION DE INTERVENCIONES'!$F14=\"SÍ\",'I4. CRITERIOS E INTERVENCIONES'!H16=\"SÍ\"),\"EVALUAR\",\"\")","v":""},{"$f":"IF(AND('D2. SELECCION DE INTERVENCIONES'!$F14=\"SÍ\",'I4. CRITERIOS E INTERVENCIONES'!I16=\"SÍ\"),\"EVALUAR\",\"\")","v":""},{"$f":"IF(AND('D2. SELECCION DE INTERVENCIONES'!$F14=\"SÍ\",'I4. CRITERIOS E INTERVENCIONES'!J16=\"SÍ\"),\"EVALUAR\",\"\")","v":""},{"$f":"IF(AND('D2. SELECCION DE INTERVENCIONES'!$F14=\"SÍ\",'I4. CRITERIOS E INTERVENCIONES'!K16=\"SÍ\"),\"EVALUAR\",\"\")","v":""},{"$f":"IF(AND('D2. SELECCION DE INTERVENCIONES'!$F14=\"SÍ\",'I4. CRITERIOS E INTERVENCIONES'!L16=\"SÍ\"),\"EVALUAR\",\"\")","v":""},{"$f":"IF(AND('D2. SELECCION DE INTERVENCIONES'!$F14=\"SÍ\",'I4. CRITERIOS E INTERVENCIONES'!M16=\"SÍ\"),\"EVALUAR\",\"\")","v":""},{"$f":"IF(AND('D2. SELECCION DE INTERVENCIONES'!$F14=\"SÍ\",'I4. CRITERIOS E INTERVENCIONES'!N16=\"SÍ\"),\"EVALUAR\",\"\")","v":""},{"$f":"IF(AND('D2. SELECCION DE INTERVENCIONES'!$F14=\"SÍ\",'I4. CRITERIOS E INTERVENCIONES'!O16=\"SÍ\"),\"EVALUAR\",\"\")","v":""}]
[9,"EIV",null,"Ventilación y extracción",{"$f":"IF(AND('D2. SELECCION DE INTERVENCIONES'!$F15=\"SÍ\",'I4. CRITERIOS E INTERVENCIONES'!F17=\"SÍ\"),\"EVALUAR\",\"\")","v":""},{"$f":"IF(AND('D2. SELECCION DE INTERVENCIONES'!$F15=\"SÍ\",'I4. CRITERIOS E INTERVENCIONES'!G17=\"SÍ\"),\"EVALUAR\",\"\")","v":""},{"$f":"IF(AND('D2. SELECCION DE INTERVENCIONES'!$F15=\"SÍ\",'I4. CRITERIOS E INTERVENCIONES'!H17=\"SÍ\"),\"EVALUAR\",\"\")","v":""},{"$f":"IF(AND('D2. SELECCION DE INTERVENCIONES'!$F15=\"SÍ\",'I4. CRITERIOS E INTERVENCIONES'!I17=\"SÍ\"),\"EVALUAR\",\"\")","v":""},{"$f":"IF(AND('D2. SELECCION DE INTERVENCIONES'!$F15=\"SÍ\",'I4. CRITERIOS E INTERVENCIONES'!J17=\"SÍ\"),\"EVALUAR\",\"\")","v":""},{"$f":"IF(AND('D2. SELECCION DE INTERVENCIONES'!$F15=\"SÍ\",'I4. CRITERIOS E INTERVENCIONES'!K17=\"SÍ\"),\"EVALUAR\",\"\")","v":""},{"$f":"IF(AND('D2. SELECCION DE INTERVENCIONES'!$F15=\"SÍ\",'I4. CRITERIOS E INTERVENCIONES'!L17=\"SÍ\"),\"EVALUAR\",\"\")","v":""},{"$f":"IF(AND('D2. SELECCION DE INTERVENCIONES'!$F15=\"SÍ\",'I4. CRITERIOS E INTERVENCIONES'!M17=\"SÍ\"),\"EVALUAR\",\"\")","v":""},{"$f":"IF(AND('D2. SELECCION DE INTERVENCIONES'!$F15=\"SÍ\",'I4. CRITERIOS E INTERVENCIONES'!N17=\"SÍ\"),\"EVALUAR\",\"\")","v":""},{"$f":"IF(AND('D2. SELECCION DE INTERVENCIONES'!$F15=\"SÍ\",'I4. CRITERIOS E INTERVENCIONES'!O17=\"SÍ\"),\"EVALUAR\",\"\")","v":""}]
["EC ","Cimientos y elementos de contención"]
[10,"EC",null,"Cimientos y elementos de contención",{"$f":"IF(AND('D2. SELECCION DE INTERVENCIONES'!$F17=\"SÍ\",'I4. CRITERIOS E INTERVENCIONES'!F19=\"SÍ\"),\"EVALUAR\",\"\")","v":""},{"$f":"IF(AND('D2. SELECCION DE INTERVENCIONES'!$F17=\"SÍ\",'I4. CRITERIOS E INTERVENCIONES'!G19=\"SÍ\"),\"EVALUAR\",\"\")","v":""},{"$f":"IF(AND('D2. SELECCION DE INTERVENCIONES'!$F17=\"SÍ\",'I4. CRITERIOS E INTERVENCIONES'!H19=\"SÍ\"),\"EVALUAR\",\"\")","v":""},{"$f":"IF(AND('D2. SELECCION DE INTERVENCIONES'!$F17=\"SÍ\",'I4. CRITERIOS E INTERVENCIONES'!I19=\"SÍ\"),\"EVALUAR\",\"\")","v":""},{"$f":"IF(AND('D2. SELECCION DE INTERVENCIONES'!$F17=\"SÍ\",'I4. CRITERIOS E INTERVENCIONES'!J19=\"SÍ\"),\"EVALUAR\",\"\")","v":""},{"$f":"IF(AND('D2. SELECCION DE INTERVENCIONES'!$F17=\"SÍ\",'I4. CRITERIOS E INTERVENCIONES'!K19=\"SÍ\"),\"EVALUAR\",\"\")","v":""},{"$f":"IF(AND('D2. SELECCION DE INTERVENCIONES'!$F17=\"SÍ\",'I4. CRITERIOS E INTERVENCIONES'!L19=\"SÍ\"),\"EVALUAR\",\"\")","v":""},{"$f":"IF(AND('D2. SELECCION DE INTERVENCIONES'!$F17=\"SÍ\",'I4. CRITERIOS E INTERVENCIONES'!M19=\"SÍ\"),\"EVALUAR\",\"\")","v":""},{"$f":"IF(AND('D2. SELECCION DE INTERVENCIONES'!$F17=\"SÍ\",'I4. CRITERIOS E INTERVENCIONES'!N19=\"SÍ\"),\"EVALUAR\",\"\")","v":""},{"$f":"IF(AND('D2. SELECCION DE INTERVENCIONES'!$F17=\"SÍ\",'I4. CRITERIOS E INTERVENCIONES'!O19=\"SÍ\"),\"EVALUAR\",\"\")","v":""}]
["EE","Estructuras"]
[11,"EE",null,"Estructuras",{"$f":"IF(AND('D2. SELECCION DE INTERVENCIONES'!$F19=\"SÍ\",'I4. CRITERIOS E INTERVENCIONES'!F21=\"SÍ\"),\"EVALUAR\",\"\")","v":""},{"$f":"IF(AND('D2. SELECCION DE INTERVENCIONES'!$F19=\"SÍ\",'I4. CRITERIOS E INTERVENCIONES'!G21=\"SÍ\"),\"EVALUAR\",\"\")","v":""},{"$f":"IF(AND('D2. SELECCION DE INTERVENCIONES'!$F19=\"SÍ\",'I4. CRITERIOS E INTERVENCIONES'!H21=\"SÍ\"),\"EVALUAR\",\"\")","v":""},{"$f":"IF(AND('D2. SELECCION DE INTERVENCIONES'!$F19=\"SÍ\",'I4. CRITERIOS E INTERVENCIONES'!I21=\"SÍ\"),\"EVALUAR\",\"\")","v":""},{"$f":"IF(AND('D2. SELECCION DE INTERVENCIONES'!$F19=\"SÍ\",'I4. CRITERIOS E INTERVENCIONES'!J21=\"SÍ\"),\"EVALUAR\",\"\")","v":""},{"$f":"IF(AND('D2. SELECCION DE INTERVENCIONES'!$F19=\"SÍ\",'I4. CRITERIOS E INTERVENCIONES'!K21=\"SÍ\"),\"EVALUAR\",\"\")","v":""},{"$f":"IF(AND('D2. SELECCION DE INTERVENCIONES'!$F19=\"SÍ\",'I4. CRITERIOS E INTERVENCIONES'!L21=\"SÍ\"),\"EVALUAR\",\"\")","v":""},{"$f":"IF(AND('D2. SELECCION DE INTERVENCIONES'!$F19=\"SÍ\",'I4. CRITERIOS E INTERVENCIONES'!M21=\"SÍ\"),\"EVALUAR\",\"\")","v":""},{"$f":"IF(AND('D2. SELECCION DE INTERVENCIONES'!$F19=\"SÍ\",'I4. CRITERIOS E INTERVENCIONES'!N21=\"SÍ\"),\"EVALUAR\",\"\")","v":""},{"$f":"IF(AND('D2. SELECCION DE INTERVENCIONES'!$F19=\"SÍ\",'I4. CRITERIOS E INTERVENCIONES'!O21=\"SÍ\"),\"EVALUAR\",\"\")","v":""}]
["EQ","Cubiertas"]
[12,"EQ",null,"Cubiertas",{"$f":"IF(AND('D2. SELECCION DE INTERVENCIONES'!$F21=\"SÍ\",'I4. CRITERIOS E INTERVENCIONES'!F23=\"SÍ\"),\"EVALUAR\",\"\")","v":""},{"$f":"IF(AND('D2. SELECCION DE INTERVENCIONES'!$F21=\"SÍ\",'I4. CRITERIOS E INTERVENCIONES'!G23=\"SÍ\"),\"EVALUAR\",\"\")","v":""},{"$f":"IF(AND('D2. SELECCION DE INTERVENCIONES'!$F21=\"SÍ\",'I4. CRITERIOS E INTERVENCIONES'!H23=\"SÍ\"),\"EVALUAR\",\"\")","v":""},{"$f":"IF(AND('D2. SELECCION DE INTERVENCIONES'!$F21=\"SÍ\",'I4. CRITERIOS E INTERVENCIONES'!I23=\"SÍ\"),\"EVALUAR\",\"\")","v":""},{"$f":"IF(AND('D2. SELECCION DE INTERVENCIONES'!$F21=\"SÍ\",'I4. CRITERIOS E INTERVENCIONES'!J23=\"SÍ\"),\"EVALUAR\",\"\")","v":""},{"$f":"IF(AND('D2. SELECCION DE INTERVENCIONES'!$F21=\"SÍ\",'I4. CRITERIOS E INTERVENCIONES'!K23=\"SÍ\"),\"EVALUAR\",\"\")","v":""},{"$f":"IF(AND('D2. SELECCION DE INTERVENCIONES'!$F21=\"SÍ\",'I4. CRITERIOS E INTERVENCIONES'!L23=\"SÍ\"),\"EVALUAR\",\"\")","v":""},{"$f":"IF(AND('D2. SELECCION DE INTERVENCIONES'!$F21=\"SÍ\",'I4. CRITERIOS E INTERVENCIONES'!M23=\"SÍ\"),\"EVALUAR\",\"\")","v":""},{"$f":"IF(AND('D2. SELECCION DE INTERVENCIONES'!$F21=\"SÍ\",'I4. CRITERIOS E INTERVENCIONES'!N23=\"SÍ\"),\"EVALUAR\",\"\")","v":""},{"$f":"IF(AND('D2. SELECCION DE INTERVENCIONES'!$F21=\"SÍ\",'I4. CRITERIOS E INTERVENCIONES'!O23=\"SÍ\"),\"EVALUAR\",\"\")","v":""}]
["EF","Fachadas y Particiones"]
[13,"EFC",null,"Fachadas",{"$f":"IF(AND('D2. SELECCION DE INTERVENCIONES'!$F23=\"SÍ\",'I4. CRITERIOS E INTERVENCIONES'!F25=\"SÍ\"),\"EVALUAR\",\"\")","v":""},{"$f":"IF(AND('D2. SELECCION DE INTERVENCIONES'!$F23=\"SÍ\",'I4. CRITERIOS E INTERVENCIONES'!G25=\"SÍ\"),\"EVALUAR\",\"\")","v":""},{"$f":"IF(AND('D2. SELECCION DE INTERVENCIONES'!$F23=\"SÍ\",'I4. CRITERIOS E INTERVENCIONES'!H25=\"SÍ\"),\"EVALUAR\",\"\")","v":""},{"$f":"IF(AND('D2. SELECCION DE INTERVENCIONES'!$F23=\"SÍ\",'I4. CRITERIOS E INTERVENCIONES'!I25=\"SÍ\"),\"EVALUAR\",\"\")","v":""},{"$f":"IF(AND('D2. SELECCION DE INTERVENCIONES'!$F23=\"SÍ\",'I4. CRITERIOS E INTERVENCIONES'!J25=\"SÍ\"),\"EVALUAR\",\"\")","v":""},{"$f":"IF(AND('D2. SELECCION DE INTERVENCIONES'!$F23=\"SÍ\",'I4. CRITERIOS E INTERVENCIONES'!K25=\"SÍ\"),\"EVALUAR\",\"\")","v":""},{"$f":"IF(AND('D2. SELECCION DE INTERVENCIONES'!$F23=\"SÍ\",'I4. CRITERIOS E INTERVENCIONES'!L25=\"SÍ\"),\"EVALUAR\",\"\")","v":""},{"$f":"IF(AND('D2. SELECCION DE INTERVENCIONES'!$F23=\"SÍ\",'I4. CRITERIOS E INTERVENCIONES'!M25=\"SÍ\"),\"EVALUAR\",\"\")","v":""},{"$f":"IF(AND('D2. SELECCION DE INTERVENCIONES'!$F23=\"SÍ\",'I4. CRITERIOS E INTERVENCIONES'!N25=\"SÍ\"),\"EVALUAR\",\"\")","v":""},{"$f":"IF(AND('D2. SELECCION DE INTERVENCIONES'!$F23=\"SÍ\",'I4. CRITERIOS E INTERVENCIONES'!O25=\"SÍ\"),\"EVALUAR\",\"\")","v":""}]
[14,"EFP",null,"Particiones",{"$f":"IF(AND('D2. SELECCION DE INTERVENCIONES'!$F24=\"SÍ\",'I4. CRITERIOS E INTERVENCIONES'!F26=\"SÍ\"),\"EVALUAR\",\"\")","v":""},{"$f":"IF(AND('D2. SELECCION DE INTERVENCIONES'!$F24=\"SÍ\",'I4. CRITERIOS E INTERVENCIONES'!G26=\"SÍ\"),\"EVALUAR\",\"\")","v":""},{"$f":"IF(AND('D2. SELECCION DE INTERVENCIONES'!$F24=\"SÍ\",'I4. CRITERIOS E INTERVENCIONES'!H26=\"SÍ\"),\"EVALUAR\",\"\")","v":""},{"$f":"IF(AND('D2. SELECCION DE INTERVENCIONES'!$F24=\"SÍ\",'I4. CRITERIOS E INTERVENCIONES'!I26=\"SÍ\"),\"EVALUAR\",\"\")","v":""},{"$f":"IF(AND('D2. SELECCION DE INTERVENCIONES'!$F24=\"SÍ\",'I4. CRITERIOS E INTERVENCIONES'!J26=\"SÍ\"),\"EVALUAR\",\"\")","v":""},{"$f":"IF(AND('D2. SELECCION DE INTERVENCIONES'!$F24=\"SÍ\",'I4. CRITERIOS E INTERVENCIONES'!K26=\"SÍ\"),\"EVALUAR\",\"\")","v":""},{"$f":"IF(AND('D2. SELECCION DE INTERVENCIONES'!$F24=\"SÍ\",'I4. CRITERIOS E INTERVENCIONES'!L26=\"SÍ\"),\"EVALUAR\",\"\")","v":""},{"$f":"IF(AND('D2. SELECCION DE INTERVENCIONES'!$F24=\"SÍ\",'I4. CRITERIOS E INTERVENCIONES'!M26=\"SÍ\"),\"EVALUAR\",\"\")","v":""},{"$f":"IF(AND('D2. SELECCION DE INTERVENCIONES'!$F24=\"SÍ\",'I4. CRITERIOS E INTERVENCIONES'!N26=\"SÍ\"),\"EVALUAR\",\"\")","v":""},{"$f":"IF(AND('D2. SELECCION DE INTERVENCIONES'!$F24=\"SÍ\",'I4. CRITERIOS E INTERVENCIONES'!O26=\"SÍ\"),\"EVALUAR\",\"\")","v":""}]
[15,"EFS",null,"Defensas",{"$f":"IF(AND('D2. SELECCION DE INTERVENCIONES'!$F25=\"SÍ\",'I4. CRITERIOS E INTERVENCIONES'!F27=\"SÍ\"),\"EVALUAR\",\"\")","v":""},{"$f":"IF(AND('D2. SELECCION DE INTERVENCIONES'!$F25=\"SÍ\",'I4. CRITERIOS E INTERVENCIONES'!G27=\"SÍ\"),\"EVALUAR\",\"\")","v":""},{"$f":"IF(AND('D2. SELECCION DE INTERVENCIONES'!$F25=\"SÍ\",'I4. CRITERIOS E INTERVENCIONES'!H27=\"SÍ\"),\"EVALUAR\",\"\")","v":""},{"$f":"IF(AND('D2. SELECCION DE INTERVENCIONES'!$F25=\"SÍ\",'I4. CRITERIOS E INTERVENCIONES'!I27=\"SÍ\"),\"EVALUAR\",\"\")","v":""},{"$f":"IF(AND('D2. SELECCION DE INTERVENCIONES'!$F25=\"SÍ\",'I4. CRITERIOS E INTERVENCIONES'!J27=\"SÍ\"),\"EVALUAR\",\"\")","v":""},{"$f":"IF(AND('D2. SELECCION DE INTERVENCIONES'!$F25=\"SÍ\",'I4. CRITERIOS E INTERVENCIONES'!K27=\"SÍ\"),\"EVALUAR\",\"\")","v":""},{"$f":"IF(AND('D2. SELECCION DE INTERVENCIONES'!$F25=\"SÍ\",'I4. CRITERIOS E INTERVENCIONES'!L27=\"SÍ\"),\"EVALUAR\",\"\")","v":""},{"$f":"IF(AND('D2. SELECCION DE INTERVENCIONES'!$F25=\"SÍ\",'I4. CRITERIOS E INTERVENCIONES'!M27=\"SÍ\"),\"EVALUAR\",\"\")","v":""},{"$f":"IF(AND('D2. SELECCION DE INTERVENCIONES'!$F25=\"SÍ\",'I4. CRITERIOS E INTERVENCIONES'!N27=\"SÍ\"),\"EVALUAR\",\"\")","v":""},{"$f":"IF(AND('D2. SELECCION DE INTERVENCIONES'!$F25=\"SÍ\",'I4. CRITERIOS E INTERVENCIONES'!O27=\"SÍ\"),\"EVALUAR\",\"\")","v":""}]
[16,"EFT",null,"Carpintería",{"$f":"IF(AND('D2. SELECCION DE INTERVENCIONES'!$F26=\"SÍ\",'I4. CRITERIOS E INTERVENCIONES'!F28=\"SÍ\"),\"EVALUAR\",\"\")","v":""},{"$f":"IF(AND('D2. SELECCION DE INTERVENCIONES'!$F26=\"SÍ\",'I4. CRITERIOS E INTERVENCIONES'!G28=\"SÍ\"),\"EVALUAR\",\"\")","v":""},{"$f":"IF(AND('D2. SELECCION DE INTERVENCIONES'!$F26=\"SÍ\",'I4. CRITERIOS E INTERVENCIONES'!H28=\"SÍ\"),\"EVALUAR\",\"\")","v":""},{"$f":"IF(AND('D2. SELECCION DE INTERVENCIONES'!$F26=\"SÍ\",'I4. CRITERIOS E INTERVENCIONES'!I28=\"SÍ\"),\"EVALUAR\",\"\")","v":""},{"$f":"IF(AND('D2. SELECCION DE INTERVENCIONES'!$F26=\"SÍ\",'I4. CRITERIOS E INTERVENCIONES'!J28=\"SÍ\"),\"EVALUAR\",\"\")","v":""},{"$f":"IF(AND('D2. SELECCION DE INTERVENCIONES'!$F26=\"SÍ\",'I4. CRITERIOS E INTERVENCIONES'!K28=\"SÍ\"),\"EVALUAR\",\"\")","v":""},{"$f":"IF(AND('D2. SELECCION DE INTERVENCIONES'!$F26=\"SÍ\",'I4. CRITERIOS E INTERVENCIONES'!L28=\"SÍ\"),\"EVALUAR\",\"\")","v":""},{"$f":"IF(AND('D2. SELECCION DE INTERVENCIONES'!$F26=\"SÍ\",'I4. CRITERIOS E INTERVENCIONES'!M28=\"SÍ\"),\"EVALUAR\",\"\")","v":""},{"$f":"IF(AND('D2. SELECCION DE INTERVENCIONES'!$F26=\"SÍ\",'I4. CRITERIOS E INTERVENCIONES'!N28=\"SÍ\"),\"EVALUAR\",\"\")","v":""},{"$f":"IF(AND('D2. SELECCION DE INTERVENCIONES'!$F26=\"SÍ\",'I4. CRITERIOS E INTERVENCIONES'!O28=\"SÍ\"),\"EVALUAR\",\"\")","v":""}]
["ST","Suelos y techos"]
[17,"STS",null,"Suelos",{"$f":"IF(AND('D2. SELECCION DE INTERVENCIONES'!$F28=\"SÍ\",'I4. CRITERIOS E INTERVENCIONES'!F30=\"SÍ\"),\"EVALUAR\",\"\")","v":""},{"$f":"IF(AND('D2. SELECCION DE INTERVENCIONES'!$F28=\"SÍ\",'I4. CRITERIOS E INTERVENCIONES'!G30=\"SÍ\"),\"EVALUAR\",\"\")","v":""},{"$f":"IF(AND('D2. SELECCION DE INTERVENCIONES'!$F28=\"SÍ\",'I4. CRITERIOS E INTERVENCIONES'!H30=\"SÍ\"),\"EVALUAR\",\"\")","v":""},{"$f":"IF(AND('D2. SELECCION DE INTERVENCIONES'!$F28=\"SÍ\",'I4. CRITERIOS E INTERVENCIONES'!I30=\"SÍ\"),\"EVALUAR\",\"\")","v":""},{"$f":"IF(AND('D2. SELECCION DE INTERVENCIONES'!$F28=\"SÍ\",'I4. CRITERIOS E INTERVENCIONES'!J30=\"SÍ\"),\"EVALUAR\",\"\")","v":""},{"$f":"IF(AND('D2. SELECCION DE INTERVENCIONES'!$F28=\"SÍ\",'I4. CRITERIOS E INTERVENCIONES'!K30=\"SÍ\"),\"EVALUAR\",\"\")","v":""},{"$f":"IF(AND('D2. SELECCION DE INTERVENCIONES'!$F28=\"SÍ\",'I4. CRITERIOS E INTERVENCIONES'!L30=\"SÍ\"),\"EVALUAR\",\"\")","v":""},{"$f":"IF(AND('D2. SELECCION DE INTERVENCIONES'!$F28=\"SÍ\",'I4. CRITERIOS E INTERVENCIONES'!M30=\"SÍ\"),\"EVALUAR\",\"\")","v":""},{"$f":"IF(AND('D2. SELECCION DE INTERVENCIONES'!$F28=\"SÍ\",'I4. CRITERIOS E INTERVENCIONES'!N30=\"SÍ\"),\"EVALUAR\",\"\")","v":""},{"$f":"IF(AND('D2. SELECCION DE INTERVENCIONES'!$F28=\"SÍ\",'I4. CRITERIOS E INTERVENCIONES'!O30=\"SÍ\"),\"EVALUAR\",\"\")","v":""}]
[18,"STT",null,"Techos",{"$f":"IF(AND('D2. SELECCION DE INTERVENCIONES'!$F29=\"SÍ\",'I4. CRITERIOS E INTERVENCIONES'!F31=\"SÍ\"),\"EVALUAR\",\"\")","v":""},{"$f":"IF(AND('D2. SELECCION DE INTERVENCIONES'!$F29=\"SÍ\",'I4. CRITERIOS E INTERVENCIONES'!G31=\"SÍ\"),\"EVALUAR\",\"\")","v":""},{"$f":"IF(AND('D2. SELECCION DE INTERVENCIONES'!$F29=\"SÍ\",'I4. CRITERIOS E INTERVENCIONES'!H31=\"SÍ\"),\"EVALUAR\",\"\")","v":""},{"$f":"IF(AND('D2. SELECCION DE INTERVENCIONES'!$F29=\"SÍ\",'I4. CRITERIOS E INTERVENCIONES'!I31=\"SÍ\"),\"EVALUAR\",\"\")","v":""},{"$f":"IF(AND('D2. SELECCION DE INTERVENCIONES'!$F29=\"SÍ\",'I4. CRITERIOS E INTERVENCIONES'!J31=\"SÍ\"),\"EVALUAR\",\"\")","v":""},{"$f":"IF(AND('D2. SELECCION DE INTERVENCIONES'!$F29=\"SÍ\",'I4. CRITERIOS E INTERVENCIONES'!K31=\"SÍ\"),\"EVALUAR\",\"\")","v":""},{"$f":"IF(AND('D2. SELECCION DE INTERVENCIONES'!$F29=\"SÍ\",'I4. CRITERIOS E INTERVENCIONES'!L31=\"SÍ\"),\"EVALUAR\",\"\")","v":""},{"$f":"IF(AND('D2. SELECCION DE INTERVENCIONES'!$F29=\"SÍ\",'I4. CRITERIOS E INTERVENCIONES'!M31=\"SÍ\"),\"EVALUAR\",\"\")","v":""},{"$f":"IF(AND('D2. SELECCION DE INTERVENCIONES'!$F29=\"SÍ\",'I4. CRITERIOS E INTERVENCIONES'!N31=\"SÍ\"),\"EVALUAR\",\"\")","v":""},{"$f":"IF(AND('D2. SELECCION DE INTERVENCIONES'!$F29=\"SÍ\",'I4. CRITERIOS E INTERVENCIONES'!O31=\"SÍ\"),\"EVALUAR\",\"\")","v":""}]
["ES","Espacios "]
[19,"ES",null,"Espacios",{"$f":"IF(AND('D2. SELECCION DE INTERVENCIONES'!$F31=\"SÍ\",'I4. CRITERIOS E INTERVENCIONES'!F33=\"SÍ\"),\"EVALUAR\",\"\")","v":""},{"$f":"IF(AND('D2. SELECCION DE INTERVENCIONES'!$F31=\"SÍ\",'I4. CRITERIOS E INTERVENCIONES'!G33=\"SÍ\"),\"EVALUAR\",\"\")","v":""},{"$f":"IF(AND('D2. SELECCION DE INTERVENCIONES'!$F31=\"SÍ\",'I4. CRITERIOS E INTERVENCIONES'!H33=\"SÍ\"),\"EVALUAR\",\"\")","v":""},{"$f":"IF(AND('D2. SELECCION DE INTERVENCIONES'!$F31=\"SÍ\",'I4. CRITERIOS E INTERVENCIONES'!I33=\"SÍ\"),\"EVALUAR\",\"\")","v":""},{"$f":"IF(AND('D2. SELECCION DE INTERVENCIONES'!$F31=\"SÍ\",'I4. CRITERIOS E INTERVENCIONES'!J33=\"SÍ\"),\"EVALUAR\",\"\")","v":""},{"$f":"IF(AND('D2. SELECCION DE INTERVENCIONES'!$F31=\"SÍ\",'I4. CRITERIOS E INTERVENCIONES'!K33=\"SÍ\"),\"EVALUAR\",\"\")","v":""},{"$f":"IF(AND('D2. SELECCION DE INTERVENCIONES'!$F31=\"SÍ\",'I4. CRITERIOS E INTERVENCIONES'!L33=\"SÍ\"),\"EVALUAR\",\"\")","v":""},{"$f":"IF(AND('D2. SELECCION DE INTERVENCIONES'!$F31=\"SÍ\",'I4. CRITERIOS E INTERVENCIONES'!M33=\"SÍ\"),\"EVALUAR\",\"\")","v":""},{"$f":"IF(AND('D2. SELECCION DE INTERVENCIONES'!$F31=\"SÍ\",'I4. CRITERIOS E INTERVENCIONES'!N33=\"SÍ\"),\"EVALUAR\",\"\")","v":""},{"$f":"IF(AND('D2. SELECCION DE INTERVENCIONES'!$F31=\"SÍ\",'I4. CRITERIOS E INTERVENCIONES'!O33=\"SÍ\"),\"EVALUAR\",\"\")","v":""}]
[]
[null,null,null,null,{"$f":"COUNTIF(E3:E28,\"EVALUAR\")","v":0},0,0,0,0,0,0,0,0,0]
[]
[]
[null,"NOTA: ESTA PESTAÑA ES EL CRUCE DE INFORMACIÓN ENTRE LAS PESTAÑAS III Y IV. NO SE PODRÁ VER POR LOS USUARIOS"]

{"sheet":"CONFIG","index":8,"n_rows":14,"n_cols":13,"rows_kept":14,"cut":false,"hidden":true,"merged":[]}
["3.EVALUACION","1. VERSATILIDAD","C1. VERS","E3","E32",20,20,"F","B","D","F",1,1]
[null,"2. CONVERTIBILIDAD","C2. CONV","F3","F32",20,20,"F","B","D","F",2,2]
[null,"3. CAPACIDAD DE AMPLIACIÓN","C3. CAPA","G3","G32",20,20,"F","B","D","F",3,3]
[null,"4. FACILIDAD DE ACCESO A COMPONENTES Y SERVICIOS","C4. FACS","H3","H32",26,32,"F","B","D","F",4,4]
[null,"5. INDEPENDENCIA Y CONEXIONES REVERSIBLES","C5. IND-CORE","I3","I32",26,39,"F","B","D","F",5,6]
[null,"6. EVITAR TRATAMIENTOS Y ACABADOS INNECESARIOS","C6. ETAI","J3","J32",28,33,"F","B","D","F",7,7]
[null,"7. APOYO A ECONOMÍA CIRCULAR","C7. AEC","K3","K32",24,41,"F","B","D","F",8,8]
[null,"8. SIMPLEZA Y ESTANDARIZACIÓN","C8. EPC","L3","L32",24,36,"F","B","D","F",9,10]
[null,"9. SEGURIDAD AL DESMONTAR","C9. SAD","M3","M32",24,36,"F","B","D","F",11,11]
[null,"10. DURABILIDAD","C10. DUR","N3","N32",24,41,"F","B","D","F",12,12]
[]
[]
[]
[null,"NO MODIFICAR ESTA TABLA"]

{"sheet":"BLANK","index":9,"n_rows":85,"n_cols":10,"rows_kept":85,"cut":false,"hidden":true,"merged":[[3,1,3,9],[5,3,5,9],[7,1,15,1],[7,5,7,9],[9,5,9,9],[11,5,11,9],[13,5,13,9],[15,5,15,9],[32,3,32,5],[17,1,19,1],[17,3,19,5],[21,1,21,9],[23,3,23,5],[25,3,25,5],[26,3,26,5],[27,3,27,5],[28,3,28,5],[29,3,29,5],[30,3,30,5],[31,3,31,5],[51,3,51,5],[52,3,52,5],[33,3,33,5],[34,3,34,5],[35,3,35,5],[36,3,36,5],[37,3,37,5],[38,3,38,5],[39,3,39,5],[40,3,40,5],[41,3,41,5],[42,3,42,5],[43,3,43,5],[84,1,84,5],[44,3,44,5],[45,3,45,5],[46,3,46,5],[47,3,47,5],[48,3,48,5],[66,3,66,5],[67,3,67,5],[68,3,68,5],[75,3,75,5],[76,3,76,5],[77,3,77,5],[74,3,74,5],[60,3,60,5],[49,3,49,5],[50,3,50,5],[58,3,58,5],[78,3,78,5],[79,3,79,5],[80,3,80,5],[82,1,82,9],[72,3,72,5],[73,3,73,5],[61,3,61,5],[62,3,62,5],[63,3,63,5],[64,3,64,5],[65,3,65,5],[59,3,59,5],[69,3,69,5],[70,3,70,5],[71,3,71,5],[53,3,53,5],[54,3,54,5],[55,3,55,5],[56,3,56,5],[57,3,57,5]]}
[]
[]
[]
[null,"FACILIDAD DE ACCESO A COMPONENTES Y SERVICIOS"]
[]
[null,"Definición",null,"Esta característica permite que el material, componente o conector de un sistema de ensamblaje (en especial aquellos con un periodo de vida corto) puedan ser reemplazados fácilmente, con el menor daño posible a las piezas que se encuentran alrededor. Permite reducir el tiempo de reemplazo de piezas y evita desperdicios innecesarios. Esta característica se relaciona con la \"independencia\" de las piezas, de manera que cada pieza es una capa en particular que puede ser cambiada o tener un mantenimiento sin dañar al resto. "]
[]
[null,"Puntuación",null,"0 puntos",null,"No hay accesibilidad sin daño significativo a los materiales aledaños"]
[]
[null,null,null,"2 puntos",null,"Accesibilidad limitada con algunos daños significativos a más del 50% de materiales aledaños"]
[]
[null,null,null,"4 puntos",null,"Accesibilidad limitada con daño menor a menos del 50%"]
[]
[null,null,null,"6 puntos",null,"Mayormente accesible con daño menor al 50% de materiales aledaños"]
[]
[null,null,null,"8 puntos",null,"Mayor o totalmente accesible con trabajo mínimo y sin daños a materiales aledaños"]
[]
[null,"Metodología de evaluación",null,null,null,null,null,"Cantidad de intervenciones",null,{"$f":"COUNTIF(D26:F81,\"*\")","v":0}]
[null,null,null,null,null,null,null,"β",null,{"$f":"J18*8","v":0}]
[null,null,null,null,null,null,null,"Puntuación por alcanzar",null,{"$f":"0.5*J19","v":0}]
[]
[null,"INTERVENCIONES SELECCIONADAS"]
[]
[null,"COD",null,"INTERVENCIONES",null,null,null,"PUNTUACIÓN",null,"INDICAR UBICACIÓN DE LA JUSTIFICACIÓN (DOCUMENTO/ N° DE ANEXO, CAPÍTULO/ PÁGINA)"]
[]
[null,null,null,null,null,null,null,null,null,"Ver Memoria, capítulo III, pg. 8"]
[]
[]
[]
[]
[]
[]
[]
[]
[]
[]
[]
[]
[]
[]
[]
[]
[]
[]
[]
[]
[]
[]
[]
[]
[]
[]
[]
[]
[]
[]
[]
[]
[]
[]
[]
[]
[]
[]
[]
[]
[]
[null,null,null,null,null,null,null,null,null," "]
[null,null,null,null,null,null,null,null,null," "]
[]
[]
[]
[]
[]
[]
[]
[]
[]
[null,null,null,null,null,null,null,null,null," "]
[null,null,null,null,null,null,null,null,null," "]
[null,null,null,null,null,null,null,null,null," "]
[]
[null,"RESULTADO"]
[]
[null,"Puntuación total alcanzada",null,null,null,null,null,{"$f":"SUM(H26:H81)","v":0},null,{"$f":"IF(H85>J20,\"CUMPLE\",\"NO CUMPLE\")","v":"NO CUMPLE"}]

{"sheet":"C1. VERS","index":10,"n_rows":24,"n_cols":18,"rows_kept":24,"cut":false,"hidden":false,"merged":[[19,3,19,5],[17,3,17,5],[17,9,17,18],[19,9,19,18],[3,1,3,18],[9,1,11,1],[15,1,15,18],[9,5,9,18],[11,5,11,18],[5,1,7,1],[6,3,6,17],[13,11,13,15],[13,17,13,18],[21,1,21,18],[26,11,26,18],[26,1,26,10],[23,1,23,7],[23,9,23,18]]}
["Ocultar info."]
["Más info."]
[]
[null,{"$f":"IF(OR(COUNTIF('D1. DATOS DEL PROYECTO'!C7:I8,\"UNIFAMILIAR\"),COUNTIF(D20,\"\")),\"C1.VERSATILIDAD - NO APLICA A LA EVALUACIÓN\",\"C1.VERSATILIDAD\")","v":"C1.VERSATILIDAD - NO APLICA A LA EVALUACIÓN"}]
[]
[null,{"$f":"IF(J24=\"NO APLICA A LA EVALUACIÓN\",\"DEFINICIÓN \",\"DEFINICIÓN\")","v":"DEFINICIÓN "}]
[null,null,null,"Descripción del criterio\nEl criterio se refiere a la capacidad de un espacio de adaptarse a diferentes funciones con el menor cambio del sistema, minimizando la complejidad o esfuerzo. Las estructuras y espacios versátiles proporcionan alternativas de uso a lo largo del tiempo.\nEste criterio, en particular, solo aplica en edificios plurifamiliares y no en unifamiliares, debido a que se analizan a los espacios comunes disponibles y polivalentes para todas las personas residentes.\nEste criterio se mide en base al área del espacio común versátil en proporción al área total del edificio, tomando como dato la superficie construida. \n\nEjemplos\n- Se intervendrán las instalaciones en un espacio de planta baja de edificio de viviendas, a priori sin uso determinado, en aras de facilitar su utilización por la vecindad según necesidades puntuales. \n- Antigua vivienda de portería que se acondiciona para convertirse en local polivalente para la Comunidad de Propietarios y propietarias.\n\nAclaraciones sobre la justificación\n- Se deberá justificar que las soluciones que cumplen con este criterio son fruto de la intervención proyectada, es decir, que no existían antes de la rehabilitación.\n- Para justificar el cumplimiento de este criterio se deberá indicar en qué parte del Proyecto de Rehabilitación, Memoria o Documento Complementario figura el dato de la  Superficie construida total del edificio (m2), de la Superficie del espacio o conjunto de espacios versátiles generados o adaptados gracias a la rehabilitación (m2) y las descripción de las actividades o usos a los que la propiedad destina este espacio. "]
[]
[]
[null,{"$f":"IF(J24=\"NO APLICA A LA EVALUACIÓN\",\"PUNTUACIÓN \",\"PUNTUACIÓN\")","v":"PUNTUACIÓN "},null,{"$f":"IF(J24=\"NO APLICA A LA EVALUACIÓN\",\"NO CUMPLE \",\"NO CUMPLE\")","v":"NO CUMPLE "},null,"No existe un espacio polivalente"]
[]
[null,null,null,{"$f":"IF(J24=\"NO APLICA A LA EVALUACIÓN\",\"CUMPLE \",\"CUMPLE\")","v":"CUMPLE "},null,"Existe un espacio o conjunto de espacios polivalentes cuya superficie construida es superior al 5% del área total del edificio"]
[]
[null,{"$f":"IF(J24=\"NO APLICA A LA EVALUACIÓN\",\"EVALUACIÓN \",\"EVALUACIÓN\")","v":"EVALUACIÓN "},null,{"$f":"IF(J24=\"NO APLICA A LA EVALUACIÓN\",\"Superficie construida total del edificio (m2) \",\"Superficie construida total del edificio (m2)\")","v":"Superficie construida total del edificio (m2) "},null,null,null,{"$f":"IF(J24=\"NO APLICA A LA EVALUACIÓN\",\"Superficie del espacio versátil generado (m2) \",\"Superficie del espacio versátil generado (m2)\")","v":"Superficie del espacio versátil generado (m2) "},null,null,null,{"$f":"IF(J24=\"NO APLICA A LA EVALUACIÓN\",\"Porcentaje de superficie                                              total afectada (%) \",\"Porcentaje de superficie                                              total afectada (%)\")","v":"Porcentaje de superficie                                              total afectada (%) "},null,null,null,null,null,{"$f":"IFERROR(IF(COUNTIF(D20,\"*\"),ROUND(((J14/F14)*100),0),\" \"),0)","v":" "}]
[]
[null,{"$f":"IF(J24=\"NO APLICA A LA EVALUACIÓN\",\"INTERVENCIONES SELECCIONADAS \",\"INTERVENCIONES SELECCIONADAS\")","v":"INTERVENCIONES SELECCIONADAS "}]
[]
[null,{"$f":"IF(J24=\"NO APLICA A LA EVALUACIÓN\",\"COD \",\"COD\")","v":"COD "},null,{"$f":"IF(J24=\"NO APLICA A LA EVALUACIÓN\",\"INTERVENCIONES \",\"INTERVENCIONES\")","v":"INTERVENCIONES "},null,null,null,{"$f":"IF(J24=\"NO APLICA A LA EVALUACIÓN\",\"PUNTUACIÓN \",\"PUNTUACIÓN\")","v":"PUNTUACIÓN "},null,{"$f":"IF(J24=\"NO APLICA A LA EVALUACIÓN\",\"INDICAR UBICACIÓN DE LA JUSTIFICACIÓN (DOCUMENTO/ N° DE ANEXO, CAPÍTULO/ PÁGINA) \",\"INDICAR UBICACIÓN DE LA JUSTIFICACIÓN (DOCUMENTO/ N° DE ANEXO, CAPÍTULO/ PÁGINA)\")","v":"INDICAR UBICACIÓN DE LA JUSTIFICACIÓN (DOCUMENTO/ N° DE ANEXO, CAPÍTULO/ PÁGINA) "}]
[]
[null,null,null,null,null,null,null,{"$f":"IF(COUNTIF(D20,\"*\"),(IF(R14>=5,\"CUMPLE\",\"NO CUMPLE\")),\"\")","v":""}]
[]
[null,{"$f":"IF(J24=\"NO APLICA A LA EVALUACIÓN\",\"RESULTADO \",\"RESULTADO\")","v":"RESULTADO "}]
[]
[null,{"$f":"IF(J24=\"NO APLICA A LA EVALUACIÓN\",\"Puntuación total alcanzada \",\"Puntuación total alcanzada\")","v":"Puntuación total alcanzada "},null,null,null,null,null,null,null,{"$f":"IF(B4=\"C1.VERSATILIDAD\",IF(COUNTIF(D20,\"*\"),H20,\"NO APLICA A LA EVALUACIÓN\"),\"NO APLICA A LA EVALUACIÓN\")","v":"NO APLICA A LA EVALUACIÓN"}]

{"sheet":"C2. CONV","index":11,"n_rows":24,"n_cols":18,"rows_kept":24,"cut":false,"hidden":false,"merged":[[3,1,3,18],[15,1,15,18],[9,5,9,18],[11,5,11,18],[9,1,11,1],[13,17,13,18],[5,1,7,1],[6,3,6,17],[13,11,13,15],[23,9,23,18],[23,1,23,7],[17,9,17,18],[17,3,17,5],[19,3,19,5],[19,9,19,18],[21,1,21,18]]}
["Ocultar info."]
[]
[]
[null,{"$f":"IF(J24=\"NO APLICA A LA EVALUACIÓN\",\"C2. CONVERTIBILIDAD - NO APLICA A LA EVALUACIÓN\",\"C2. CONVERTIBILIDAD\")","v":"C2. CONVERTIBILIDAD - NO APLICA A LA EVALUACIÓN"}]
[]
[null,{"$f":"IF(J24=\"NO APLICA A LA EVALUACIÓN\",\"DEFINICIÓN \",\"DEFINICIÓN\")","v":"DEFINICIÓN "}]
[null,null,null,"Descripción del criterio\nEl criterio se refiere a crear cambios sustanciales generando pequeñas modificaciones. Se relaciona con el criterio de versatilidad pero tiene una adaptación secuencial, es decir, difícilmente reversible. Los espacios en un edificio de vivienda pueden convertirse en espacios polivalentes de manera permanente o espacios de uso común ya sea de manera recreativa o de circulación. La convertibilidad en un espacio permite acondicionar cambios de uso futuro, es por ello que las modificaciones pueden darse en tres escalas: \n\n- Modificaciones en la estructura.\n- Modificaciones en particiones verticales u horizontales ligeras.\n- Modificaciones o implementación de preinstalaciones y mecanismos representativos.\n\nEjemplos\n- La estructura se modifica de muros portantes a pórticos para generar espacios más amplios y diversificar el programa.\n- Se implementan particiones verticales y horizontales de sistemas ligeros (yesos laminados, mamparas, etc.) para facilitar la reconfiguración espacial del recinto, así como también el tipo de programa que pueda alojar. \n- Se implementan preinstalaciones y mecanismos representativos (sistema de climatización, sistema de fontanería, cableado que implica gran trabajo en muros y tabiquería, etc.) que faciliten modificaciones en el acondicionamiento o equipamiento del espacio. \n\nAclaraciones sobre la justificación\n- Se deberá justificar que las soluciones que cumplen con este criterio son fruto de la intervención proyectada, es decir, que no existían antes de la rehabilitación.\n- Para justificar el cumplimiento de este criterio se deberá indicar en qué parte del Proyecto de Rehabilitación, Memoria o Documento Complementario figura el dato de la  Superficie construida total del edificio (m2), de la Superficie del espacio o conjunto de espacios convertibles generados o adaptados gracias a la rehabilitación (m2) y la descripción de las condiciones que lo hacen convertible (modificación estructural a un sistema más flexible, particiones fácilmente desmontables y/o preinstalaciones dispuestas)."]
[]
[]
[null,{"$f":"IF(J24=\"NO APLICA A LA EVALUACIÓN\",\"PUNTUACIÓN \",\"PUNTUACIÓN\")","v":"PUNTUACIÓN "},null,{"$f":"IF(J24=\"NO APLICA A LA EVALUACIÓN\",\"NO CUMPLE \",\"NO CUMPLE\")","v":"NO CUMPLE "},null,"Se requieren grandes esfuerzos para convertir el espacio o componente/conexión/pieza"]
[]
[null,null,null,{"$f":"IF(J24=\"NO APLICA A LA EVALUACIÓN\",\"CUMPLE \",\"CUMPLE\")","v":"CUMPLE "},null,"La convertibilidad de la intervención afecta al menos al 5% de a superficie construida del edificio"]
[]
[null,{"$f":"IF(J24=\"NO APLICA A LA EVALUACIÓN\",\"EVALUACIÓN \",\"EVALUACIÓN\")","v":"EVALUACIÓN "},null,{"$f":"IF(J24=\"NO APLICA A LA EVALUACIÓN\",\"Superficie construida total del edificio (m2) \",\"Superficie construida total del edificio (m2)\")","v":"Superficie construida total del edificio (m2) "},null,null,null,{"$f":"IF(J24=\"NO APLICA A LA EVALUACIÓN\",\"Superficie del espacio convertible generado (m2) \",\"Superficie del espacio convertible generado (m2)\")","v":"Superficie del espacio convertible generado (m2) "},null,null,null,{"$f":"IF(J24=\"NO APLICA A LA EVALUACIÓN\",\"Porcentaje de superficie                                              total afectada (%) \",\"Porcentaje de superficie                                              total afectada (%)\")","v":"Porcentaje de superficie                                              total afectada (%) "},null,null,null,null,null,{"$f":"IFERROR(IF(COUNTIF(D20,\"*\"),ROUND(((J14/F14)*100),0),\" \"),0)","v":" "}]
[]
[null,{"$f":"IF(J24=\"NO APLICA A LA EVALUACIÓN\",\"INTERVENCIONES SELECCIONADAS \",\"INTERVENCIONES SELECCIONADAS\")","v":"INTERVENCIONES SELECCIONADAS "}]
[]
[null,{"$f":"IF(J24=\"NO APLICA A LA EVALUACIÓN\",\"COD \",\"COD\")","v":"COD "},null,{"$f":"IF(J24=\"NO APLICA A LA EVALUACIÓN\",\"INTERVENCIONES \",\"INTERVENCIONES\")","v":"INTERVENCIONES "},null,null,null,{"$f":"IF(J24=\"NO APLICA A LA EVALUACIÓN\",\"PUNTUACIÓN \",\"PUNTUACIÓN\")","v":"PUNTUACIÓN "},null,{"$f":"IF(J24=\"NO APLICA A LA EVALUACIÓN\",\"INDICAR UBICACIÓN DE LA JUSTIFICACIÓN (DOCUMENTO/ N° DE ANEXO, CAPÍTULO/ PÁGINA) \",\"INDICAR UBICACIÓN DE LA JUSTIFICACIÓN (DOCUMENTO/ N° DE ANEXO, CAPÍTULO/ PÁGINA)\")","v":"INDICAR UBICACIÓN DE LA JUSTIFICACIÓN (DOCUMENTO/ N° DE ANEXO, CAPÍTULO/ PÁGINA) "}]
[]
[null,null,null,null,null,null,null,{"$f":"IF(COUNTIF(D20,\"*\"),(IF(R14>=5,\"CUMPLE\",\"NO CUMPLE\")),\"\")","v":""}]
[]
[null,{"$f":"IF(J24=\"NO APLICA A LA EVALUACIÓN\",\"RESULTADO \",\"RESULTADO\")","v":"RESULTADO "}]
[]
[null,{"$f":"IF(J24=\"NO APLICA A LA EVALUACIÓN\",\"Puntuación total alcanzada \",\"Puntuación total alcanzada\")","v":"Puntuación total alcanzada "},null,null,null,null,null,null,null,{"$f":"IF(COUNTIF(D20,\"*\"),H20,\"NO APLICA A LA EVALUACIÓN\")","v":"NO APLICA A LA EVALUACIÓN"}]

{"sheet":"C3. CAPA","index":12,"n_rows":24,"n_cols":18,"rows_kept":24,"cut":false,"hidden":false,"merged":[[3,1,3,18],[9,1,11,1],[9,5,9,18],[5,1,7,1],[6,3,7,17],[11,5,11,17],[23,1,23,7],[23,9,23,18],[17,9,17,18],[19,9,19,18],[21,1,21,18],[13,17,13,18],[15,1,15,18],[13,11,13,15],[19,3,19,5],[17,3,17,5]]}
["Más info."]
[]
[]
[null,{"$f":"IF(J24=\"NO APLICA A LA EVALUACIÓN\",\"C3. CAPACIDAD DE AMPLIACIÓN - NO APLICA A LA EVALUACIÓN\", \"C3. CAPACIDAD DE AMPLIACIÓN\")","v":"C3. CAPACIDAD DE AMPLIACIÓN - NO APLICA A LA EVALUACIÓN"}]
[]
[null,{"$f":"IF(J24=\"NO APLICA A LA EVALUACIÓN\",\"DEFINICIÓN \",\"DEFINICIÓN\")","v":"DEFINICIÓN "}]
[null,null,null,"Descripción del criterio\nEl criterio se refiere a la capacidad de un espacio o la característica de un sistema para agregar un área nueva (extra respecto al existente) o ampliar la superficie existente (aumentando la superficie en planta de la construcción actual). No se trata de valorar la ampliación que pueda definirse en el proyecto objeto de evaluación, sino la posibilidad de que el edificio proyectado se amplíe en el futuro. Se trata de valorar positivamente que la estructura o los elementos constructivos principales del edificio queden diseñados de forma que se facilite una futura ampliación (en especial el desmontaje de cerramientos y la capacidad portante de la estructura).\n\n1. Verticalmente: Refuerzos estructurales para poder soportar más pisos y que dotan al conjunto estructural de mayor capacidad portante de cara a la elevación de nuevas plantas sin necesidad de intervenir de nuevo en las plantas inferiores, y por tanto, sin afectar a las personas que habitan las mismas.\nEjemplos\n- Refuerzos estructurales mediante sistemas Mecanoviga para la creación de un altillo o ático.\n- Desmontabilidad de cubierta para facilitar las futuras posibles ampliaciones, a base de perfiles y placas con fijación mecánica. \n\n2. Horizontalmente: El diseño debe facilitar el desmontaje de fachadas o envolvente de manera que el espacio pueda expandirse sin generar daños mayores en lo existente. \nEjemplos\n- Conversión de la fachada maciza en módulos desmontables para generar la posibilidad de futuras expansiones a darse de sistemas de cerramiento con fijación mecánica.\n- Adhesión de pilares a estructura existente para el apoyo de futuras balconeras o plataformas. \n\nAclaraciones sobre la justificación\nSe deberá justificar que las soluciones que cumplen con este criterio son fruto de la intervención proyectada, es decir, que no existían antes de la rehabilitación.\nPara justificar el cumplimiento de este criterio se deberá indicar en qué parte del Proyecto de Rehabilitación, Memoria o Documento Complementario figura el dato de la  Superficie construida total del edificio (m2), de la Superficie construida ampliable (m2) y la descripción de las condiciones que facilitan la ampliación del edificio (modificación estructural a un sistema reforzado o envolventes resueltas con elementos constructivos fácilmente desmontables).\nEn el caso de ampliaciones verticales, la superficie ampliable se entenderá como la superficie de las futuras plantas elevables, conforme a la nueva capacidad portante de la estructura.\nEn el caso de ampliaciones horizontales, la superficie ampliable se entenderá como la superficie de las futuras extensiones de las plantas actuales, conforme al tipo de envolvente fácilmente desmontable.\nEn ambos casos se entenderá que la propiedad y los proyectistas han verificado que se cumplen los condicionantes urbanísticos y técnicos para la ejecución de la ampliación. "]
[]
[]
[null,{"$f":"IF(J24=\"NO APLICA A LA EVALUACIÓN\",\"PUNTUACIÓN \",\"PUNTUACIÓN\")","v":"PUNTUACIÓN "},null,{"$f":"IF(J24=\"NO APLICA A LA EVALUACIÓN\",\"NO CUMPLE \",\"NO CUMPLE\")","v":"NO CUMPLE "},null,"No es posible la ampliación"]
[]
[null,null,null,{"$f":"IF(J24=\"NO APLICA A LA EVALUACIÓN\",\"CUMPLE \",\"CUMPLE\")","v":"CUMPLE "},null,"La ampliación posible representa al menos el 5% del área total de intervención"]
[]
[null,{"$f":"IF(J24=\"NO APLICA A LA EVALUACIÓN\",\"EVALUACIÓN \",\"EVALUACIÓN\")","v":"EVALUACIÓN "},null,{"$f":"IF(J24=\"NO APLICA A LA EVALUACIÓN\",\"Superficie construida total del edificio (m2) \",\"Superficie construida total del edificio (m2)\")","v":"Superficie construida total del edificio (m2) "},null,null,null,{"$f":"IF(J24=\"NO APLICA A LA EVALUACIÓN\",\"Superficie del espacio ampliable generado (m2) \",\"Superficie del espacio ampliable generado (m2)\")","v":"Superficie del espacio ampliable generado (m2) "},null,null,null,{"$f":"IF(J24=\"NO APLICA A LA EVALUACIÓN\",\"Porcentaje de superficie                                              total afectada (%) \",\"Porcentaje de superficie                                              total afectada (%)\")","v":"Porcentaje de superficie                                              total afectada (%) "},null,null,null,null,null,{"$f":"IFERROR(IF(COUNTIF(D20,\"*\"),ROUND(((J14/F14)*100),0),\" \"),0)","v":" "}]
[]
[null,{"$f":"IF(J24=\"NO APLICA A LA EVALUACIÓN\",\"INTERVENCIONES SELECCIONADAS \",\"INTERVENCIONES SELECCIONADAS\")","v":"INTERVENCIONES SELECCIONADAS "}]
[]
[null,{"$f":"IF(J24=\"NO APLICA A LA EVALUACIÓN\",\"COD \",\"COD\")","v":"COD "},null,{"$f":"IF(J24=\"NO APLICA A LA EVALUACIÓN\",\"INTERVENCIONES \",\"INTERVENCIONES\")","v":"INTERVENCIONES "},null,null,null,{"$f":"IF(J24=\"NO APLICA A LA EVALUACIÓN\",\"PUNTUACIÓN \",\"PUNTUACIÓN\")","v":"PUNTUACIÓN "},null,{"$f":"IF(J24=\"NO APLICA A LA EVALUACIÓN\",\"INDICAR UBICACIÓN DE LA JUSTIFICACIÓN (DOCUMENTO/ N° DE ANEXO, CAPÍTULO/ PÁGINA) \",\"INDICAR UBICACIÓN DE LA JUSTIFICACIÓN (DOCUMENTO/ N° DE ANEXO, CAPÍTULO/ PÁGINA)\")","v":"INDICAR UBICACIÓN DE LA JUSTIFICACIÓN (DOCUMENTO/ N° DE ANEXO, CAPÍTULO/ PÁGINA) "}]
[]
[null,null,null,null,null,null,null,{"$f":"IF(COUNTIF(D20,\"*\"),(IF(R14>=5,\"CUMPLE\",\"NO CUMPLE\")),\"\")","v":""}]
[]
[null,{"$f":"IF(J24=\"NO APLICA A LA EVALUACIÓN\",\"RESULTADO \",\"RESULTADO\")","v":"RESULTADO "}]
[]
[null,{"$f":"IF(J24=\"NO APLICA A LA EVALUACIÓN\",\"Puntuación total alcanzada \",\"Puntuación total alcanzada\")","v":"Puntuación total alcanzada "},null,null,null,null,null,null,null,{"$f":"IF(COUNTIF(D20,\"*\"),H20,\"NO APLICA A LA EVALUACIÓN\")","v":"NO APLICA A LA EVALUACIÓN"}]

{"sheet":"C4. FACS","index":13,"n_rows":36,"n_cols":14,"rows_kept":36,"cut":false,"hidden":false,"merged":[[15,1,19,1],[15,13,15,18],[3,1,3,18],[11,1,13,1],[11,5,11,18],[13,5,13,18],[17,13,17,18],[19,13,19,18],[5,1,9,1],[15,3,19,8],[6,3,7,17],[9,3,9,17],[21,1,21,18],[23,3,23,9],[23,13,23,18],[25,3,25,9],[25,13,25,18],[35,13,35,18],[33,1,33,18],[35,1,35,9],[29,3,29,9],[29,13,29,18],[30,3,30,9],[30,13,30,18],[31,3,31,9],[31,13,31,18],[26,3,26,9],[26,13,26,18],[27,3,27,9],[27,13,27,18],[28,3,28,9],[28,13,28,18]]}
["Más info."]
[]
[]
[null,{"$f":"IF(N36=\"NO APLICA A LA EVALUACIÓN\",\"      C4. FACILIDAD DE ACCESO A SERVICIOS - NO APLICA A LA EVALUACIÓN\",\"      C4. FACILIDAD DE ACCESO A SERVICIOS\")","v":"      C4. FACILIDAD DE ACCESO A SERVICIOS - NO APLICA A LA EVALUACIÓN"}]
[]
[null,{"$f":"IF(N36=\"NO APLICA A LA EVALUACIÓN\",\"DEFINICIÓN \",\"DEFINICIÓN\")","v":"DEFINICIÓN "}]
[null,null,null,"Descripción del criterio\nEste criterio se refiere a que componentes o servicios, en especial aquellos con un periodo de vida corto,  puedan ser reemplazados fácilmente con el menor daño posible a las piezas o elementos que se encuentran alrededor. Permite reducir el tiempo de reemplazo de componentes o servicios y evita desperdicios innecesarios. Esta característica se relaciona con la \"independencia\" de las piezas, de manera que cada pieza es una capa en particular que puede ser cambiada o tener un mantenimiento sin dañar al resto. \nSe debe analizar la accesibilidad al componente o servicio (instalaciones) que normalmente quedan ocultos y evaluar si todo él puede repararse o sustituirse con mayor o menor daño en los materiales aledaños. Se tendrá en cuenta el tipo de materiales aledaños, entendiendo como tales los que ocultan al componente o servicio, los cuales necesitan ser retirados para poder acceder al componente o servicio  para su reparación o sustitución.\n\nEjemplos\n- Instalaciones ubicadas tras elementos registrables como armarios, falseados practicables, falsos techos registrables, suelos técnicos, etc. que permiten que la mayor parte de los recorridos sean accesibles sin demoler o desmontar los elementos que los cierran.  \n- Instalación ubicada en un recinto o espacio libre  que permite la disposición de toda la maquinaria y sistemas de forma accesible. Los tramos de conductos o cableados ocultos son mínimos en relación al conjunto de la instalación. Este puede ser el caso de una instalación fotovoltaica en cubierta, con acceso fácil y elementos de seguridad para el trabajo en altura y con registros suficientes para facilitar el acceso al cableado u otros componentes habitualmente ocultos de la instalación.\n\nAclaraciones sobre la justificación\n- Se deberá justificar que las soluciones que cumplen con este criterio son fruto de la intervención proyectada, es decir, que no existían antes de la rehabilitación.\n- Para justificar el cumplimiento de este criterio se deberá indicar en qué parte del Proyecto de Rehabilitación, Memoria o Documento Complementario figura la descripción de cada instalación puntuada con \"1\" en la que se detalle cómo se garantiza la facilidad de acceso a sus componentes. \n- Se podrá considerar que la intervención cumple si al menos el 90% del elemento o sistema intervenido cumple. De ser el caso, se deberá aportar justificación en términos de % de metros cuadrados o de metros lineales respecto de los totales intervenidos, de lo contrario sedeberá considerar una puntuación 0."]
[]
[]
[null,null,null,"En las intervenciones correspondiente a Instalaciones no serán objeto de análisis los equipos (sistemas de producción, bombas, equipos de control, etc). Únicamente se analizará en este criterio la parte correspondiente a la red o a las conducciones en el caso de:    \nEIS: Instalaciones de redes de saneamiento y evacuación de aguas\nEIF: Instalaciones abastecimiento y suministro de agua\nEIE: Instalaciones de electricidad\nEIC: Instalaciones de calefacción\nEIB: Instalaciones de climatización\nEIV: Ventilación y extracción"]
[]
[null,{"$f":"IF(N36=\"NO APLICA A LA EVALUACIÓN\",\"PUNTUACIÓN \",\"PUNTUACIÓN\")","v":"PUNTUACIÓN "},null,{"$f":"IF(N36=\"NO APLICA A LA EVALUACIÓN\",\"0 puntos \",\"0 puntos\")","v":"0 puntos "},null,"No hay accesibilidad sin daño significativo a los materiales aledaños"]
[]
[null,null,null,{"$f":"IF(N36=\"NO APLICA A LA EVALUACIÓN\",\"1 punto \",\"1 punto\")","v":"1 punto "},null,"Se puede considerar que la mayoría de la intervención cumple con mínimo daño de materiales aledaños"]
[]
[null,{"$f":"IF(N36=\"NO APLICA A LA EVALUACIÓN\",\"EVALUACIÓN \",\"EVALUACIÓN\")","v":"EVALUACIÓN "},null,null,null,null,null,null,null,null,null,{"$f":"IF(N36=\"NO APLICA A LA EVALUACIÓN\",\"Cantidad de intervenciones \",\"Cantidad de intervenciones\")","v":"Cantidad de intervenciones "},null,{"$f":"IF(COUNTIF(D26:F32,\"*\"),COUNTIF(D26:F32,\"*\"),0)","v":0}]
[]
[null,null,null,null,null,null,null,null,null,null,null,{"$f":"IF(N36=\"NO APLICA A LA EVALUACIÓN\",\"β \",\"β\")","v":"β "},null,{"$f":"N16*1","v":0}]
[]
[null,null,null,null,null,null,null,null,null,null,null,{"$f":"IF(N36=\"NO APLICA A LA EVALUACIÓN\",\"Puntuación por alcanzar \",\"Puntuación por alcanzar\")","v":"Puntuación por alcanzar "},null,{"$f":"IF(N16>0,IF(N16>=3,(ROUNDUP(0.2*N18,0)),1),0)","v":0}]
[]
[null,{"$f":"IF(N36=\"NO APLICA A LA EVALUACIÓN\",\"INTERVENCIONES SELECCIONADAS \",\"INTERVENCIONES SELECCIONADAS\")","v":"INTERVENCIONES SELECCIONADAS "}]
[]
[null,{"$f":"IF(N36=\"NO APLICA A LA EVALUACIÓN\",\"COD \",\"COD\")","v":"COD "},null,{"$f":"IF(N36=\"NO APLICA A LA EVALUACIÓN\",\"INTERVENCIONES \",\"INTERVENCIONES\")","v":"INTERVENCIONES "},null,null,null,null,null,null,null,{"$f":"IF(N36=\"NO APLICA A LA EVALUACIÓN\",\"PUNTUACIÓN \",\"PUNTUACIÓN\")","v":"PUNTUACIÓN "},null,{"$f":"IF(N36=\"NO APLICA A LA EVALUACIÓN\",\"INDICAR UBICACIÓN DE LA JUSTIFICACIÓN (DOCUMENTO/ N° DE ANEXO, CAPÍTULO/ PÁGINA) \",\"INDICAR UBICACIÓN DE LA JUSTIFICACIÓN (DOCUMENTO/ N° DE ANEXO, CAPÍTULO/ PÁGINA)\")","v":"INDICAR UBICACIÓN DE LA JUSTIFICACIÓN (DOCUMENTO/ N° DE ANEXO, CAPÍTULO/ PÁGINA) "}]
[]
[]
[]
[]
[]
[]
[]
[]
[]
[null,{"$f":"IF(N36=\"NO APLICA A LA EVALUACIÓN\",\"RESULTADO \",\"RESULTADO\")","v":"RESULTADO "}]
[]
[null,{"$f":"IF(N36=\"NO APLICA A LA EVALUACIÓN\",\"Puntuación total alcanzada \",\"Puntuación total alcanzada\")","v":"Puntuación total alcanzada "},null,null,null,null,null,null,null,null,null,{"$f":"SUM(L26:L32)","v":0},null,{"$f":"IF(COUNTIF(D26:I32,\"*\"),(IF(L36>=N20,\"CUMPLE\",\"NO CUMPLE\")),\"NO APLICA A LA EVALUACIÓN\")","v":"NO APLICA A LA EVALUACIÓN"}]

{"sheet":"C5. IND-CORE","index":14,"n_rows":43,"n_cols":14,"rows_kept":43,"cut":false,"hidden":false,"merged":[[21,1,21,18],[3,1,3,18],[9,5,9,18],[11,5,11,18],[15,1,19,1],[15,13,15,18],[17,13,17,18],[19,13,19,18],[13,5,13,18],[9,1,13,1],[5,1,7,1],[15,3,19,8],[5,3,6,17],[7,3,7,17],[23,3,23,9],[23,13,23,18],[25,3,25,9],[25,13,25,18],[26,3,26,9],[26,13,26,18],[27,3,27,9],[27,13,27,18],[28,3,28,9],[28,13,28,18],[29,3,29,9],[29,13,29,18],[42,1,42,9],[42,13,42,18],[38,3,38,9],[38,13,38,18],[30,3,30,9],[30,13,30,18],[31,3,31,9],[31,13,31,18],[32,3,32,9],[32,13,32,18],[33,3,33,9],[33,13,33,18],[34,3,34,9],[34,13,34,18],[35,3,35,9],[35,13,35,18],[36,3,36,9],[36,13,36,18],[37,3,37,9],[37,13,37,18],[40,1,40,18]]}
["Más info."]
[]
[]
[null,{"$f":"IF(N43=\"NO APLICA A LA EVALUACIÓN\",\"C5. INDEPENDENCIA Y CONEXIONES REVERSIBLES                                                                                                                                         - NO APLICA A LA EVALUACIÓN\",\"C5. INDEPENDENCIA Y CONEXIONES REVERSIBLES\")","v":"C5. INDEPENDENCIA Y CONEXIONES REVERSIBLES                                                                                                                                         - NO APLICA A LA EVALUACIÓN"}]
[]
[null,{"$f":"IF(N43=\"NO APLICA A LA EVALUACIÓN\",\"DEFINICIÓN \",\"DEFINICIÓN\")","v":"DEFINICIÓN "},null,"Descripción del criterio\nLos criterios de independencia y conexiones reversibles se basan en el mismo principio pero funcionan a diferente escala. \n\nLa independencia se refiere a  la cualidad que permite que un sistema pueda ser desmontado sin afectar la función o comportamiento de los elementos adyacentes. En este sentido, se evita que los componentes sean soldados o instalados en húmedo, y se prefieren ensamblajes desmontables. Así mismo se evita agrupar componentes de instalaciones o elemento distintos. \nLas conexiones reversibles tienen el mismo principio que el criterio de independencia, pero  actúa sobre las piezas y componentes respecto al propio sistema.  Se trata de fomentar que un sistema o instalación se componga o monte mediante piezas cuyas uniones son reversibles. Para cumplir con este criterio se debe lograr:\n- Dejar suficiente espacio para poder desmontarse (espacio para la persona y/o las herramientas).\n- Debe utilizar las mismas herramientas para instalarse como para desmontar.\n- Utilizar métodos de conexión universalmente reconocidos que no dañen el resto de materiales o las áreas adyacentes.\n- Minimizar la interdependencia entre materiales diferentes, productos, componentes o sistemas.\n\nEste criterio permite evaluar el cumplimiento de la independencia o de conexiones reversibles de manera independiente (cumpliendo con 1 punto) y en simultáneo (cumpliendo con 2 puntos).\n\nEjemplos que cumplen 1 punto\n- Techo: techo continuo de placas de escayola fijado mecánicamente al forjado mediante perfilería. \n- Estructura metálica a base de pórticos con uniones atornilladas, evitando la soldadura. La estructura queda oculta tras fábricas de ladillo o falsos techos continuos de escayola. \n- Instalación de ventilación a través de conductos y patinillos registrables en los que no se aloja otro tipo de instalaciones o equipamientos.\n\nEjemplos que cumple 2 puntos\n- Suelo a base mortero de regularización + manta aislante + tarima sistema click de láminas de  madera contrachapada.\n-Fachada: Muro cortina // Fachada ventilada XXX con fijaciones mecánicas, sin morteros o adhesivos.\n- Techo: Falso techo registrable a base de placas de escayola sistema XXX , fijado mecánicamente al forjado mediante perfilería de aluminio.\n- Cubierta plana no transitable a base de elementos de protección lastrados con grava, de forma que las diferentes capas son independientes entre sí, no adheridas entre sí. \n\nAclaraciones sobre la justificación\n- Se deberá justificar que las soluciones que cumplen con este criterio son fruto de la intervención proyectada, es decir, que no existían antes de la rehabilitación.\n- Para justificar el cumplimiento de este criterio se deberá indicar en qué parte del Proyecto de Rehabilitación, Memoria o Documento Complementario figura la descripción de cada instalación puntuada con \"1\" o \"2\" en la que se detalle cómo se garantiza la Independencia o las Conexiones Reversibles. En su caso, esta justificación podrá contener Fichas Técnicas de entidades fabricantes o instaladoras de los correspondientes sistemas. \n- Se podrá considerar que la intervención cumple si al menos el 90% del elemento o sistema intervenido cumple. De ser el caso, se deberá aportar justificación en términos de % de metros cuadrados o de metros lineales respecto de los totales intervenidos, de lo contrario sedeberá considerar una puntuación 0."]
[]
[null,null,null,"En las intervenciones correspondiente a Instalaciones no serán objeto de análisis los equipos (sistemas de producción, bombas, equipos de control, etc). Únicamente se analizará en este criterio la parte correspondiente a la red o a las conducciones en el caso de:    \nEIS: Instalaciones de redes de saneamiento y evacuación de aguas\nEIF: Instalaciones abastecimiento y suministro de agua\nEIE: Instalaciones de electricidad\nEIL: Instalaciones de iluminación y alumbrado\nEIN: Instalaciones de captación solar fotovoltaica\nEIC: Instalaciones de calefacción\nEIB: Instalaciones de climatización\nEIV: Ventilación y extracción"]
[]
[null,{"$f":"IF(N43=\"NO APLICA A LA EVALUACIÓN\",\"PUNTUACIÓN \",\"PUNTUACIÓN\")","v":"PUNTUACIÓN "},null,{"$f":"IF(N43=\"NO APLICA A LA EVALUACIÓN\",\"0 puntos \",\"0 puntos\")","v":"0 puntos "},null,"La intervención no tiene partes o componentes independientes"]
[]
[null,null,null,{"$f":"IF(N43=\"NO APLICA A LA EVALUACIÓN\",\"1 punto \",\"1 punto\")","v":"1 punto "},null,"La intervención es independiente de sus adyacentes o tiene componentes reversibles"]
[]
[null,null,null,{"$f":"IF(N43=\"NO APLICA A LA EVALUACIÓN\",\"2 puntos \",\"2 puntos\")","v":"2 puntos "},null,"La intervención es independiente de sus adyacentes y sus componentes son reversibles"]
[]
[null,{"$f":"IF(N43=\"NO APLICA A LA EVALUACIÓN\",\"EVALUACIÓN \",\"EVALUACIÓN\")","v":"EVALUACIÓN "},null,null,null,null,null,null,null,null,null,{"$f":"IF(N43=\"NO APLICA A LA EVALUACIÓN\",\"Cantidad de intervenciones \",\"Cantidad de intervenciones\")","v":"Cantidad de intervenciones "},null,{"$f":"IF(COUNTIF(D26:F39,\"*\"),COUNTIF(D26:F39,\"*\"),0)","v":0}]
[]
[null,null,null,null,null,null,null,null,null,null,null,{"$f":"IF(N43=\"NO APLICA A LA EVALUACIÓN\",\"β \",\"β\")","v":"β "},null,{"$f":"N16*2","v":0}]
[]
[null,null,null,null,null,null,null,null,null,null,null,{"$f":"IF(N43=\"NO APLICA A LA EVALUACIÓN\",\"Puntuación por alcanzar \",\"Puntuación por alcanzar\")","v":"Puntuación por alcanzar "},null,{"$f":"IF(N16>0,IF(N16>=3,(ROUNDUP(0.2*N18,0)),1),0)","v":0}]
[]
[null,{"$f":"IF(N43=\"NO APLICA A LA EVALUACIÓN\",\"INTERVENCIONES SELECCIONADAS \",\"INTERVENCIONES SELECCIONADAS\")","v":"INTERVENCIONES SELECCIONADAS "}]
[]
[null,{"$f":"IF(N43=\"NO APLICA A LA EVALUACIÓN\",\"COD \",\"COD\")","v":"COD "},null,{"$f":"IF(N43=\"NO APLICA A LA EVALUACIÓN\",\"INTERVENCIONES \",\"INTERVENCIONES\")","v":"INTERVENCIONES "},null,null,null,null,null,null,null,{"$f":"IF(N43=\"NO APLICA A LA EVALUACIÓN\",\"PUNTUACIÓN \",\"PUNTUACIÓN\")","v":"PUNTUACIÓN "},null,{"$f":"IF(N43=\"NO APLICA A LA EVALUACIÓN\",\"INDICAR UBICACIÓN DE LA JUSTIFICACIÓN (DOCUMENTO/ N° DE ANEXO, CAPÍTULO/ PÁGINA) \",\"INDICAR UBICACIÓN DE LA JUSTIFICACIÓN (DOCUMENTO/ N° DE ANEXO, CAPÍTULO/ PÁGINA)\")","v":"INDICAR UBICACIÓN DE LA JUSTIFICACIÓN (DOCUMENTO/ N° DE ANEXO, CAPÍTULO/ PÁGINA) "}]
[]
[]
[]
[]
[]
[]
[]
[]
[]
[]
[]
[]
[]
[]
[]
[]
[null,{"$f":"IF(N43=\"NO APLICA A LA EVALUACIÓN\",\"RESULTADO \",\"RESULTADO\")","v":"RESULTADO "}]
[]
[null,{"$f":"IF(N43=\"NO APLICA A LA EVALUACIÓN\",\"Puntuación total alcanzada \",\"Puntuación total alcanzada\")","v":"Puntuación total alcanzada "},null,null,null,null,null,null,null,null,null,{"$f":"SUM(L26:L39)","v":0},null,{"$f":"IF(COUNTIF(D26:J39,\"*\"),(IF(L43>=N20,\"CUMPLE\",\"NO CUMPLE\")),\"NO APLICA A LA EVALUACIÓN\")","v":"NO APLICA A LA EVALUACIÓN"}]

{"sheet":"C6. ETAI","index":15,"n_rows":37,"n_cols":14,"rows_kept":37,"cut":false,"hidden":false,"merged":[[6,3,8,17],[23,1,23,18],[3,1,3,18],[11,5,11,18],[13,5,13,18],[13,3,15,3],[15,5,15,18],[11,1,15,1],[17,1,21,1],[17,3,21,9],[17,13,17,18],[19,13,19,18],[21,13,21,18],[5,1,8,1],[25,3,25,9],[25,13,25,18],[27,3,27,9],[27,13,27,18],[28,3,28,9],[28,13,28,18],[29,3,29,9],[29,13,29,18],[30,3,30,9],[30,13,30,18],[31,3,31,9],[31,13,31,18],[31,19,31,20],[34,1,34,18],[36,1,36,9],[36,13,36,18],[32,13,32,18],[32,3,32,9]]}
["Más info."]
[]
[]
[null,{"$f":"IF(N37=\"NO APLICA A LA EVALUACIÓN\",\"C6. EVITAR TRATAMIENTOS Y ACABADOS INNECESARIOS                                                                                                               - NO APLICA A LA EVALUACIÓN\",\"C6. EVITAR TRATAMIENTOS Y ACABADOS INNECESARIOS\")","v":"C6. EVITAR TRATAMIENTOS Y ACABADOS INNECESARIOS                                                                                                               - NO APLICA A LA EVALUACIÓN"}]
[]
[null,{"$f":"IF(N37=\"NO APLICA A LA EVALUACIÓN\",\"DEFINICIÓN \",\"DEFINICIÓN\")","v":"DEFINICIÓN "}]
[null,null,null,"Descripción del criterio\nLa elección de acabados o revestimientos puede limitar las posibilidades de reutilizar o reciclar elementos representativos*, es por ello que en lo posible deben evitarse capas extras. Los acabados deben tener un uso específico necesario, por ejemplo, seguridad contra incendios, permeabilidad, protección contra la corrosión, etc. \n(*)Se consideran como \"elementos representativos\" para este criterio elementos como:\na. Paramentos y particiones verticales\nb. Suelos y Techos \nc. Fachadas y cubiertas (la cara a evaluar será la parte exterior)\nd. Estructura (los elementos estructurales a evaluar serán aquellos que queden vistos)\n\nLos elementos que carecen de un tratamiento o acabado innecesario deberán ser los que cumplan al menos con una de las características siguientes:\n- Materiales de acabado instalados en seco.\n- Materiales caravista como madera, cerámica, bloque, hormigón, etc. todos ellos vistos o en crudo.\n\nEjemplos\n- Ejecución (implementación) de las particiones interiores de entramado ligero de madera con revestimiento vertical en OSB visto, sin tratamiento o pintura adicional.\n- Ejecución de las particiones interiores de fábrica con el ladrillo dejado visto, de disposición y aparejo con acabado estético de carácter visto, sin necesidad de enlucido adicional.\n- Ejecución de la hoja exterior de la fachada mediante un sistema de fachada ventilada con sistema de anclaje mecánico y revestimiento de piezas cerámicas  recuperables.\n- Ejecución de la hoja exterior de la cubierta inclinada mediante un sistema de cubierta ventilada con sistema enrastrelado y cubrición final mediante tejas mixtas ancladas.\n\nAclaraciones sobre la justificación\n- Se deberá justificar que las soluciones que cumplen con este criterio son fruto de la intervención proyectada, es decir, que no existían antes de la rehabilitación.\n- Para justificar el cumplimiento de este criterio se deberá indicar en qué parte del Proyecto de Rehabilitación, Memoria o Documento Complementario figura la descripción de cada intervención puntuada con \"1\" en la que se detallen los materiales de acabado y si el sistema de fijación es en seco o no. \n- Se entenderá que la intervención cumple con esta característica siempre que la totalidad o la casi totalidad del elemento analizado cuente con este tipo de acabados. \n- Se podrá considerar que la intervención cumple si al menos el 90% del elemento o sistema intervenido cumple. De ser el caso, se deberá aportar justificación en términos de % de metros cuadrados o de metros lineales respecto de los totales intervenidos, de lo contrario sedeberá considerar una puntuación 0."]
[]
[]
[]
[]
[null,{"$f":"IF(N37=\"NO APLICA A LA EVALUACIÓN\",\"PUNTUACIÓN \",\"PUNTUACIÓN\")","v":"PUNTUACIÓN "},null,{"$f":"IF(N37=\"NO APLICA A LA EVALUACIÓN\",\"0 puntos \",\"0 puntos\")","v":"0 puntos "},null,"El elemento/material de revestimiento cuenta con tratamientos o acabados "]
[]
[null,null,null,{"$f":"IF(N37=\"NO APLICA A LA EVALUACIÓN\",\"1 punto \",\"1 punto\")","v":"1 punto "},null,"Los acabados del elemento son instalados en seco"]
[]
[null,null,null,null,null,"Los acabados del elemento son materiales caravistas"]
[]
[null,{"$f":"IF(N37=\"NO APLICA A LA EVALUACIÓN\",\"EVALUACIÓN \",\"EVALUACIÓN\")","v":"EVALUACIÓN "},null,null,null,null,null,null,null,null,null,{"$f":"IF(N37=\"NO APLICA A LA EVALUACIÓN\",\"Cantidad de intervenciones \",\"Cantidad de intervenciones\")","v":"Cantidad de intervenciones "},null,{"$f":"IF(COUNTIF(D28:F33,\"*\"),COUNTIF(D28:F33,\"*\"),0)","v":0}]
[]
[null,null,null,null,null,null,null,null,null,null,null,{"$f":"IF(N37=\"NO APLICA A LA EVALUACIÓN\",\"β \",\"β\")","v":"β "},null,{"$f":"N18*1","v":0}]
[]
[null,null,null,null,null,null,null,null,null,null,null,{"$f":"IF(N37=\"NO APLICA A LA EVALUACIÓN\",\"Puntuación por alcanzar \",\"Puntuación por alcanzar\")","v":"Puntuación por alcanzar "},null,{"$f":"IF(N18>0,IF(N18>=3,(ROUNDUP(0.2*N20,0)),1),0)","v":0}]
[]
[null,{"$f":"IF(N37=\"NO APLICA A LA EVALUACIÓN\",\"INTERVENCIONES SELECCIONADAS \",\"INTERVENCIONES SELECCIONADAS\")","v":"INTERVENCIONES SELECCIONADAS "}]
[]
[null,{"$f":"IF(N37=\"NO APLICA A LA EVALUACIÓN\",\"COD \",\"COD\")","v":"COD "},null,{"$f":"IF(N37=\"NO APLICA A LA EVALUACIÓN\",\"INTERVENCIONES \",\"INTERVENCIONES\")","v":"INTERVENCIONES "},null,null,null,null,null,null,null,{"$f":"IF(N37=\"NO APLICA A LA EVALUACIÓN\",\"PUNTUACIÓN \",\"PUNTUACIÓN\")","v":"PUNTUACIÓN "},null,{"$f":"IF(N37=\"NO APLICA A LA EVALUACIÓN\",\"INDICAR UBICACIÓN DE LA JUSTIFICACIÓN (DOCUMENTO/ N° DE ANEXO, CAPÍTULO/ PÁGINA) \",\"INDICAR UBICACIÓN DE LA JUSTIFICACIÓN (DOCUMENTO/ N° DE ANEXO, CAPÍTULO/ PÁGINA)\")","v":"INDICAR UBICACIÓN DE LA JUSTIFICACIÓN (DOCUMENTO/ N° DE ANEXO, CAPÍTULO/ PÁGINA) "}]
[]
[]
[]
[]
[]
[]
[]
[]
[null,{"$f":"IF(N37=\"NO APLICA A LA EVALUACIÓN\",\"RESULTADO \",\"RESULTADO\")","v":"RESULTADO "}]
[]
[null,{"$f":"IF(N37=\"NO APLICA A LA EVALUACIÓN\",\"Puntuación total alcanzada \",\"Puntuación total alcanzada\")","v":"Puntuación total alcanzada "},null,null,null,null,null,null,null,null,null,{"$f":"SUM(L28:L33)","v":0},null,{"$f":"IF(COUNTIF(D28:J33,\"*\"),(IF(L37>=N22,\"CUMPLE\",\"NO CUMPLE\")),\"NO APLICA A LA EVALUACIÓN\")","v":"NO APLICA A LA EVALUACIÓN"}]

{"sheet":"C7. AEC","index":16,"n_rows":45,"n_cols":14,"rows_kept":45,"cut":false,"hidden":false,"merged":[[42,1,42,18],[44,1,44,9],[44,13,44,18],[40,3,40,9],[40,13,40,18],[37,3,37,9],[37,13,37,18],[38,3,38,9],[38,13,38,18],[39,3,39,9],[39,13,39,18],[34,3,34,9],[34,13,34,18],[35,3,35,9],[35,13,35,18],[36,3,36,9],[36,13,36,18],[31,3,31,9],[31,13,31,18],[32,3,32,9],[32,13,32,18],[33,3,33,9],[33,13,33,18],[28,3,28,9],[28,13,28,18],[29,3,29,9],[29,13,29,18],[30,3,30,9],[30,13,30,18],[25,3,25,9],[25,13,25,18],[26,3,26,9],[26,13,26,18],[27,3,27,9],[27,13,27,18],[21,3,21,9],[21,13,21,18],[23,3,23,9],[23,13,23,18],[24,3,24,9],[24,13,24,18],[19,1,19,18],[3,1,3,18],[7,3,7,18],[9,1,11,1],[9,5,9,18],[11,5,11,18],[13,1,17,1],[13,3,17,9],[13,13,13,18],[15,13,15,18],[17,13,17,18],[6,3,6,17],[5,1,7,1]]}
["Más info."]
[]
[]
[null,{"$f":"IF(N45=\"NO APLICA A LA EVALUACIÓN\",\"C7. APOYO A LA ECONOMÍA CIRCULAR - NO APLICA A LA EVALUACIÓN\",\"C7. APOYO A LA ECONOMÍA CIRCULAR\")","v":"C7. APOYO A LA ECONOMÍA CIRCULAR - NO APLICA A LA EVALUACIÓN"}]
[]
[null,{"$f":"IF(N45=\"NO APLICA A LA EVALUACIÓN\",\"DEFINICIÓN \",\"DEFINICIÓN\")","v":"DEFINICIÓN "}]
[null,null,null,"Descripción del criterio\nEste criterio se refiere a la colaboración en el desarrollo del mercado de la reutilización, renovación, remanufacturabilidad y reciclaje de materiales o productos. Su cumplimiento se mide en base a los posibles certificados de reciclaje que puedan tener los materiales utilizados en la obra de rehabilitación, ya sea el elemento en su totalidad o los componentes de manera individual.\nExisten estas cuatro posibilidades de certificaciones que los materiales deben tener para poder cumplir con el criterio:\n- Certificado de contenido de reciclado (CR - Recycle Content).\n- Materiales con contenido reciclado: En base a la norma UNE-EN ISO 14021- etiquetas ecológicas y declaraciones medioambientales, Levantina les puede facilitar la Autodeclaración ambiental de contenido en reciclado.\n- Certificación Ambiental, Etiqueta Ecológica Tipo I según ISO 14024.\n- DAP (Declaraciones ambientales de producto) Etiqueta Ecológica Tipo III según ISO 14025.\n- Etiqueta energética B o A según el Reglamento UE/2017/1369, considerando la nueva escala del etiquetado energético en vigor desde el 1 de marzo 2021.\n\nEjemplos\n- Se han proyectado baldosas cerámicas suministradas por una empresa productora con una Etiqueta Ecológica Tipo III certificada por AENOR u otra entidad de certificación acreditada.\n\nAclaraciones sobre la justificación\n- Se deberá justificar que las soluciones que cumplen con este criterio son fruto de la intervención proyectada, es decir, que no existían antes de la rehabilitación.\n- Para justificar el cumplimiento de este criterio se deberá indicar en qué parte del Proyecto de Rehabilitación, Memoria o Documento Complementario figura la descripción de cada intervención puntuada con \"1\" en la que se detallen los elementos, materiales o componentes con certificado y se presente copia del certificado vigente correspondiente.\n- Se entenderá que la intervención evaluada cumple con este criterio si los elementos, materiales o componentes con certificado son representativos respecto al conjunto de la intervención.\n- Se podrá considerar que la intervención cumple si al menos el 90% del elemento o sistema intervenido cumple. De ser el caso, se deberá aportar justificación en términos de % de metros cuadrados o de metros lineales respecto de los totales intervenidos, de lo contrario sedeberá considerar una puntuación 0."]
[]
[]
[null,{"$f":"IF(N45=\"NO APLICA A LA EVALUACIÓN\",\"PUNTUACIÓN \",\"PUNTUACIÓN\")","v":"PUNTUACIÓN "},null,{"$f":"IF(N45=\"NO APLICA A LA EVALUACIÓN\",\"0 puntos \",\"0 puntos\")","v":"0 puntos "},null,"El elemento, material o componente no tiene ningún certificado."]
[]
[null,null,null,{"$f":"IF(N45=\"NO APLICA A LA EVALUACIÓN\",\"1 punto \",\"1 punto\")","v":"1 punto "},null,"El elemento, material o componente cuenta con alguno de los certificados mencionados previamente."]
[]
[null,{"$f":"IF(N45=\"NO APLICA A LA EVALUACIÓN\",\"EVALUACIÓN \",\"EVALUACIÓN\")","v":"EVALUACIÓN "},null,null,null,null,null,null,null,null,null,{"$f":"IF(N45=\"NO APLICA A LA EVALUACIÓN\",\"Cantidad de intervenciones \",\"Cantidad de intervenciones\")","v":"Cantidad de intervenciones "},null,{"$f":"IF(COUNTIF(D24:F41,\"*\"),COUNTIF(D24:F41,\"*\"),0)","v":0}]
[]
[null,null,null,null,null,null,null,null,null,null,null,{"$f":"IF(N45=\"NO APLICA A LA EVALUACIÓN\",\"β \",\"β\")","v":"β "},null,{"$f":"N14*1","v":0}]
[]
[null,null,null,null,null,null,null,null,null,null,null,{"$f":"IF(N45=\"NO APLICA A LA EVALUACIÓN\",\"Puntuación por alcanzar \",\"Puntuación por alcanzar\")","v":"Puntuación por alcanzar "},null,{"$f":"IF(N14>0,IF(N14>=3,(ROUNDUP(0.2*N16,0)),1),0)","v":0}]
[]
[null,{"$f":"IF(N45=\"NO APLICA A LA EVALUACIÓN\",\"INTERVENCIONES SELECCIONADAS \",\"INTERVENCIONES SELECCIONADAS\")","v":"INTERVENCIONES SELECCIONADAS "}]
[]
[null,{"$f":"IF(N45=\"NO APLICA A LA EVALUACIÓN\",\"COD \",\"COD\")","v":"COD "},null,{"$f":"IF(N45=\"NO APLICA A LA EVALUACIÓN\",\"INTERVENCIONES \",\"INTERVENCIONES\")","v":"INTERVENCIONES "},null,null,null,null,null,null,null,{"$f":"IF(N45=\"NO APLICA A LA EVALUACIÓN\",\"PUNTUACIÓN \",\"PUNTUACIÓN\")","v":"PUNTUACIÓN "},null,{"$f":"IF(N45=\"NO APLICA A LA EVALUACIÓN\",\"INDICAR UBICACIÓN DE LA JUSTIFICACIÓN (DOCUMENTO/ N° DE ANEXO, CAPÍTULO/ PÁGINA) \",\"INDICAR UBICACIÓN DE LA JUSTIFICACIÓN (DOCUMENTO/ N° DE ANEXO, CAPÍTULO/ PÁGINA)\")","v":"INDICAR UBICACIÓN DE LA JUSTIFICACIÓN (DOCUMENTO/ N° DE ANEXO, CAPÍTULO/ PÁGINA) "}]
[]
[null,null,null,null,null,null,null,null,null,null,null,null,null,""]
[]
[]
[]
[]
[]
[]
[]
[]
[]
[]
[]
[]
[]
[]
[]
[]
[]
[]
[null,{"$f":"IF(N45=\"NO APLICA A LA EVALUACIÓN\",\"RESULTADO \",\"RESULTADO\")","v":"RESULTADO "}]
[]
[null,{"$f":"IF(N45=\"NO APLICA A LA EVALUACIÓN\",\"Puntuación total alcanzada \",\"Puntuación total alcanzada\")","v":"Puntuación total alcanzada "},null,null,null,null,null,null,null,null,null,{"$f":"SUM(L24:L41)","v":0},null,{"$f":"IF(COUNTIF(D24:J41,\"*\"),(IF(L45>=N18,\"CUMPLE\",\"NO CUMPLE\")),\"NO APLICA A LA EVALUACIÓN\")","v":"NO APLICA A LA EVALUACIÓN"}]

{"sheet":"C8. EPC","index":17,"n_rows":40,"n_cols":14,"rows_kept":40,"cut":false,"hidden":false,"merged":[[39,1,39,9],[39,13,39,18],[37,1,37,18],[33,3,33,9],[33,13,33,18],[34,3,34,9],[34,13,34,18],[35,3,35,9],[35,13,35,18],[30,3,30,9],[30,13,30,18],[31,3,31,9],[31,13,31,18],[32,3,32,9],[32,13,32,18],[27,13,27,18],[28,3,28,9],[28,13,28,18],[29,3,29,9],[29,13,29,18],[27,3,27,9],[13,1,17,1],[13,3,17,9],[13,13,13,18],[15,13,15,18],[17,13,17,18],[3,1,3,18],[9,1,11,1],[9,5,9,18],[11,5,11,18],[5,1,7,1],[5,3,6,17],[7,3,7,17],[19,1,19,18],[21,3,21,9],[21,13,21,18],[23,3,23,9],[23,13,23,18],[24,3,24,9],[24,13,24,18],[25,3,25,9],[25,13,25,18],[26,3,26,9],[26,13,26,18]]}
["Más info."]
[]
[]
[null,{"$f":"IF(N40=\"NO APLICA A LA EVALUACIÓN\",\"C8. EFICIENCIA EN EL PROCESO CONSTRUCTIVO                                                                                                                             - NO APLICA A LA EVALUACIÓN\",\"C8. EFICIENCIA EN EL PROCESO CONSTRUCTIVO\")","v":"C8. EFICIENCIA EN EL PROCESO CONSTRUCTIVO                                                                                                                             - NO APLICA A LA EVALUACIÓN"}]
[]
[null,{"$f":"IF(N40=\"NO APLICA A LA EVALUACIÓN\",\"DEFINICIÓN \",\"DEFINICIÓN\")","v":"DEFINICIÓN "},null,"Descripción del criterio\nEste criterio se refiere a la eficiencia en el desarrollo de las intervenciones que permite que el proceso de montaje e instalación sea fácil y sencillo, ya que se encuentra diseñado con componentes estandarizados que permiten satisfacer los requerimientos del diseño, generando una menor cantidad de residuos. Asimismo,  las partes estandarizadas hacen el trabajo más eficiente ya que se utiliza un sistema repetitivo de instalación y las mismas herramientas o parecidas. La estandarización puede darse en tres escalas:\n\n1. Eficiencia y estandarización de sistemas representativos:\nEn este caso se puede tratar del uso de las mismas dimensiones o modulación, de tal manera que el proceso de montaje y las herramientas a utilizar serán las mismas.\n\n2. Eficiencia y estandarización de conexiones:\nLa estandarización de estas conexiones facilita el uso de las mismas herramientas y el mismo proceso constructivo ya que se utiliza el mismo orden y pasos a seguir en el proceso de conexión de componentes y/o piezas lo que hace que todo el proceso constructivo sea más eficiente. \n\n3. Eficiencia y estandarización de componentes/piezas:\nLa estandarización de piezas permite el intercambio de las mismas entre partes y componentes, el reemplazo de manera fácil y rápida (ya que se trata, por lo genera, de piezas comerciales y fáciles de conseguir). \n\nEjemplos\n- Estructura realizada con piezas prefabricadas de acero /hormigón/madera, del sistema estandarizado XXX de la casa comercial XXX.\n- Hoja principal de fachada resuelta con sistema prefabricado de placas de hormigón del sistema estandarizado XXX de la casa comercial XXX. \n- Fachada ventilada resuelta con sistema prefabricado de perfilería de xxx  (material) y placas de xxx (material)  del sistema estandarizado XXX de la casa comercial XXX.\n- Cubierta resuelta con sistema XXX de panel sándwich xxx de la marca comercial XXX, fijado mecánicamente sobre entramado estructural de madera.\n- Instalación de suministro de agua a base de sistema XXX de la casa comercial XXX de tubería PEX- Polietileno reticulado + piezas de conexión.\n- Instalación de la red de suministro de agua con sistema estándar XXX con tubos de poietileno reticulado (PEX) de la casa XXX.\n \nAclaraciones sobre la justificación\n- Se deberá justificar que las soluciones que cumplen con este criterio son fruto de la intervención proyectada, es decir, que no existían antes de la rehabilitación.\n- Para justificar el cumplimiento de este criterio se deberá indicar en qué parte del Proyecto de Rehabilitación, Memoria o Documento Complementario figura la descripción de cada intervención puntuada con \"1\" en la que se detallen los elementos, materiales o componentes que presentan simplicidad o estandarización y se adjunten, en su caso, las fichas técnicas emitidas por la empresa fabricante o instaladora. \n- Se entenderá que la intervención evaluada cumple con este criterio si los elementos, materiales o componentes analizados son representativos respecto al conjunto de la intervención.\n- Se podrá considerar que la intervención cumple si al menos el 90% del elemento o sistema intervenido cumple. De ser el caso, se deberá aportar justificación en términos de % de metros cuadrados o de metros lineales respecto de los totales intervenidos, de lo contrario sedeberá considerar una puntuación 0."]
[]
[null,null,null,"En las intervenciones correspondiente a Instalaciones no serán objeto de análisis los equipos (sistemas de producción, bombas, equipos de control, etc). Únicamente se analizará en este criterio la parte correspondiente a la red o a las conducciones en el caso de:    \nEIS: Instalaciones de redes de saneamiento y evacuación de aguas\nEIF: Instalaciones abastecimiento y suministro de agua\nEIC: Instalaciones de calefacción\nEIB: Instalaciones de climatización\nEIV: Ventilación y extracción"]
[]
[null,{"$f":"IF(N40=\"NO APLICA A LA EVALUACIÓN\",\"PUNTUACIÓN \",\"PUNTUACIÓN\")","v":"PUNTUACIÓN "},null,{"$f":"IF(N40=\"NO APLICA A LA EVALUACIÓN\",\"0 puntos \",\"0 puntos\")","v":"0 puntos "},null,"El elemento, material o componente no es estandarizado"]
[]
[null,null,null,{"$f":"IF(N40=\"NO APLICA A LA EVALUACIÓN\",\"1 punto \",\"1 punto\")","v":"1 punto "},null,"El elemento, material o componente es estándar"]
[]
[null,{"$f":"IF(N40=\"NO APLICA A LA EVALUACIÓN\",\"EVALUACIÓN \",\"EVALUACIÓN\")","v":"EVALUACIÓN "},null,null,null,null,null,null,null,null,null,{"$f":"IF(N40=\"NO APLICA A LA EVALUACIÓN\",\"Cantidad de intervenciones \",\"Cantidad de intervenciones\")","v":"Cantidad de intervenciones "},null,{"$f":"IF(COUNTIF(D24:F36,\"*\"),COUNTIF(D24:F36,\"*\"),0)","v":0}]
[]
[null,null,null,null,null,null,null,null,null,null,null,{"$f":"IF(N40=\"NO APLICA A LA EVALUACIÓN\",\"β \",\"β\")","v":"β "},null,{"$f":"N14*1","v":0}]
[]
[null,null,null,null,null,null,null,null,null,null,null,{"$f":"IF(N40=\"NO APLICA A LA EVALUACIÓN\",\"Puntuación por alcanzar \",\"Puntuación por alcanzar\")","v":"Puntuación por alcanzar "},null,{"$f":"IF(N14>0,IF(N14>=3,(ROUNDUP(0.2*N16,0)),1),0)","v":0}]
[]
[null,{"$f":"IF(N40=\"NO APLICA A LA EVALUACIÓN\",\"INTERVENCIONES SELECCIONADAS \",\"INTERVENCIONES SELECCIONADAS\")","v":"INTERVENCIONES SELECCIONADAS "}]
[]
[null,{"$f":"IF(N40=\"NO APLICA A LA EVALUACIÓN\",\"COD \",\"COD\")","v":"COD "},null,{"$f":"IF(N40=\"NO APLICA A LA EVALUACIÓN\",\"INTERVENCIONES \",\"INTERVENCIONES\")","v":"INTERVENCIONES "},null,null,null,null,null,null,null,{"$f":"IF(N40=\"NO APLICA A LA EVALUACIÓN\",\"PUNTUACIÓN \",\"PUNTUACIÓN\")","v":"PUNTUACIÓN "},null,{"$f":"IF(N40=\"NO APLICA A LA EVALUACIÓN\",\"INDICAR UBICACIÓN DE LA JUSTIFICACIÓN (DOCUMENTO/ N° DE ANEXO, CAPÍTULO/ PÁGINA) \",\"INDICAR UBICACIÓN DE LA JUSTIFICACIÓN (DOCUMENTO/ N° DE ANEXO, CAPÍTULO/ PÁGINA)\")","v":"INDICAR UBICACIÓN DE LA JUSTIFICACIÓN (DOCUMENTO/ N° DE ANEXO, CAPÍTULO/ PÁGINA) "}]
[]
[]
[]
[]
[]
[]
[]
[]
[]
[]
[]
[]
[]
[]
[]
[null,{"$f":"IF(N40=\"NO APLICA A LA EVALUACIÓN\",\"RESULTADO \",\"RESULTADO\")","v":"RESULTADO "}]
[]
[null,{"$f":"IF(N40=\"NO APLICA A LA EVALUACIÓN\",\"Puntuación total alcanzada \",\"Puntuación total alcanzada\")","v":"Puntuación total alcanzada "},null,null,null,null,null,null,null,null,null,{"$f":"SUM(L24:L36)","v":0},null,{"$f":"IF(COUNTIF(D24:J36,\"*\"),(IF(L40>=N18,\"CUMPLE\",\"NO CUMPLE\")),\"NO APLICA A LA EVALUACIÓN\")","v":"NO APLICA A LA EVALUACIÓN"}]

{"sheet":"C9. SAD","index":18,"n_rows":40,"n_cols":14,"rows_kept":40,"cut":false,"hidden":false,"merged":[[39,1,39,9],[39,13,39,18],[37,1,37,18],[33,3,33,9],[33,13,33,18],[34,3,34,9],[34,13,34,18],[35,3,35,9],[35,13,35,18],[30,3,30,9],[30,13,30,18],[31,3,31,9],[31,13,31,18],[32,3,32,9],[32,13,32,18],[27,13,27,18],[28,3,28,9],[28,13,28,18],[29,3,29,9],[29,13,29,18],[27,3,27,9],[13,1,17,1],[13,3,17,9],[13,13,13,18],[15,13,15,18],[17,13,17,18],[3,1,3,18],[7,3,7,18],[9,1,11,1],[9,5,9,18],[11,5,11,18],[6,3,6,17],[5,1,7,1],[5,3,5,17],[19,1,19,18],[21,3,21,9],[21,13,21,18],[23,3,23,9],[23,13,23,18],[24,3,24,9],[24,13,24,18],[25,3,25,9],[25,13,25,18],[26,3,26,9],[26,13,26,18]]}
["Ocultar info."]
[]
[]
[null,{"$f":"IF(N40=\"NO APLICA A LA EVALUACIÓN\",\"C9. SEGURIDAD AL DESMONTAR - NO APLICA A LA EVALUACIÓN\",\"C9. SEGURIDAD AL DESMONTAR\")","v":"C9. SEGURIDAD AL DESMONTAR - NO APLICA A LA EVALUACIÓN"}]
[]
[null,{"$f":"IF(N40=\"NO APLICA A LA EVALUACIÓN\",\"DEFINICIÓN \",\"DEFINICIÓN\")","v":"DEFINICIÓN "}]
[null,null,null,"Descripción del criterio\nEste criterio se refiere a que todos los elementos, componentes, módulos o sistemas que puedan desmontarse deben considerar un plan de desmontaje o montaje (suficientemente especificado) desde la etapa de diseño para asegurar la efectividad y seguridad del proceso. Dicho plan de desmontaje/montaje (detallado) ofrece indicaciones para la sustitución de elementos independientes y el desmontaje completo del sistema.\n\nEsta característica está relacionada con el criterio de facilidad de acceso ya que éste promueve acceder sin problemas y de manera segura al sistema, pieza o conexión.\n\nEjemplo\n- La fachada ventilada se resuelve mediante el sistema XXX, y entre la documentación aportada se encuentra el Manual de Montaje y Desmontaje.\n\nAclaraciones sobre la justificación\n- Se deberá justificar que las soluciones que cumplen con este criterio son fruto de la intervención proyectada, es decir, que no existían antes de la rehabilitación.\n- Para justificar el cumplimiento de este criterio se deberá indicar en qué parte del Proyecto de Rehabilitación, Memoria o Documento Complementario figura la descripción de cada intervención puntuada con \"1\" , en la que se presenta el Plan de Desmontaje correspondiente, haya sido redactado por el equipo proyectista, la empresa constructora o la persona o empresa instaladora."]
[]
[]
[null,{"$f":"IF(N40=\"NO APLICA A LA EVALUACIÓN\",\"PUNTUACIÓN \",\"PUNTUACIÓN\")","v":"PUNTUACIÓN "},null,{"$f":"IF(N40=\"NO APLICA A LA EVALUACIÓN\",\"0 puntos \",\"0 puntos\")","v":"0 puntos "},null,"No dispone de plan de desmontaje"]
[]
[null,null,null,{"$f":"IF(N40=\"NO APLICA A LA EVALUACIÓN\",\"1 punto \",\"1 punto\")","v":"1 punto "},null,"Dispone de un plan de desmontaje o de montaje detallado"]
[]
[null,{"$f":"IF(N40=\"NO APLICA A LA EVALUACIÓN\",\"EVALUACIÓN \",\"EVALUACIÓN\")","v":"EVALUACIÓN "},null,null,null,null,null,null,null,null,null,{"$f":"IF(N40=\"NO APLICA A LA EVALUACIÓN\",\"Cantidad de intervenciones \",\"Cantidad de intervenciones\")","v":"Cantidad de intervenciones "},null,{"$f":"IF(COUNTIF(D24:F36,\"*\"),COUNTIF(D24:F36,\"*\"),0)","v":0}]
[]
[null,null,null,null,null,null,null,null,null,null,null,{"$f":"IF(N40=\"NO APLICA A LA EVALUACIÓN\",\"β \",\"β\")","v":"β "},null,{"$f":"N14*1","v":0}]
[]
[null,null,null,null,null,null,null,null,null,null,null,{"$f":"IF(N40=\"NO APLICA A LA EVALUACIÓN\",\"Puntuación por alcanzar \",\"Puntuación por alcanzar\")","v":"Puntuación por alcanzar "},null,{"$f":"IF(N14>0,IF(N14>=3,(ROUNDUP(0.2*N16,0)),1),0)","v":0}]
[]
[null,{"$f":"IF(N40=\"NO APLICA A LA EVALUACIÓN\",\"INTERVENCIONES SELECCIONADAS \",\"INTERVENCIONES SELECCIONADAS\")","v":"INTERVENCIONES SELECCIONADAS "}]
[]
[null,{"$f":"IF(N40=\"NO APLICA A LA EVALUACIÓN\",\"COD \",\"COD\")","v":"COD "},null,{"$f":"IF(N40=\"NO APLICA A LA EVALUACIÓN\",\"INTERVENCIONES \",\"INTERVENCIONES\")","v":"INTERVENCIONES "},null,null,null,null,null,null,null,{"$f":"IF(N40=\"NO APLICA A LA EVALUACIÓN\",\"PUNTUACIÓN \",\"PUNTUACIÓN\")","v":"PUNTUACIÓN "},null,{"$f":"IF(N40=\"NO APLICA A LA EVALUACIÓN\",\"INDICAR UBICACIÓN DE LA JUSTIFICACIÓN (DOCUMENTO/ N° DE ANEXO, CAPÍTULO/ PÁGINA) \",\"INDICAR UBICACIÓN DE LA JUSTIFICACIÓN (DOCUMENTO/ N° DE ANEXO, CAPÍTULO/ PÁGINA)\")","v":"INDICAR UBICACIÓN DE LA JUSTIFICACIÓN (DOCUMENTO/ N° DE ANEXO, CAPÍTULO/ PÁGINA) "}]
[]
[]
[]
[]
[]
[]
[]
[]
[]
[]
[]
[]
[]
[]
[]
[null,{"$f":"IF(N40=\"NO APLICA A LA EVALUACIÓN\",\"RESULTADO \",\"RESULTADO\")","v":"RESULTADO "}]
[]
[null,{"$f":"IF(N40=\"NO APLICA A LA EVALUACIÓN\",\"Puntuación total alcanzada \",\"Puntuación total alcanzada\")","v":"Puntuación total alcanzada "},null,null,null,null,null,null,null,null,null,{"$f":"SUM(L24:L36)","v":0},null,{"$f":"IF(COUNTIF(D24:J36,\"*\"),(IF(L40>=N18,\"CUMPLE\",\"NO CUMPLE\")),\"NO APLICA A LA EVALUACIÓN\")","v":"NO APLICA A LA EVALUACIÓN"}]

{"sheet":"C10. DUR","index":19,"n_rows":45,"n_cols":14,"rows_kept":45,"cut":false,"hidden":false,"merged":[[36,3,36,9],[36,13,36,18],[37,3,37,9],[37,13,37,18],[33,3,33,9],[33,13,33,18],[34,3,34,9],[34,13,34,18],[35,3,35,9],[35,13,35,18],[21,3,21,9],[21,13,21,18],[23,3,23,9],[23,13,23,18],[24,3,24,9],[24,13,24,18],[44,1,44,9],[44,13,44,18],[40,3,40,9],[40,13,40,18],[38,3,38,9],[38,13,38,18],[39,3,39,9],[39,13,39,18],[42,1,42,18],[30,3,30,9],[30,13,30,18],[31,3,31,9],[31,13,31,18],[32,3,32,9],[32,13,32,18],[3,1,3,18],[9,1,11,1],[9,5,9,18],[11,5,11,18],[6,3,6,17],[5,1,7,1],[19,1,19,18],[13,1,17,1],[13,3,17,9],[13,13,13,18],[15,13,15,18],[17,13,17,18],[27,3,27,9],[27,13,27,18],[29,3,29,9],[29,13,29,18],[25,3,25,9],[25,13,25,18],[26,3,26,9],[26,13,26,18],[28,3,28,9],[28,13,28,18]]}
["Más info."]
[]
[]
[null,{"$f":"IF(N45=\"NO APLICA A LA EVALUACIÓN\",\"C10. DURABILIDAD - NO APLICA A LA EVALUACIÓN\",\"C10. DURABILIDAD\")","v":"C10. DURABILIDAD - NO APLICA A LA EVALUACIÓN"}]
[]
[null,{"$f":"IF(N45=\"NO APLICA A LA EVALUACIÓN\",\"DEFINICIÓN \",\"DEFINICIÓN\")","v":"DEFINICIÓN "}]
[null,null,null,"Descripción del criterio\nLa durabilidad es unos de los criterios claves a tomar en cuenta en la toma de decisiones para la intervención en un proyecto. Este punto se refiere a la cantidad de años de servicio y costo de mantenimiento que tiene un material o sistema. Por ello es importante que cada instalación, material o componente cuente con un Plan de mantenimiento preventivo. \n\nEste criterio favorece que la propiedad del edificio cuente con un Plan de Mantenimiento que defina las operaciones periódicas a realizar para mantener el edificio en buen estado de conservación. \n\nEjemplo\n- El edificio rehabilitado dispone de plan de mantenimiento mediante POMEES\n- La instalación del sistema de producción de energía solar fotovoltaica cuenta con un Plan de Mantenimiento.\n\nAclaraciones para la justificación\n- Para justificar el cumplimiento de este criterio se deberá indicar en qué Documento Complementario figura el Plan de Mantenimiento de la intervención correspondiente. El Plan de Mantenimiento deberá contener la descripción de las operaciones que se deben realizarlas, su periodicidad y el tipo de personal que debe realizarlas.  \n- Para el caso de un Plan de mantenimiento del conjunto del edificio en cuanto a operaciones relativas a estructura, fachadas, cubiertas, instalación de suministro eléctrico, instalación de suministro de agua e instalación de evacuación de aguas, se puede utilizar la herramienta POMEES: Aplicación gratuita on line que permite generar un programa de mantenimiento para edificios de viviendas existentes. El programa de mantenimiento que se genera ofrece fichas editables con las operaciones de uso y mantenimiento, así como un gestor de mantenimiento. Este gestor es un calendario de las operaciones programadas a 10 años que permite un manejo ágil de la información."]
[]
[]
[null,{"$f":"IF(N45=\"NO APLICA A LA EVALUACIÓN\",\"PUNTUACIÓN \",\"PUNTUACIÓN\")","v":"PUNTUACIÓN "},null,{"$f":"IF(N45=\"NO APLICA A LA EVALUACIÓN\",\"0 puntos \",\"0 puntos\")","v":"0 puntos "},null,"No dispone de plan de mantenimiento preventivo"]
[]
[null,null,null,{"$f":"IF(N45=\"NO APLICA A LA EVALUACIÓN\",\"1 punto \",\"1 punto\")","v":"1 punto "},null,"Dispone de plan de mantenimiento preventivo redactado mediante POMEES u otra herramienta"]
[]
[null,{"$f":"IF(N45=\"NO APLICA A LA EVALUACIÓN\",\"EVALUACIÓN \",\"EVALUACIÓN\")","v":"EVALUACIÓN "},null,null,null,null,null,null,null,null,null,{"$f":"IF(N45=\"NO APLICA A LA EVALUACIÓN\",\"Cantidad de intervenciones \",\"Cantidad de intervenciones\")","v":"Cantidad de intervenciones "},null,{"$f":"IF(COUNTIF(D24:I41,\"*\"),COUNTIF(D24:I41,\"*\"),0)","v":0}]
[]
[null,null,null,null,null,null,null,null,null,null,null,{"$f":"IF(N45=\"NO APLICA A LA EVALUACIÓN\",\"β \",\"β\")","v":"β "},null,{"$f":"N14*1","v":0}]
[]
[null,null,null,null,null,null,null,null,null,null,null,{"$f":"IF(N45=\"NO APLICA A LA EVALUACIÓN\",\"Puntuación por alcanzar \",\"Puntuación por alcanzar\")","v":"Puntuación por alcanzar "},null,{"$f":"IF(N14>0,IF(N14>=3,(ROUNDUP(0.2*N16,0)),1),0)","v":0}]
[]
[null,{"$f":"IF(N45=\"NO APLICA A LA EVALUACIÓN\",\"INTERVENCIONES SELECCIONADAS \",\"INTERVENCIONES SELECCIONADAS\")","v":"INTERVENCIONES SELECCIONADAS "}]
[]
[null,{"$f":"IF(N45=\"NO APLICA A LA EVALUACIÓN\",\"COD \",\"COD\")","v":"COD "},null,{"$f":"IF(N45=\"NO APLICA A LA EVALUACIÓN\",\"INTERVENCIONES \",\"INTERVENCIONES\")","v":"INTERVENCIONES "},null,null,null,null,null,null,null,{"$f":"IF(N45=\"NO APLICA A LA EVALUACIÓN\",\"PUNTUACIÓN \",\"PUNTUACIÓN\")","v":"PUNTUACIÓN "},null,{"$f":"IF(N45=\"NO APLICA A LA EVALUACIÓN\",\"INDICAR UBICACIÓN DE LA JUSTIFICACIÓN (DOCUMENTO/ N° DE ANEXO, CAPÍTULO/ PÁGINA) \",\"INDICAR UBICACIÓN DE LA JUSTIFICACIÓN (DOCUMENTO/ N° DE ANEXO, CAPÍTULO/ PÁGINA)\")","v":"INDICAR UBICACIÓN DE LA JUSTIFICACIÓN (DOCUMENTO/ N° DE ANEXO, CAPÍTULO/ PÁGINA) "}]
[]
[]
[]
[]
[]
[]
[]
[]
[]
[]
[]
[]
[]
[]
[]
[]
[]
[]
[]
[]
["RESULTADO",{"$f":"IF(N45=\"NO APLICA A LA EVALUACIÓN\",\"RESULTADO \",\"RESULTADO\")","v":"RESULTADO "}]
[]
[null,{"$f":"IF(N45=\"NO APLICA A LA EVALUACIÓN\",\"Puntuación total alcanzada \",\"Puntuación total alcanzada\")","v":"Puntuación total alcanzada "},null,null,null,null,null,null,null,null,null,{"$f":"SUM(L24:L41)","v":0},null,{"$f":"IF(COUNTIF(D24:I41,\"*\"),(IF(L45>=N18,\"CUMPLE\",\"NO CUMPLE\")),\"NO APLICA A LA EVALUACIÓN\")","v":"NO APLICA A LA EVALUACIÓN"}]

{"sheet":"R. RESULTADOS","index":20,"n_rows":49,"n_cols":12,"rows_kept":49,"cut":false,"hidden":false,"merged":[[26,8,26,9],[10,0,10,6],[12,0,12,6],[18,0,18,6],[14,0,16,6],[20,0,20,6],[14,8,16,9],[22,0,24,6],[26,0,26,6],[18,8,18,9],[20,8,20,9],[22,8,24,9],[10,8,10,9],[12,8,12,9],[4,0,4,9],[2,0,2,9],[6,0,6,6],[8,0,8,6],[6,10,6,22],[6,8,6,9],[8,8,8,9],[46,6,46,8],[28,8,28,9],[32,8,32,9],[43,1,43,8],[28,0,28,6],[41,0,41,9],[34,0,34,9],[30,0,30,1],[30,5,30,6],[32,5,32,6]]}
[]
[]
["R. RESULTADOS",null,null,null,null,null,null,null,null,null,null,"Más info."]
[]
["RESUMEN DE CRITERIOS EVALUADOS"]
[]
["C1. VERSATILIDAD",null,null,null,null,null,null,null,{"$f":"'C1. VERS'!$J$24","v":"NO APLICA A LA EVALUACIÓN"}]
[]
["C2. CONVERTIBILIDAD ",null,null,null,null,null,null,null,{"$f":"'C2. CONV'!$J$24","v":"NO APLICA A LA EVALUACIÓN"}]
[]
["C3. CAPACIDAD DE AMPLIACIÓN",null,null,null,null,null,null,null,{"$f":"'C3. CAPA'!$J$24","v":"NO APLICA A LA EVALUACIÓN"}]
[]
["C4. FACILIDAD DE ACCESO A COMPONENTES Y SERVICIOS",null,null,null,null,null,null,null,{"$f":"'C4. FACS'!$N$36","v":"NO APLICA A LA EVALUACIÓN"}]
[]
["C5. INDEPENDENCIA -\nCONEXIONES REVERSIBLES",null,null,null,null,null,null,null,{"$f":"'C5. IND-CORE'!$N$43","v":"NO APLICA A LA EVALUACIÓN"}]
[]
[]
[]
["C6. EVITAR TRATAMIENTOS Y ACABADOS INNECESARIOS",null,null,null,null,null,null,null,{"$f":"'C6. ETAI'!$N$37","v":"NO APLICA A LA EVALUACIÓN"}]
[]
["C7. APOYO A ECONOMÍA CIRCULAR",null,null,null,null,null,null,null,{"$f":"'C7. AEC'!$N$45","v":"NO APLICA A LA EVALUACIÓN"}]
[]
["C8. ESTANDARIZACIÓN EN EL PROCESO CONSTRUCTIVO",null,null,null,null,null,null,null,{"$f":"'C8. EPC'!$N$40","v":"NO APLICA A LA EVALUACIÓN"}]
[]
[]
[]
["C9. SEGURIDAD AL DESMONTAR",null,null,null,null,null,null,null,{"$f":"'C9. SAD'!$N$40","v":"NO APLICA A LA EVALUACIÓN"}]
[]
["C10. DURABILIDAD",null,null,null,null,null,null,null,{"$f":"'C10. DUR'!$N$45","v":"NO APLICA A LA EVALUACIÓN"}]
[]
["TOTAL DE CRITERIOS EVALUADOS",null,null,{"$f":"(COUNTIF(I7:I29,\"CUMPLE\")+(COUNTIF(I7:I29,\"NO CUMPLE\")))","v":0},null,"TOTAL DE CRITERIOS CUMPLIDOS",null,null,{"$f":"COUNTIF(I7:J29,\"CUMPLE\")","v":0}]
[]
[null,"PORCENTAJE DE CRITERIOS CUMPLIDOS (%)",null,{"$f":"IFERROR((I31/D31),0)","v":0},null,"NIVEL DE CLASIFICACIÓN OBTENIDO",null,null,{"$f":"resultados!J2","v":"FALTA PUNTUACIÓN"}]
[]
["GRÁFICO DE RESULTADOS"]
[]
[]
[]
[]
[]
[]
["DECLARACIÓN Y FIRMA"]
[]
[null,"La persona abajo firmante, en calidad de autor/a del Proyecto o Memoria de mejora del edificio indicado en el apartado D1 de la presente ficha, expone que las características del edificio mejorado corresponden a las recogidas en el presente análisis sobre Desmontaje y Adaptabilidad;  las intervenciones planteadas en el Proyecto y la Memoria se recogen de forma completa en el presente análisis;  no se ha omitido o falseado información,  y que la justificación de las características del edificio figuran en la documentación técnica que  se ha ido indicando en cada criterio evaluado.\n\nFirma (firma digital en PDF)"]
[]
[]
[null,"NOMBRE Y APELLIDOS",null,null,null,{"$f":"IF(COUNTIF('D1. DATOS DEL PROYECTO'!$C$32,\"*\"),'D1. DATOS DEL PROYECTO'!$C$32,\" \")","v":" "},{"$f":"IF(COUNTIF('D1. DATOS DEL PROYECTO'!$C$34,\"*\"),'D1. DATOS DEL PROYECTO'!$C$34,\" \")","v":" "},null,null,{"$f":"'D1. DATOS DEL PROYECTO'!$M$32","v":0}]
[]
[null,"FECHA (dd/mm/aaaa)"]

{"sheet":"resultados","index":21,"n_rows":589,"n_cols":15,"rows_kept":589,"cut":false,"hidden":true,"merged":[]}
[null,"VALOR","ESTADO","INTERVENCIONES TOTALES","INTERVENCIONES LOGRADAS ",null,"TOTAL DE CRITERIOS EVALUADOS","CRITERIOS CUMPLIDOS","PORCENTAJE ","ESTADO",null,"FALTA PUNTUACIÓN","BUENO","MUY BUENO","EXCELENTE"]
["Versatilidad",{"$f":"IF($C$2=\"CUMPLE\",100,0)","v":0},{"$f":"'R. RESULTADOS'!$I$7","v":"NO APLICA A LA EVALUACIÓN"},null,null,null,{"$f":"'R. RESULTADOS'!$D$31","v":0},{"$f":"'R. RESULTADOS'!$I$31","v":0},{"$f":"IFERROR(H2/G2*100,0)","v":0},{"$f":"IF(I2<29,\"FALTA PUNTUACIÓN\",IF(I2<59,\"BUENO\",IF(I2<89,\"MUY BUENO\",\"EXCELENTE\")))","v":"FALTA PUNTUACIÓN"},null,0,30,60,90]
["Versatilidad",{"$f":"IF($C$2=\"CUMPLE\",100,0)","v":0},null,null,null,null,null,null,null,null,null,29,59,89,100]
["Versatilidad",0]
["Versatilidad",0,null,null,null,null,null,null,0,0]
["Versatilidad",0]
["Versatilidad",0,null,null,null,null,null,null,{"$f":"I2","v":0},0,null,null,"BUENO"]
["Versatilidad",0,null,null,null,null,null,null,{"$f":"I2","v":0},10]
["Versatilidad",0]
["Versatilidad",0,null,null,null,null,null,null,100,0]
["Versatilidad",0]
["Versatilidad",0]
["Versatilidad",0]
["Versatilidad",0]
["Versatilidad",0]
["Versatilidad",0]
["Versatilidad",0]
["Versatilidad",0]
["Versatilidad",0]
["Versatilidad",0]
["Versatilidad",0]
["Versatilidad",0]
["Versatilidad",0]
["Versatilidad",0]
["Versatilidad",0]
["Versatilidad",0]
["Versatilidad",0]
["Versatilidad",0]
["Versatilidad",0]
["Versatilidad",0]
["Versatilidad",0]
["Versatilidad",0]
["Versatilidad",0]
["Versatilidad",0]
["Versatilidad",0]
["Versatilidad",0]
["Versatilidad",0]
["Versatilidad",0]
["Versatilidad",0]
["Versatilidad",0]
["Versatilidad",0]
["Versatilidad",0]
["Versatilidad",0]
["Versatilidad",0]
["Versatilidad",0]
["Versatilidad",0]
["Versatilidad",0]
["Versatilidad",0]
["Versatilidad",0]
["Versatilidad",0]
[]
["Convertibilidad",{"$f":"IF($C$52=\"CUMPLE\",100,0)","v":0},{"$f":"'R. RESULTADOS'!$I$9","v":"NO APLICA A LA EVALUACIÓN"}]
["Convertibilidad",{"$f":"IF($C$52=\"CUMPLE\",100,0)","v":0}]
["Convertibilidad",0]
["Convertibilidad",0]
["Convertibilidad",0]
["Convertibilidad",0]
["Convertibilidad",0]
["Convertibilidad",0]
["Convertibilidad",0]
["Convertibilidad",0]
["Convertibilidad",0]
["Convertibilidad",0]
["Convertibilidad",0]
["Convertibilidad",0]
["Convertibilidad",0]
["Convertibilidad",0]
["Convertibilidad",0]
["Convertibilidad",0]
["Convertibilidad",0]
["Convertibilidad",0]
["Convertibilidad",0]
["Convertibilidad",0]
["Convertibilidad",0]
["Convertibilidad",0]
["Convertibilidad",0]
["Convertibilidad",0]
["Convertibilidad",0]
["Convertibilidad",0]
["Convertibilidad",0]
["Convertibilidad",0]
["Convertibilidad",0]
["Convertibilidad",0]
["Convertibilidad",0]
["Convertibilidad",0]
["Convertibilidad",0]
["Convertibilidad",0]
["Convertibilidad",0]
["Convertibilidad",0]
["Convertibilidad",0]
["Convertibilidad",0]
["Convertibilidad",0]
["Convertibilidad",0]
["Convertibilidad",0]
["Convertibilidad",0]
["Convertibilidad",0]
["Convertibilidad",0]
["Convertibilidad",0]
["Convertibilidad",0]
[]
["nada",0,0]
["nada",0,0]
["nada",0,0]
["nada",0,0]
["nada",0,0]
["nada",0,0]
["nada",0,0]
["nada",0,0]
["nada",0,0]
["nada",0,0]
["nada",0,0]
["nada",0,0]
["nada",0,0]
["nada",0,0]
["nada",0,0]
["nada",0,0]
["nada",0,0]
["nada",0,0]
["nada",0,0]
["nada",0,0]
["nada",0,0]
["nada",0,0]
["nada",0,0]
["nada",0,0]
["nada",0,0]
["nada",0,0]
["nada",0,0]
["nada",0,0]
["nada",0,0]
["nada",0,0]
["nada",0,0]
["nada",0,0]
["nada",0,0]
["nada",0,0]
["nada",0,0]
["nada",0,0]
["nada",0,0]
["nada",0,0]
["nada",0,0]
["nada",0,0]
["nada",0,0]
["nada",0,0]
["nada",0,0]
["nada",0,0]
["nada",0,0]
["nada",0,0]
["nada",0,0]
["nada",0,0]
[null,null,0]
["nada",0,0]
["nada",0,0]
["nada",0,0]
["nada",0,0]
["nada",0,0]
["nada",0,0]
["nada",0,0]
["nada",0,0]
["nada",0,0]
["nada",0,0]
["nada",0,0]
["nada",0,0]
["nada",0,0]
["nada",0,0]
["nada",0,0]
["nada",0,0]
["nada",0,0]
["nada",0,0]
["nada",0,0]
["nada",0,0]
["nada",0,0]
["nada",0,0]
["nada",0,0]
["nada",0,0]
["nada",0,0]
["nada",0,0]
["nada",0,0]
["nada",0,0]
["nada",0,0]
["nada",0,0]
["nada",0,0]
["nada",0,0]
["nada",0,0]
["nada",0,0]
["nada",0,0]
["nada",0,0]
["nada",0,0]
["nada",0,0]
["nada",0,0]
["nada",0,0]
["nada",0,0]
["nada",0,0]
["nada",0,0]
["nada",0,0]
["nada",0,0]
["nada",0,0]
["nada",0,0]
["nada",0,0]
[]
["Capacidad de ampliación",{"$f":"IF($C$199=\"CUMPLE\",100,0)","v":0},{"$f":"'R. RESULTADOS'!$I$11","v":"NO APLICA A LA EVALUACIÓN"}]
["Capacidad de ampliación",{"$f":"IF($C$199=\"CUMPLE\",100,0)","v":0}]
["Capacidad de ampliación",0]
["Capacidad de ampliación",0]
["Capacidad de ampliación",0]
["Capacidad de ampliación",0]
["Capacidad de ampliación",0]
["Capacidad de ampliación",0]
["Capacidad de ampliación",0]
["Capacidad de ampliación",0]
["Capacidad de ampliación",0]
["Capacidad de ampliación",0]
["Capacidad de ampliación",0]
["Capacidad de ampliación",0]
["Capacidad de ampliación",0]
["Capacidad de ampliación",0]
["Capacidad de ampliación",0]
["Capacidad de ampliación",0]
["Capacidad de ampliación",0]
["Capacidad de ampliación",0]
["Capacidad de ampliación",0]
["Capacidad de ampliación",0]
["Capacidad de ampliación",0]
["Capacidad de ampliación",0]
["Capacidad de ampliación",0]
["Capacidad de ampliación",0]
["Capacidad de ampliación",0]
["Capacidad de ampliación",0]
["Capacidad de ampliación",0]
["Capacidad de ampliación",0]
["Capacidad de ampliación",0]
["Capacidad de ampliación",0]
["Capacidad de ampliación",0]
["Capacidad de ampliación",0]
["Capacidad de ampliación",0]
["Capacidad de ampliación",0]
["Capacidad de ampliación",0]
["Capacidad de ampliación",0]
["Capacidad de ampliación",0]
["Capacidad de ampliación",0]
["Capacidad de ampliación",0]
["Capacidad de ampliación",0]
["Capacidad de ampliación",0]
["Capacidad de ampliación",0]
["Capacidad de ampliación",0]
["Capacidad de ampliación",0]
["Capacidad de ampliación",0]
["Capacidad de ampliación",0]
[]
["Facilidad de acceso a componentes y servicios",{"$f":"IF($C$248=\"CUMPLE\",($E$248/$D$248)*100,0)","v":0},{"$f":"'C4. FACS'!$N$36","v":"NO APLICA A LA EVALUACIÓN"},{"$f":"'C4. FACS'!$N$18","v":0},{"$f":"'C4. FACS'!$L$36","v":0}]
["Facilidad de acceso a componentes y servicios",{"$f":"IF($C$248=\"CUMPLE\",($E$248/$D$248)*100,0)","v":0}]
["Facilidad de acceso a componentes y servicios",0]
["Facilidad de acceso a componentes y servicios",0]
["Facilidad de acceso a componentes y servicios",0]
["Facilidad de acceso a componentes y servicios",0]
["Facilidad de acceso a componentes y servicios",0]
["Facilidad de acceso a componentes y servicios",0]
["Facilidad de acceso a componentes y servicios",0]
["Facilidad de acceso a componentes y servicios",0]
["Facilidad de acceso a componentes y servicios",0]
["Facilidad de acceso a componentes y servicios",0]
["Facilidad de acceso a componentes y servicios",0]
["Facilidad de acceso a componentes y servicios",0]
["Facilidad de acceso a componentes y servicios",0]
["Facilidad de acceso a componentes y servicios",0]
["Facilidad de acceso a componentes y servicios",0]
["Facilidad de acceso a componentes y servicios",0]
["Facilidad de acceso a componentes y servicios",0]
["Facilidad de acceso a componentes y servicios",0]
["Facilidad de acceso a componentes y servicios",0]
["Facilidad de acceso a componentes y servicios",0]
["Facilidad de acceso a componentes y servicios",0]
["Facilidad de acceso a componentes y servicios",0]
["Facilidad de acceso a componentes y servicios",0]
["Facilidad de acceso a componentes y servicios",0]
["Facilidad de acceso a componentes y servicios",0]
["Facilidad de acceso a componentes y servicios",0]
["Facilidad de acceso a componentes y servicios",0]
["Facilidad de acceso a componentes y servicios",0]
["Facilidad de acceso a componentes y servicios",0]
["Facilidad de acceso a componentes y servicios",0]
["Facilidad de acceso a componentes y servicios",0]
["Facilidad de acceso a componentes y servicios",0]
["Facilidad de acceso a componentes y servicios",0]
["Facilidad de acceso a componentes y servicios",0]
["Facilidad de acceso a componentes y servicios",0]
["Facilidad de acceso a componentes y servicios",0]
["Facilidad de acceso a componentes y servicios",0]
["Facilidad de acceso a componentes y servicios",0]
["Facilidad de acceso a componentes y servicios",0]
["Facilidad de acceso a componentes y servicios",0]
["Facilidad de acceso a componentes y servicios",0]
["Facilidad de acceso a componentes y servicios",0]
["Facilidad de acceso a componentes y servicios",0]
["Facilidad de acceso a componentes y servicios",0]
["Facilidad de acceso a componentes y servicios",0]
["Facilidad de acceso a componentes y servicios",0]
[]
["Independecia y conexiones reversibles",{"$f":"IF($C$297=\"CUMPLE\",($E$297/$D$297)*100,0)","v":0},{"$f":"'C5. IND-CORE'!$N$43","v":"NO APLICA A LA EVALUACIÓN"},{"$f":"'C5. IND-CORE'!$N$18","v":0},{"$f":"'C5. IND-CORE'!$L$43","v":0}]
["Independecia y conexiones reversibles",{"$f":"IF($C$297=\"CUMPLE\",($E$297/$D$297)*100,0)","v":0}]
["Independecia y conexiones reversibles",0]
["Independecia y conexiones reversibles",0]
["Independecia y conexiones reversibles",0]
["Independecia y conexiones reversibles",0]
["Independecia y conexiones reversibles",0]
["Independecia y conexiones reversibles",0]
["Independecia y conexiones reversibles",0]
["Independecia y conexiones reversibles",0]
["Independecia y conexiones reversibles",0]
["Independecia y conexiones reversibles",0]
["Independecia y conexiones reversibles",0]
["Independecia y conexiones reversibles",0]
["Independecia y conexiones reversibles",0]
["Independecia y conexiones reversibles",0]
["Independecia y conexiones reversibles",0]
["Independecia y conexiones reversibles",0]
["Independecia y conexiones reversibles",0]
["Independecia y conexiones reversibles",0]
["Independecia y conexiones reversibles",0]
["Independecia y conexiones reversibles",0]
["Independecia y conexiones reversibles",0]
["Independecia y conexiones reversibles",0]
["Independecia y conexiones reversibles",0]
["Independecia y conexiones reversibles",0]
["Independecia y conexiones reversibles",0]
["Independecia y conexiones reversibles",0]
["Independecia y conexiones reversibles",0]
["Independecia y conexiones reversibles",0]
["Independecia y conexiones reversibles",0]
["Independecia y conexiones reversibles",0]
["Independecia y conexiones reversibles",0]
["Independecia y conexiones reversibles",0]
["Independecia y conexiones reversibles",0]
["Independecia y conexiones reversibles",0]
["Independecia y conexiones reversibles",0]
["Independecia y conexiones reversibles",0]
["Independecia y conexiones reversibles",0]
["Independecia y conexiones reversibles",0]
["Independecia y conexiones reversibles",0]
["Independecia y conexiones reversibles",0]
["Independecia y conexiones reversibles",0]
["Independecia y conexiones reversibles",0]
["Independecia y conexiones reversibles",0]
["Independecia y conexiones reversibles",0]
["Independecia y conexiones reversibles",0]
["Independecia y conexiones reversibles",0]
[]
["Evitar tratamientos y acabados innecesarios",{"$f":"IF($C$346=\"CUMPLE\",($E$346/$D$346)*100,0)","v":0},{"$f":"'C6. ETAI'!$N$37","v":"NO APLICA A LA EVALUACIÓN"},{"$f":"'C6. ETAI'!$N$20","v":0},{"$f":"'C6. ETAI'!$L$37","v":0}]
["Evitar tratamientos y acabados innecesrios",{"$f":"IF($C$346=\"CUMPLE\",($E$346/$D$346)*100,0)","v":0}]
["Evitar tratamientos y acabados innecesrios",0]
["Evitar tratamientos y acabados innecesrios",0]
["Evitar tratamientos y acabados innecesrios",0]
["Evitar tratamientos y acabados innecesrios",0]
["Evitar tratamientos y acabados innecesrios",0]
["Evitar tratamientos y acabados innecesrios",0]
["Evitar tratamientos y acabados innecesrios",0]
["Evitar tratamientos y acabados innecesrios",0]
["Evitar tratamientos y acabados innecesrios",0]
["Evitar tratamientos y acabados innecesrios",0]
["Evitar tratamientos y acabados innecesrios",0]
["Evitar tratamientos y acabados innecesrios",0]
["Evitar tratamientos y acabados innecesrios",0]
["Evitar tratamientos y acabados innecesrios",0]
["Evitar tratamientos y acabados innecesrios",0]
["Evitar tratamientos y acabados innecesrios",0]
["Evitar tratamientos y acabados innecesrios",0]
["Evitar tratamientos y acabados innecesrios",0]
["Evitar tratamientos y acabados innecesrios",0]
["Evitar tratamientos y acabados innecesrios",0]
["Evitar tratamientos y acabados innecesrios",0]
["Evitar tratamientos y acabados innecesrios",0]
["Evitar tratamientos y acabados innecesrios",0]
["Evitar tratamientos y acabados innecesrios",0]
["Evitar tratamientos y acabados innecesrios",0]
["Evitar tratamientos y acabados innecesrios",0]
["Evitar tratamientos y acabados innecesrios",0]
["Evitar tratamientos y acabados innecesrios",0]
["Evitar tratamientos y acabados innecesrios",0]
["Evitar tratamientos y acabados innecesrios",0]
["Evitar tratamientos y acabados innecesrios",0]
["Evitar tratamientos y acabados innecesrios",0]
["Evitar tratamientos y acabados innecesrios",0]
["Evitar tratamientos y acabados innecesrios",0]
["Evitar tratamientos y acabados innecesrios",0]
["Evitar tratamientos y acabados innecesrios",0]
["Evitar tratamientos y acabados innecesrios",0]
["Evitar tratamientos y acabados innecesrios",0]
["Evitar tratamientos y acabados innecesrios",0]
["Evitar tratamientos y acabados innecesrios",0]
["Evitar tratamientos y acabados innecesrios",0]
["Evitar tratamientos y acabados innecesrios",0]
["Evitar tratamientos y acabados innecesrios",0]
["Evitar tratamientos y acabados innecesrios",0]
["Evitar tratamientos y acabados innecesrios",0]
["Evitar tratamientos y acabados innecesrios",0]
[]
["Apoyo a economía circular",{"$f":"IF($C$395=\"CUMPLE\",($E$395/$D$395)*100,0)","v":0},{"$f":"'C7. AEC'!$N$45","v":"NO APLICA A LA EVALUACIÓN"},{"$f":"'C7. AEC'!$N$16","v":0},{"$f":"'C7. AEC'!$L$45","v":0}]
["Apoyo a economía circular",{"$f":"IF($C$395=\"CUMPLE\",($E$395/$D$395)*100,0)","v":0}]
["Apoyo a economía circular",0]
["Apoyo a economía circular",0]
["Apoyo a economía circular",0]
["Apoyo a economía circular",0]
["Apoyo a economía circular",0]
["Apoyo a economía circular",0]
["Apoyo a economía circular",0]
["Apoyo a economía circular",0]
["Apoyo a economía circular",0]
["Apoyo a economía circular",0]
["Apoyo a economía circular",0]
["Apoyo a economía circular",0]
["Apoyo a economía circular",0]
["Apoyo a economía circular",0]
["Apoyo a economía circular",0]
["Apoyo a economía circular",0]
["Apoyo a economía circular",0]
["Apoyo a economía circular",0]
["Apoyo a economía circular",0]
["Apoyo a economía circular",0]
["Apoyo a economía circular",0]
["Apoyo a economía circular",0]
["Apoyo a economía circular",0]
["Apoyo a economía circular",0]
["Apoyo a economía circular",0]
["Apoyo a economía circular",0]
["Apoyo a economía circular",0]
["Apoyo a economía circular",0]
["Apoyo a economía circular",0]
["Apoyo a economía circular",0]
["Apoyo a economía circular",0]
["Apoyo a economía circular",0]
["Apoyo a economía circular",0]
["Apoyo a economía circular",0]
["Apoyo a economía circular",0]
["Apoyo a economía circular",0]
["Apoyo a economía circular",0]
["Apoyo a economía circular",0]
["Apoyo a economía circular",0]
["Apoyo a economía circular",0]
["Apoyo a economía circular",0]
["Apoyo a economía circular",0]
["Apoyo a economía circular",0]
["Apoyo a economía circular",0]
["Apoyo a economía circular",0]
["Apoyo a economía circular",0]
[]
["Simplicidad y estandarización",{"$f":"IF($C$444=\"CUMPLE\",($E$444/$D$444)*100,0)","v":0},{"$f":"'C8. EPC'!$N$40","v":"NO APLICA A LA EVALUACIÓN"},{"$f":"'C8. EPC'!$N$16","v":0},{"$f":"'C8. EPC'!$L$40","v":0}]
["Simplicidad y estandarización",{"$f":"IF($C$444=\"CUMPLE\",($E$444/$D$444)*100,0)","v":0}]
["Simplicidad y estandarización",0]
["Simplicidad y estandarización",0]
["Simplicidad y estandarización",0]
["Simplicidad y estandarización",0]
["Simplicidad y estandarización",0]
["Simplicidad y estandarización",0]
["Simplicidad y estandarización",0]
["Simplicidad y estandarización",0]
["Simplicidad y estandarización",0]
["Simplicidad y estandarización",0]
["Simplicidad y estandarización",0]
["Simplicidad y estandarización",0]
["Simplicidad y estandarización",0]
["Simplicidad y estandarización",0]
["Simplicidad y estandarización",0]
["Simplicidad y estandarización",0]
["Simplicidad y estandarización",0]
["Simplicidad y estandarización",0]
["Simplicidad y estandarización",0]
["Simplicidad y estandarización",0]
["Simplicidad y estandarización",0]
["Simplicidad y estandarización",0]
["Simplicidad y estandarización",0]
["Simplicidad y estandarización",0]
["Simplicidad y estandarización",0]
["Simplicidad y estandarización",0]
["Simplicidad y estandarización",0]
["Simplicidad y estandarización",0]
["Simplicidad y estandarización",0]
["Simplicidad y estandarización",0]
["Simplicidad y estandarización",0]
["Simplicidad y estandarización",0]
["Simplicidad y estandarización",0]
["Simplicidad y estandarización",0]
["Simplicidad y estandarización",0]
["Simplicidad y estandarización",0]
["Simplicidad y estandarización",0]
["Simplicidad y estandarización",0]
["Simplicidad y estandarización",0]
["Simplicidad y estandarización",0]
["Simplicidad y estandarización",0]
["Simplicidad y estandarización",0]
["Simplicidad y estandarización",0]
["Simplicidad y estandarización",0]
["Simplicidad y estandarización",0]
["Simplicidad y estandarización",0]
[]
["Seguridad al desmontar",{"$f":"IF($C$493=\"CUMPLE\",($E$493/$D$493)*100,0)","v":0},{"$f":"'C9. SAD'!$N$40","v":"NO APLICA A LA EVALUACIÓN"},{"$f":"'C9. SAD'!$N$16","v":0},{"$f":"'C9. SAD'!$L$40","v":0}]
["Seguridad al desmontar",{"$f":"IF($C$493=\"CUMPLE\",($E$493/$D$493)*100,0)","v":0}]
["Seguridad al desmontar",0]
["Seguridad al desmontar",0]
["Seguridad al desmontar",0]
["Seguridad al desmontar",0]
["Seguridad al desmontar",0]
["Seguridad al desmontar",0]
["Seguridad al desmontar",0]
["Seguridad al desmontar",0]
["Seguridad al desmontar",0]
["Seguridad al desmontar",0]
["Seguridad al desmontar",0]
["Seguridad al desmontar",0]
["Seguridad al desmontar",0]
["Seguridad al desmontar",0]
["Seguridad al desmontar",0]
["Seguridad al desmontar",0]
["Seguridad al desmontar",0]
["Seguridad al desmontar",0]
["Seguridad al desmontar",0]
["Seguridad al desmontar",0]
["Seguridad al desmontar",0]
["Seguridad al desmontar",0]
["Seguridad al desmontar",0]
["Seguridad al desmontar",0]
["Seguridad al desmontar",0]
["Seguridad al desmontar",0]
["Seguridad al desmontar",0]
["Seguridad al desmontar",0]
["Seguridad al desmontar",0]
["Seguridad al desmontar",0]
["Seguridad al desmontar",0]
["Seguridad al desmontar",0]
["Seguridad al desmontar",0]
["Seguridad al desmontar",0]
["Seguridad al desmontar",0]
["Seguridad al desmontar",0]
["Seguridad al desmontar",0]
["Seguridad al desmontar",0]
["Seguridad al desmontar",0]
["Seguridad al desmontar",0]
["Seguridad al desmontar",0]
["Seguridad al desmontar",0]
["Seguridad al desmontar",0]
["Seguridad al desmontar",0]
["Seguridad al desmontar",0]
["Seguridad al desmontar",0]
[]
["Durabilidad",{"$f":"IF($C$542=\"CUMPLE\",($E$542/$D$542)*100,0)","v":0},{"$f":"'C10. DUR'!$N$45","v":"NO APLICA A LA EVALUACIÓN"},{"$f":"'C10. DUR'!$N$16","v":0},{"$f":"'C10. DUR'!$L$45","v":0}]
["Durabilidad",{"$f":"IF($C$542=\"CUMPLE\",($E$542/$D$542)*100,0)","v":0}]
["Durabilidad",0]
["Durabilidad",0]
["Durabilidad",0]
["Durabilidad",0]
["Durabilidad",0]
["Durabilidad",0]
["Durabilidad",0]
["Durabilidad",0]
["Durabilidad",0]
["Durabilidad",0]
["Durabilidad",0]
["Durabilidad",0]
["Durabilidad",0]
["Durabilidad",0]
["Durabilidad",0]
["Durabilidad",0]
["Durabilidad",0]
["Durabilidad",0]
["Durabilidad",0]
["Durabilidad",0]
["Durabilidad",0]
["Durabilidad",0]
["Durabilidad",0]
["Durabilidad",0]
["Durabilidad",0]
["Durabilidad",0]
["Durabilidad",0]
["Durabilidad",0]
["Durabilidad",0]
["Durabilidad",0]
["Durabilidad",0]
["Durabilidad",0]
["Durabilidad",0]
["Durabilidad",0]
["Durabilidad",0]
["Durabilidad",0]
["Durabilidad",0]
["Durabilidad",0]
["Durabilidad",0]
["Durabilidad",0]
["Durabilidad",0]
["Durabilidad",0]
["Durabilidad",0]
["Durabilidad",0]
["Durabilidad",0]
["Durabilidad",0]